{"text_format":"3","workbook":"xlsx","n_sheets":14,"sheets":["Pengaturan","Januari","Februari","Maret","April","Mei","Juni","Juli","Agustus","September","Oktober","November","Desember","Hari Libur"],"not_rendered":{"defined_names":20},"read":"whole","date_system":"1900"}

{"sheet":"Pengaturan","index":0,"n_rows":34,"n_cols":32,"rows_kept":34,"merged":[[1,17,2,23],[3,1,3,7],[3,8,3,10],[3,17,7,31],[4,1,4,7],[5,1,5,7],[8,1,8,7],[8,9,8,15],[8,17,8,23],[8,25,8,31],[9,1,9,7],[9,9,9,15],[9,17,9,23],[9,25,9,31],[17,1,17,7],[17,9,17,15],[17,17,17,23],[17,25,17,31],[18,1,18,7],[18,9,18,15],[18,17,18,23],[18,25,18,31],[26,1,26,7],[26,9,26,15],[26,17,26,23],[26,25,26,31],[27,1,27,7],[27,9,27,15],[27,17,27,23],[27,25,27,31]]}
[]
[null,"PENGATURAN KALENDER",{"$nulls":15},"TAHUN"]
[]
[null,"AWAL MINGGU",{"$nulls":6},"MINGGU",{"$nulls":8},{"$f":"YEAR(TODAY())","v":2018}]
[null,"PERLIHATKAN HARI LIBUR",{"$nulls":6},true]
[null,"PERLIHATKAN PERINGATAN",{"$nulls":6},true]
[{"$nulls":8},{"$f":"IF(PERLIHATKANHARILIBUR,Diperingati,PERLIHATKANHARILIBUR)","v":true}]
[null,"TAMPILAN TAHUNAN"]
[null,{"$f":"DATE(CalYear,1,1)","v":43101},{"$nulls":7},{"$f":"DATE(CalYear,2,1)","v":43132},{"$nulls":7},{"$f":"DATE(CalYear,3,1)","v":43160},{"$nulls":7},{"$f":"DATE(CalYear,4,1)","v":43191}]
[null,{"$f":"UPPER(TEXT(B9,\"MMMM\"))","v":"JANUARI"},{"$nulls":7},{"$f":"UPPER(TEXT(J9,\"MMMM\"))","v":"FEBRUARI"},{"$nulls":7},{"$f":"UPPER(TEXT(R9,\"MMMM\"))","v":"MARET"},{"$nulls":7},{"$f":"UPPER(TEXT(Z9,\"MMMM\"))","v":"APRIL"}]
[1,{"$f":"Hari+DATE(CalYear,MONTH($B$9),1)-WEEKDAY(DATE(CalYear,MONTH($B$9),1),(AWALMINGGU=\"SENIN\")+1)+$A11*7-6","v":"2017-12-31"},"2018-01-01","2018-01-02","2018-01-03","2018-01-04","2018-01-05","2018-01-06",null,{"$f":"Hari+DATE(CalYear,MONTH($J$9),1)-WEEKDAY(DATE(CalYear,MONTH($J$9),1),(AWALMINGGU=\"SENIN\")+1)+$A11*7-6","v":"2018-01-28"},"2018-01-29","2018-01-30","2018-01-31","2018-02-01","2018-02-02","2018-02-03",null,{"$f":"Hari+DATE(CalYear,MONTH($R$9),1)-WEEKDAY(DATE(CalYear,MONTH($R$9),1),(AWALMINGGU=\"SENIN\")+1)+$A11*7-6","v":"2018-02-25"},"2018-02-26","2018-02-27","2018-02-28","2018-03-01","2018-03-02","2018-03-03",null,{"$f":"Hari+DATE(CalYear,MONTH($Z$9),1)-WEEKDAY(DATE(CalYear,MONTH($Z$9),1),(AWALMINGGU=\"SENIN\")+1)+$A11*7-6","v":"2018-04-01"},"2018-04-02","2018-04-03","2018-04-04","2018-04-05","2018-04-06","2018-04-07"]
[2,{"$f":"Hari+DATE(CalYear,MONTH($B$9),1)-WEEKDAY(DATE(CalYear,MONTH($B$9),1),(AWALMINGGU=\"SENIN\")+1)+$A12*7-6","v":"2018-01-07"},"2018-01-08","2018-01-09","2018-01-10","2018-01-11","2018-01-12","2018-01-13",null,{"$f":"Hari+DATE(CalYear,MONTH($J$9),1)-WEEKDAY(DATE(CalYear,MONTH($J$9),1),(AWALMINGGU=\"SENIN\")+1)+$A12*7-6","v":"2018-02-04"},"2018-02-05","2018-02-06","2018-02-07","2018-02-08","2018-02-09","2018-02-10",null,{"$f":"Hari+DATE(CalYear,MONTH($R$9),1)-WEEKDAY(DATE(CalYear,MONTH($R$9),1),(AWALMINGGU=\"SENIN\")+1)+$A12*7-6","v":"2018-03-04"},"2018-03-05","2018-03-06","2018-03-07","2018-03-08","2018-03-09","2018-03-10",null,{"$f":"Hari+DATE(CalYear,MONTH($Z$9),1)-WEEKDAY(DATE(CalYear,MONTH($Z$9),1),(AWALMINGGU=\"SENIN\")+1)+$A12*7-6","v":"2018-04-08"},"2018-04-09","2018-04-10","2018-04-11","2018-04-12","2018-04-13","2018-04-14"]
[3,{"$f":"Hari+DATE(CalYear,MONTH($B$9),1)-WEEKDAY(DATE(CalYear,MONTH($B$9),1),(AWALMINGGU=\"SENIN\")+1)+$A13*7-6","v":"2018-01-14"},"2018-01-15","2018-01-16","2018-01-17","2018-01-18","2018-01-19","2018-01-20",null,{"$f":"Hari+DATE(CalYear,MONTH($J$9),1)-WEEKDAY(DATE(CalYear,MONTH($J$9),1),(AWALMINGGU=\"SENIN\")+1)+$A13*7-6","v":"2018-02-11"},"2018-02-12","2018-02-13","2018-02-14","2018-02-15","2018-02-16","2018-02-17",null,{"$f":"Hari+DATE(CalYear,MONTH($R$9),1)-WEEKDAY(DATE(CalYear,MONTH($R$9),1),(AWALMINGGU=\"SENIN\")+1)+$A13*7-6","v":"2018-03-11"},"2018-03-12","2018-03-13","2018-03-14","2018-03-15","2018-03-16","2018-03-17",null,{"$f":"Hari+DATE(CalYear,MONTH($Z$9),1)-WEEKDAY(DATE(CalYear,MONTH($Z$9),1),(AWALMINGGU=\"SENIN\")+1)+$A13*7-6","v":"2018-04-15"},"2018-04-16","2018-04-17","2018-04-18","2018-04-19","2018-04-20","2018-04-21"]
[4,{"$f":"Hari+DATE(CalYear,MONTH($B$9),1)-WEEKDAY(DATE(CalYear,MONTH($B$9),1),(AWALMINGGU=\"SENIN\")+1)+$A14*7-6","v":"2018-01-21"},"2018-01-22","2018-01-23","2018-01-24","2018-01-25","2018-01-26","2018-01-27",null,{"$f":"Hari+DATE(CalYear,MONTH($J$9),1)-WEEKDAY(DATE(CalYear,MONTH($J$9),1),(AWALMINGGU=\"SENIN\")+1)+$A14*7-6","v":"2018-02-18"},"2018-02-19","2018-02-20","2018-02-21","2018-02-22","2018-02-23","2018-02-24",null,{"$f":"Hari+DATE(CalYear,MONTH($R$9),1)-WEEKDAY(DATE(CalYear,MONTH($R$9),1),(AWALMINGGU=\"SENIN\")+1)+$A14*7-6","v":"2018-03-18"},"2018-03-19","2018-03-20","2018-03-21","2018-03-22","2018-03-23","2018-03-24",null,{"$f":"Hari+DATE(CalYear,MONTH($Z$9),1)-WEEKDAY(DATE(CalYear,MONTH($Z$9),1),(AWALMINGGU=\"SENIN\")+1)+$A14*7-6","v":"2018-04-22"},"2018-04-23","2018-04-24","2018-04-25","2018-04-26","2018-04-27","2018-04-28"]
[5,{"$f":"Hari+DATE(CalYear,MONTH($B$9),1)-WEEKDAY(DATE(CalYear,MONTH($B$9),1),(AWALMINGGU=\"SENIN\")+1)+$A15*7-6","v":"2018-01-28"},"2018-01-29","2018-01-30","2018-01-31","2018-02-01","2018-02-02","2018-02-03",null,{"$f":"Hari+DATE(CalYear,MONTH($J$9),1)-WEEKDAY(DATE(CalYear,MONTH($J$9),1),(AWALMINGGU=\"SENIN\")+1)+$A15*7-6","v":"2018-02-25"},"2018-02-26","2018-02-27","2018-02-28","2018-03-01","2018-03-02","2018-03-03",null,{"$f":"Hari+DATE(CalYear,MONTH($R$9),1)-WEEKDAY(DATE(CalYear,MONTH($R$9),1),(AWALMINGGU=\"SENIN\")+1)+$A15*7-6","v":"2018-03-25"},"2018-03-26","2018-03-27","2018-03-28","2018-03-29","2018-03-30","2018-03-31",null,{"$f":"Hari+DATE(CalYear,MONTH($Z$9),1)-WEEKDAY(DATE(CalYear,MONTH($Z$9),1),(AWALMINGGU=\"SENIN\")+1)+$A15*7-6","v":"2018-04-29"},"2018-04-30","2018-05-01","2018-05-02","2018-05-03","2018-05-04","2018-05-05"]
[6,{"$f":"Hari+DATE(CalYear,MONTH($B$9),1)-WEEKDAY(DATE(CalYear,MONTH($B$9),1),(AWALMINGGU=\"SENIN\")+1)+$A16*7-6","v":"2018-02-04"},"2018-02-05","2018-02-06","2018-02-07","2018-02-08","2018-02-09","2018-02-10",null,{"$f":"Hari+DATE(CalYear,MONTH($J$9),1)-WEEKDAY(DATE(CalYear,MONTH($J$9),1),(AWALMINGGU=\"SENIN\")+1)+$A16*7-6","v":"2018-03-04"},"2018-03-05","2018-03-06","2018-03-07","2018-03-08","2018-03-09","2018-03-10",null,{"$f":"Hari+DATE(CalYear,MONTH($R$9),1)-WEEKDAY(DATE(CalYear,MONTH($R$9),1),(AWALMINGGU=\"SENIN\")+1)+$A16*7-6","v":"2018-04-01"},"2018-04-02","2018-04-03","2018-04-04","2018-04-05","2018-04-06","2018-04-07",null,{"$f":"Hari+DATE(CalYear,MONTH($Z$9),1)-WEEKDAY(DATE(CalYear,MONTH($Z$9),1),(AWALMINGGU=\"SENIN\")+1)+$A16*7-6","v":"2018-05-06"},"2018-05-07","2018-05-08","2018-05-09","2018-05-10","2018-05-11","2018-05-12"]
[]
[null,{"$f":"DATE(CalYear,5,1)","v":43221},{"$nulls":7},{"$f":"DATE(CalYear,6,1)","v":43252},{"$nulls":7},{"$f":"DATE(CalYear,7,1)","v":43282},{"$nulls":7},{"$f":"DATE(CalYear,8,1)","v":43313}]
[null,{"$f":"UPPER(TEXT(B18,\"MMMM\"))","v":"MEI"},{"$nulls":7},{"$f":"UPPER(TEXT(J18,\"MMMM\"))","v":"JUNI"},{"$nulls":7},{"$f":"UPPER(TEXT(R18,\"MMMM\"))","v":"JULI"},{"$nulls":7},{"$f":"UPPER(TEXT(Z18,\"MMMM\"))","v":"AGUSTUS"}]
[1,{"$f":"Hari+DATE(CalYear,MONTH($B$18),1)-WEEKDAY(DATE(CalYear,MONTH($B$18),1),(AWALMINGGU=\"SENIN\")+1)+$A20*7-6","v":"2018-04-29"},"2018-04-30","2018-05-01","2018-05-02","2018-05-03","2018-05-04","2018-05-05",null,{"$f":"Hari+DATE(CalYear,MONTH($J$18),1)-WEEKDAY(DATE(CalYear,MONTH($J$18),1),(AWALMINGGU=\"SENIN\")+1)+$A20*7-6","v":"2018-05-27"},"2018-05-28","2018-05-29","2018-05-30","2018-05-31","2018-06-01","2018-06-02",null,{"$f":"Hari+DATE(CalYear,MONTH($R$18),1)-WEEKDAY(DATE(CalYear,MONTH($R$18),1),(AWALMINGGU=\"SENIN\")+1)+$A20*7-6","v":"2018-07-01"},"2018-07-02","2018-07-03","2018-07-04","2018-07-05","2018-07-06","2018-07-07",null,{"$f":"Hari+DATE(CalYear,MONTH($Z$18),1)-WEEKDAY(DATE(CalYear,MONTH($Z$18),1),(AWALMINGGU=\"SENIN\")+1)+$A20*7-6","v":"2018-07-29"},"2018-07-30","2018-07-31","2018-08-01","2018-08-02","2018-08-03","2018-08-04"]
[2,{"$f":"Hari+DATE(CalYear,MONTH($B$18),1)-WEEKDAY(DATE(CalYear,MONTH($B$18),1),(AWALMINGGU=\"SENIN\")+1)+$A21*7-6","v":"2018-05-06"},"2018-05-07","2018-05-08","2018-05-09","2018-05-10","2018-05-11","2018-05-12",null,{"$f":"Hari+DATE(CalYear,MONTH($J$18),1)-WEEKDAY(DATE(CalYear,MONTH($J$18),1),(AWALMINGGU=\"SENIN\")+1)+$A21*7-6","v":"2018-06-03"},"2018-06-04","2018-06-05","2018-06-06","2018-06-07","2018-06-08","2018-06-09",null,{"$f":"Hari+DATE(CalYear,MONTH($R$18),1)-WEEKDAY(DATE(CalYear,MONTH($R$18),1),(AWALMINGGU=\"SENIN\")+1)+$A21*7-6","v":"2018-07-08"},"2018-07-09","2018-07-10","2018-07-11","2018-07-12","2018-07-13","2018-07-14",null,{"$f":"Hari+DATE(CalYear,MONTH($Z$18),1)-WEEKDAY(DATE(CalYear,MONTH($Z$18),1),(AWALMINGGU=\"SENIN\")+1)+$A21*7-6","v":"2018-08-05"},"2018-08-06","2018-08-07","2018-08-08","2018-08-09","2018-08-10","2018-08-11"]
[3,{"$f":"Hari+DATE(CalYear,MONTH($B$18),1)-WEEKDAY(DATE(CalYear,MONTH($B$18),1),(AWALMINGGU=\"SENIN\")+1)+$A22*7-6","v":"2018-05-13"},"2018-05-14","2018-05-15","2018-05-16","2018-05-17","2018-05-18","2018-05-19",null,{"$f":"Hari+DATE(CalYear,MONTH($J$18),1)-WEEKDAY(DATE(CalYear,MONTH($J$18),1),(AWALMINGGU=\"SENIN\")+1)+$A22*7-6","v":"2018-06-10"},"2018-06-11","2018-06-12","2018-06-13","2018-06-14","2018-06-15","2018-06-16",null,{"$f":"Hari+DATE(CalYear,MONTH($R$18),1)-WEEKDAY(DATE(CalYear,MONTH($R$18),1),(AWALMINGGU=\"SENIN\")+1)+$A22*7-6","v":"2018-07-15"},"2018-07-16","2018-07-17","2018-07-18","2018-07-19","2018-07-20","2018-07-21",null,{"$f":"Hari+DATE(CalYear,MONTH($Z$18),1)-WEEKDAY(DATE(CalYear,MONTH($Z$18),1),(AWALMINGGU=\"SENIN\")+1)+$A22*7-6","v":"2018-08-12"},"2018-08-13","2018-08-14","2018-08-15","2018-08-16","2018-08-17","2018-08-18"]
[4,{"$f":"Hari+DATE(CalYear,MONTH($B$18),1)-WEEKDAY(DATE(CalYear,MONTH($B$18),1),(AWALMINGGU=\"SENIN\")+1)+$A23*7-6","v":"2018-05-20"},"2018-05-21","2018-05-22","2018-05-23","2018-05-24","2018-05-25","2018-05-26",null,{"$f":"Hari+DATE(CalYear,MONTH($J$18),1)-WEEKDAY(DATE(CalYear,MONTH($J$18),1),(AWALMINGGU=\"SENIN\")+1)+$A23*7-6","v":"2018-06-17"},"2018-06-18","2018-06-19","2018-06-20","2018-06-21","2018-06-22","2018-06-23",null,{"$f":"Hari+DATE(CalYear,MONTH($R$18),1)-WEEKDAY(DATE(CalYear,MONTH($R$18),1),(AWALMINGGU=\"SENIN\")+1)+$A23*7-6","v":"2018-07-22"},"2018-07-23","2018-07-24","2018-07-25","2018-07-26","2018-07-27","2018-07-28",null,{"$f":"Hari+DATE(CalYear,MONTH($Z$18),1)-WEEKDAY(DATE(CalYear,MONTH($Z$18),1),(AWALMINGGU=\"SENIN\")+1)+$A23*7-6","v":"2018-08-19"},"2018-08-20","2018-08-21","2018-08-22","2018-08-23","2018-08-24","2018-08-25"]
[5,{"$f":"Hari+DATE(CalYear,MONTH($B$18),1)-WEEKDAY(DATE(CalYear,MONTH($B$18),1),(AWALMINGGU=\"SENIN\")+1)+$A24*7-6","v":"2018-05-27"},"2018-05-28","2018-05-29","2018-05-30","2018-05-31","2018-06-01","2018-06-02",null,{"$f":"Hari+DATE(CalYear,MONTH($J$18),1)-WEEKDAY(DATE(CalYear,MONTH($J$18),1),(AWALMINGGU=\"SENIN\")+1)+$A24*7-6","v":"2018-06-24"},"2018-06-25","2018-06-26","2018-06-27","2018-06-28","2018-06-29","2018-06-30",null,{"$f":"Hari+DATE(CalYear,MONTH($R$18),1)-WEEKDAY(DATE(CalYear,MONTH($R$18),1),(AWALMINGGU=\"SENIN\")+1)+$A24*7-6","v":"2018-07-29"},"2018-07-30","2018-07-31","2018-08-01","2018-08-02","2018-08-03","2018-08-04",null,{"$f":"Hari+DATE(CalYear,MONTH($Z$18),1)-WEEKDAY(DATE(CalYear,MONTH($Z$18),1),(AWALMINGGU=\"SENIN\")+1)+$A24*7-6","v":"2018-08-26"},"2018-08-27","2018-08-28","2018-08-29","2018-08-30","2018-08-31","2018-09-01"]
[6,{"$f":"Hari+DATE(CalYear,MONTH($B$18),1)-WEEKDAY(DATE(CalYear,MONTH($B$18),1),(AWALMINGGU=\"SENIN\")+1)+$A25*7-6","v":"2018-06-03"},"2018-06-04","2018-06-05","2018-06-06","2018-06-07","2018-06-08","2018-06-09",null,{"$f":"Hari+DATE(CalYear,MONTH($J$18),1)-WEEKDAY(DATE(CalYear,MONTH($J$18),1),(AWALMINGGU=\"SENIN\")+1)+$A25*7-6","v":"2018-07-01"},"2018-07-02","2018-07-03","2018-07-04","2018-07-05","2018-07-06","2018-07-07",null,{"$f":"Hari+DATE(CalYear,MONTH($R$18),1)-WEEKDAY(DATE(CalYear,MONTH($R$18),1),(AWALMINGGU=\"SENIN\")+1)+$A25*7-6","v":"2018-08-05"},"2018-08-06","2018-08-07","2018-08-08","2018-08-09","2018-08-10","2018-08-11",null,{"$f":"Hari+DATE(CalYear,MONTH($Z$18),1)-WEEKDAY(DATE(CalYear,MONTH($Z$18),1),(AWALMINGGU=\"SENIN\")+1)+$A25*7-6","v":"2018-09-02"},"2018-09-03","2018-09-04","2018-09-05","2018-09-06","2018-09-07","2018-09-08"]
[]
[null,{"$f":"DATE(CalYear,9,1)","v":43344},{"$nulls":7},{"$f":"DATE(CalYear,10,1)","v":43374},{"$nulls":7},{"$f":"DATE(CalYear,11,1)","v":43405},{"$nulls":7},{"$f":"DATE(CalYear,12,1)","v":43435}]
[null,{"$f":"UPPER(TEXT(B27,\"MMMM\"))","v":"SEPTEMBER"},{"$nulls":7},{"$f":"UPPER(TEXT(J27,\"MMMM\"))","v":"OKTOBER"},{"$nulls":7},{"$f":"UPPER(TEXT(R27,\"MMMM\"))","v":"NOVEMBER"},{"$nulls":7},{"$f":"UPPER(TEXT(Z27,\"MMMM\"))","v":"DESEMBER"}]
[1,{"$f":"Hari+DATE(CalYear,MONTH($B$27),1)-WEEKDAY(DATE(CalYear,MONTH($B$27),1),(AWALMINGGU=\"SENIN\")+1)+$A29*7-6","v":"2018-08-26"},"2018-08-27","2018-08-28","2018-08-29","2018-08-30","2018-08-31","2018-09-01",null,{"$f":"Hari+DATE(CalYear,MONTH($J$27),1)-WEEKDAY(DATE(CalYear,MONTH($J$27),1),(AWALMINGGU=\"SENIN\")+1)+$A29*7-6","v":"2018-09-30"},"2018-10-01","2018-10-02","2018-10-03","2018-10-04","2018-10-05","2018-10-06",null,{"$f":"Hari+DATE(CalYear,MONTH($R$27),1)-WEEKDAY(DATE(CalYear,MONTH($R$27),1),(AWALMINGGU=\"SENIN\")+1)+$A29*7-6","v":"2018-10-28"},"2018-10-29","2018-10-30","2018-10-31","2018-11-01","2018-11-02","2018-11-03",null,{"$f":"Hari+DATE(CalYear,MONTH($Z$27),1)-WEEKDAY(DATE(CalYear,MONTH($Z$27),1),(AWALMINGGU=\"SENIN\")+1)+$A29*7-6","v":"2018-11-25"},"2018-11-26","2018-11-27","2018-11-28","2018-11-29","2018-11-30","2018-12-01"]
[2,{"$f":"Hari+DATE(CalYear,MONTH($B$27),1)-WEEKDAY(DATE(CalYear,MONTH($B$27),1),(AWALMINGGU=\"SENIN\")+1)+$A30*7-6","v":"2018-09-02"},"2018-09-03","2018-09-04","2018-09-05","2018-09-06","2018-09-07","2018-09-08",null,{"$f":"Hari+DATE(CalYear,MONTH($J$27),1)-WEEKDAY(DATE(CalYear,MONTH($J$27),1),(AWALMINGGU=\"SENIN\")+1)+$A30*7-6","v":"2018-10-07"},"2018-10-08","2018-10-09","2018-10-10","2018-10-11","2018-10-12","2018-10-13",null,{"$f":"Hari+DATE(CalYear,MONTH($R$27),1)-WEEKDAY(DATE(CalYear,MONTH($R$27),1),(AWALMINGGU=\"SENIN\")+1)+$A30*7-6","v":"2018-11-04"},"2018-11-05","2018-11-06","2018-11-07","2018-11-08","2018-11-09","2018-11-10",null,{"$f":"Hari+DATE(CalYear,MONTH($Z$27),1)-WEEKDAY(DATE(CalYear,MONTH($Z$27),1),(AWALMINGGU=\"SENIN\")+1)+$A30*7-6","v":"2018-12-02"},"2018-12-03","2018-12-04","2018-12-05","2018-12-06","2018-12-07","2018-12-08"]
[3,{"$f":"Hari+DATE(CalYear,MONTH($B$27),1)-WEEKDAY(DATE(CalYear,MONTH($B$27),1),(AWALMINGGU=\"SENIN\")+1)+$A31*7-6","v":"2018-09-09"},"2018-09-10","2018-09-11","2018-09-12","2018-09-13","2018-09-14","2018-09-15",null,{"$f":"Hari+DATE(CalYear,MONTH($J$27),1)-WEEKDAY(DATE(CalYear,MONTH($J$27),1),(AWALMINGGU=\"SENIN\")+1)+$A31*7-6","v":"2018-10-14"},"2018-10-15","2018-10-16","2018-10-17","2018-10-18","2018-10-19","2018-10-20",null,{"$f":"Hari+DATE(CalYear,MONTH($R$27),1)-WEEKDAY(DATE(CalYear,MONTH($R$27),1),(AWALMINGGU=\"SENIN\")+1)+$A31*7-6","v":"2018-11-11"},"2018-11-12","2018-11-13","2018-11-14","2018-11-15","2018-11-16","2018-11-17",null,{"$f":"Hari+DATE(CalYear,MONTH($Z$27),1)-WEEKDAY(DATE(CalYear,MONTH($Z$27),1),(AWALMINGGU=\"SENIN\")+1)+$A31*7-6","v":"2018-12-09"},"2018-12-10","2018-12-11","2018-12-12","2018-12-13","2018-12-14","2018-12-15"]
[4,{"$f":"Hari+DATE(CalYear,MONTH($B$27),1)-WEEKDAY(DATE(CalYear,MONTH($B$27),1),(AWALMINGGU=\"SENIN\")+1)+$A32*7-6","v":"2018-09-16"},"2018-09-17","2018-09-18","2018-09-19","2018-09-20","2018-09-21","2018-09-22",null,{"$f":"Hari+DATE(CalYear,MONTH($J$27),1)-WEEKDAY(DATE(CalYear,MONTH($J$27),1),(AWALMINGGU=\"SENIN\")+1)+$A32*7-6","v":"2018-10-21"},"2018-10-22","2018-10-23","2018-10-24","2018-10-25","2018-10-26","2018-10-27",null,{"$f":"Hari+DATE(CalYear,MONTH($R$27),1)-WEEKDAY(DATE(CalYear,MONTH($R$27),1),(AWALMINGGU=\"SENIN\")+1)+$A32*7-6","v":"2018-11-18"},"2018-11-19","2018-11-20","2018-11-21","2018-11-22","2018-11-23","2018-11-24",null,{"$f":"Hari+DATE(CalYear,MONTH($Z$27),1)-WEEKDAY(DATE(CalYear,MONTH($Z$27),1),(AWALMINGGU=\"SENIN\")+1)+$A32*7-6","v":"2018-12-16"},"2018-12-17","2018-12-18","2018-12-19","2018-12-20","2018-12-21","2018-12-22"]
[5,{"$f":"Hari+DATE(CalYear,MONTH($B$27),1)-WEEKDAY(DATE(CalYear,MONTH($B$27),1),(AWALMINGGU=\"SENIN\")+1)+$A33*7-6","v":"2018-09-23"},"2018-09-24","2018-09-25","2018-09-26","2018-09-27","2018-09-28","2018-09-29",null,{"$f":"Hari+DATE(CalYear,MONTH($J$27),1)-WEEKDAY(DATE(CalYear,MONTH($J$27),1),(AWALMINGGU=\"SENIN\")+1)+$A33*7-6","v":"2018-10-28"},"2018-10-29","2018-10-30","2018-10-31","2018-11-01","2018-11-02","2018-11-03",null,{"$f":"Hari+DATE(CalYear,MONTH($R$27),1)-WEEKDAY(DATE(CalYear,MONTH($R$27),1),(AWALMINGGU=\"SENIN\")+1)+$A33*7-6","v":"2018-11-25"},"2018-11-26","2018-11-27","2018-11-28","2018-11-29","2018-11-30","2018-12-01",null,{"$f":"Hari+DATE(CalYear,MONTH($Z$27),1)-WEEKDAY(DATE(CalYear,MONTH($Z$27),1),(AWALMINGGU=\"SENIN\")+1)+$A33*7-6","v":"2018-12-23"},"2018-12-24","2018-12-25","2018-12-26","2018-12-27","2018-12-28","2018-12-29"]
[6,{"$f":"Hari+DATE(CalYear,MONTH($B$27),1)-WEEKDAY(DATE(CalYear,MONTH($B$27),1),(AWALMINGGU=\"SENIN\")+1)+$A34*7-6","v":"2018-09-30"},"2018-10-01","2018-10-02","2018-10-03","2018-10-04","2018-10-05","2018-10-06",null,{"$f":"Hari+DATE(CalYear,MONTH($J$27),1)-WEEKDAY(DATE(CalYear,MONTH($J$27),1),(AWALMINGGU=\"SENIN\")+1)+$A34*7-6","v":"2018-11-04"},"2018-11-05","2018-11-06","2018-11-07","2018-11-08","2018-11-09","2018-11-10",null,{"$f":"Hari+DATE(CalYear,MONTH($R$27),1)-WEEKDAY(DATE(CalYear,MONTH($R$27),1),(AWALMINGGU=\"SENIN\")+1)+$A34*7-6","v":"2018-12-02"},"2018-12-03","2018-12-04","2018-12-05","2018-12-06","2018-12-07","2018-12-08",null,{"$f":"Hari+DATE(CalYear,MONTH($Z$27),1)-WEEKDAY(DATE(CalYear,MONTH($Z$27),1),(AWALMINGGU=\"SENIN\")+1)+$A34*7-6","v":"2018-12-30"},"2018-12-31","2019-01-01","2019-01-02","2019-01-03","2019-01-04","2019-01-05"]

{"sheet":"Januari","index":1,"n_rows":16,"n_cols":8,"rows_kept":16,"merged":[[1,1,1,3],[14,3,14,7],[15,3,15,7],[16,1,16,7]]}
[]
[null,{"$f":"B9","v":"2018-01-14"}]
[]
[null,{"$f":"AWALMINGGU","v":"MINGGU"},{"$f":"UPPER(TEXT(C5,\"dddd\"))","v":"SENIN"},"SELASA","RABU","KAMIS","JUMAT","SABTU"]
[null,{"$f":"Hari+DATE(CalYear,1,1)-WEEKDAY(DATE(CalYear,1,1),(AWALMINGGU=\"SENIN\")+1)+1","v":"2017-12-31"},"2018-01-01","2018-01-02","2018-01-03","2018-01-04","2018-01-05","2018-01-06"]
[null,{"$f":"IFERROR(IF(PERLIHATKANHARILIBUR,IF(INDEX(tblHolidays[],MATCH(DATE(CalYear-(DAY(B5)>15)+(ROW()>6),MONTH(B5),DAY(B5)),IF(PERLIHATKANPERINGATAN,tblHolidays[KOREKSI],tblHolidays[HARI]),0),6),INDEX(tblHolidays[],MATCH(DATE(CalYear-(DAY(B5)>15)+(ROW()>6),MONTH(B5),DAY(B5)),IF(PERLIHATKANPERINGATAN,tblHolidays[KOREKSI],tblHolidays[HARI]),0),2),\"\"),\"\"),\"\")","v":""},{"$f":"IFERROR(IF(PERLIHATKANHARILIBUR,IF(INDEX(tblHolidays[],MATCH(DATE(CalYear-(DAY(C5)>15)+(ROW()>6),MONTH(C5),DAY(C5)),IF(PERLIHATKANPERINGATAN,tblHolidays[KOREKSI],tblHolidays[HARI]),0),6),INDEX(tblHolidays[],MATCH(DATE(CalYear-(DAY(C5)>15)+(ROW()>6),MONTH(C5),DAY(C5)),IF(PERLIHATKANPERINGATAN,tblHolidays[KOREKSI],tblHolidays[HARI]),0),2),\"\"),\"\"),\"\")","v":"Tahun Baru"},{"$f":"IFERROR(IF(PERLIHATKANHARILIBUR,IF(INDEX(tblHolidays[],MATCH(DATE(CalYear-(DAY(D5)>15)+(ROW()>6),MONTH(D5),DAY(D5)),IF(PERLIHATKANPERINGATAN,tblHolidays[KOREKSI],tblHolidays[HARI]),0),6),INDEX(tblHolidays[],MATCH(DATE(CalYear-(DAY(D5)>15)+(ROW()>6),MONTH(D5),DAY(D5)),IF(PERLIHATKANPERINGATAN,tblHolidays[KOREKSI],tblHolidays[HARI]),0),2),\"\"),\"\"),\"\")","v":""},{"$f":"IFERROR(IF(PERLIHATKANHARILIBUR,IF(INDEX(tblHolidays[],MATCH(DATE(CalYear-(DAY(E5)>15)+(ROW()>6),MONTH(E5),DAY(E5)),IF(PERLIHATKANPERINGATAN,tblHolidays[KOREKSI],tblHolidays[HARI]),0),6),INDEX(tblHolidays[],MATCH(DATE(CalYear-(DAY(E5)>15)+(ROW()>6),MONTH(E5),DAY(E5)),IF(PERLIHATKANPERINGATAN,tblHolidays[KOREKSI],tblHolidays[HARI]),0),2),\"\"),\"\"),\"\")","v":""},{"$f":"IFERROR(IF(PERLIHATKANHARILIBUR,IF(INDEX(tblHolidays[],MATCH(DATE(CalYear-(DAY(F5)>15)+(ROW()>6),MONTH(F5),DAY(F5)),IF(PERLIHATKANPERINGATAN,tblHolidays[KOREKSI],tblHolidays[HARI]),0),6),INDEX(tblHolidays[],MATCH(DATE(CalYear-(DAY(F5)>15)+(ROW()>6),MONTH(F5),DAY(F5)),IF(PERLIHATKANPERINGATAN,tblHolidays[KOREKSI],tblHolidays[HARI]),0),2),\"\"),\"\"),\"\")","v":""},{"$f":"IFERROR(IF(PERLIHATKANHARILIBUR,IF(INDEX(tblHolidays[],MATCH(DATE(CalYear-(DAY(G5)>15)+(ROW()>6),MONTH(G5),DAY(G5)),IF(PERLIHATKANPERINGATAN,tblHolidays[KOREKSI],tblHolidays[HARI]),0),6),INDEX(tblHolidays[],MATCH(DATE(CalYear-(DAY(G5)>15)+(ROW()>6),MONTH(G5),DAY(G5)),IF(PERLIHATKANPERINGATAN,tblHolidays[KOREKSI],tblHolidays[HARI]),0),2),\"\"),\"\"),\"\")","v":""},{"$f":"IFERROR(IF(PERLIHATKANHARILIBUR,IF(INDEX(tblHolidays[],MATCH(DATE(CalYear-(DAY(H5)>15)+(ROW()>6),MONTH(H5),DAY(H5)),IF(PERLIHATKANPERINGATAN,tblHolidays[KOREKSI],tblHolidays[HARI]),0),6),INDEX(tblHolidays[],MATCH(DATE(CalYear-(DAY(H5)>15)+(ROW()>6),MONTH(H5),DAY(H5)),IF(PERLIHATKANPERINGATAN,tblHolidays[KOREKSI],tblHolidays[HARI]),0),2),\"\"),\"\"),\"\")","v":""}]
[null,{"$f":"Hari+DATE(CalYear,1,1)-WEEKDAY(DATE(CalYear,1,1),(AWALMINGGU=\"SENIN\")+1)+8","v":"2018-01-07"},"2018-01-08","2018-01-09","2018-01-10","2018-01-11","2018-01-12","2018-01-13"]
[null,{"$f":"IFERROR(IF(PERLIHATKANHARILIBUR,IF(INDEX(tblHolidays[],MATCH(DATE(CalYear,MONTH(B7),DAY(B7)),IF(PERLIHATKANPERINGATAN,tblHolidays[KOREKSI],tblHolidays[HARI]),0),6),INDEX(tblHolidays[],MATCH(DATE(CalYear,MONTH(B7),DAY(B7)),IF(PERLIHATKANPERINGATAN,tblHolidays[KOREKSI],tblHolidays[HARI]),0),2),\"\"),\"\"),\"\")","v":""},{"$f":"IFERROR(IF(PERLIHATKANHARILIBUR,IF(INDEX(tblHolidays[],MATCH(DATE(CalYear,MONTH(C7),DAY(C7)),IF(PERLIHATKANPERINGATAN,tblHolidays[KOREKSI],tblHolidays[HARI]),0),6),INDEX(tblHolidays[],MATCH(DATE(CalYear,MONTH(C7),DAY(C7)),IF(PERLIHATKANPERINGATAN,tblHolidays[KOREKSI],tblHolidays[HARI]),0),2),\"\"),\"\"),\"\")","v":""},{"$f":"IFERROR(IF(PERLIHATKANHARILIBUR,IF(INDEX(tblHolidays[],MATCH(DATE(CalYear,MONTH(D7),DAY(D7)),IF(PERLIHATKANPERINGATAN,tblHolidays[KOREKSI],tblHolidays[HARI]),0),6),INDEX(tblHolidays[],MATCH(DATE(CalYear,MONTH(D7),DAY(D7)),IF(PERLIHATKANPERINGATAN,tblHolidays[KOREKSI],tblHolidays[HARI]),0),2),\"\"),\"\"),\"\")","v":""},{"$f":"IFERROR(IF(PERLIHATKANHARILIBUR,IF(INDEX(tblHolidays[],MATCH(DATE(CalYear,MONTH(E7),DAY(E7)),IF(PERLIHATKANPERINGATAN,tblHolidays[KOREKSI],tblHolidays[HARI]),0),6),INDEX(tblHolidays[],MATCH(DATE(CalYear,MONTH(E7),DAY(E7)),IF(PERLIHATKANPERINGATAN,tblHolidays[KOREKSI],tblHolidays[HARI]),0),2),\"\"),\"\"),\"\")","v":""},{"$f":"IFERROR(IF(PERLIHATKANHARILIBUR,IF(INDEX(tblHolidays[],MATCH(DATE(CalYear,MONTH(F7),DAY(F7)),IF(PERLIHATKANPERINGATAN,tblHolidays[KOREKSI],tblHolidays[HARI]),0),6),INDEX(tblHolidays[],MATCH(DATE(CalYear,MONTH(F7),DAY(F7)),IF(PERLIHATKANPERINGATAN,tblHolidays[KOREKSI],tblHolidays[HARI]),0),2),\"\"),\"\"),\"\")","v":""},{"$f":"IFERROR(IF(PERLIHATKANHARILIBUR,IF(INDEX(tblHolidays[],MATCH(DATE(CalYear,MONTH(G7),DAY(G7)),IF(PERLIHATKANPERINGATAN,tblHolidays[KOREKSI],tblHolidays[HARI]),0),6),INDEX(tblHolidays[],MATCH(DATE(CalYear,MONTH(G7),DAY(G7)),IF(PERLIHATKANPERINGATAN,tblHolidays[KOREKSI],tblHolidays[HARI]),0),2),\"\"),\"\"),\"\")","v":""},{"$f":"IFERROR(IF(PERLIHATKANHARILIBUR,IF(INDEX(tblHolidays[],MATCH(DATE(CalYear,MONTH(H7),DAY(H7)),IF(PERLIHATKANPERINGATAN,tblHolidays[KOREKSI],tblHolidays[HARI]),0),6),INDEX(tblHolidays[],MATCH(DATE(CalYear,MONTH(H7),DAY(H7)),IF(PERLIHATKANPERINGATAN,tblHolidays[KOREKSI],tblHolidays[HARI]),0),2),\"\"),\"\"),\"\")","v":""}]
[null,{"$f":"Hari+DATE(CalYear,1,1)-WEEKDAY(DATE(CalYear,1,1),(AWALMINGGU=\"SENIN\")+1)+15","v":"2018-01-14"},"2018-01-15","2018-01-16","2018-01-17","2018-01-18","2018-01-19","2018-01-20"]
[null,{"$f":"IFERROR(IF(PERLIHATKANHARILIBUR,IF(INDEX(tblHolidays[],MATCH(DATE(CalYear,MONTH(B9),DAY(B9)),IF(PERLIHATKANPERINGATAN,tblHolidays[KOREKSI],tblHolidays[HARI]),0),6),INDEX(tblHolidays[],MATCH(DATE(CalYear,MONTH(B9),DAY(B9)),IF(PERLIHATKANPERINGATAN,tblHolidays[KOREKSI],tblHolidays[HARI]),0),2),\"\"),\"\"),\"\")","v":""},{"$f":"IFERROR(IF(PERLIHATKANHARILIBUR,IF(INDEX(tblHolidays[],MATCH(DATE(CalYear,MONTH(C9),DAY(C9)),IF(PERLIHATKANPERINGATAN,tblHolidays[KOREKSI],tblHolidays[HARI]),0),6),INDEX(tblHolidays[],MATCH(DATE(CalYear,MONTH(C9),DAY(C9)),IF(PERLIHATKANPERINGATAN,tblHolidays[KOREKSI],tblHolidays[HARI]),0),2),\"\"),\"\"),\"\")","v":""},{"$f":"IFERROR(IF(PERLIHATKANHARILIBUR,IF(INDEX(tblHolidays[],MATCH(DATE(CalYear,MONTH(D9),DAY(D9)),IF(PERLIHATKANPERINGATAN,tblHolidays[KOREKSI],tblHolidays[HARI]),0),6),INDEX(tblHolidays[],MATCH(DATE(CalYear,MONTH(D9),DAY(D9)),IF(PERLIHATKANPERINGATAN,tblHolidays[KOREKSI],tblHolidays[HARI]),0),2),\"\"),\"\"),\"\")","v":""},{"$f":"IFERROR(IF(PERLIHATKANHARILIBUR,IF(INDEX(tblHolidays[],MATCH(DATE(CalYear,MONTH(E9),DAY(E9)),IF(PERLIHATKANPERINGATAN,tblHolidays[KOREKSI],tblHolidays[HARI]),0),6),INDEX(tblHolidays[],MATCH(DATE(CalYear,MONTH(E9),DAY(E9)),IF(PERLIHATKANPERINGATAN,tblHolidays[KOREKSI],tblHolidays[HARI]),0),2),\"\"),\"\"),\"\")","v":""},{"$f":"IFERROR(IF(PERLIHATKANHARILIBUR,IF(INDEX(tblHolidays[],MATCH(DATE(CalYear,MONTH(F9),DAY(F9)),IF(PERLIHATKANPERINGATAN,tblHolidays[KOREKSI],tblHolidays[HARI]),0),6),INDEX(tblHolidays[],MATCH(DATE(CalYear,MONTH(F9),DAY(F9)),IF(PERLIHATKANPERINGATAN,tblHolidays[KOREKSI],tblHolidays[HARI]),0),2),\"\"),\"\"),\"\")","v":""},{"$f":"IFERROR(IF(PERLIHATKANHARILIBUR,IF(INDEX(tblHolidays[],MATCH(DATE(CalYear,MONTH(G9),DAY(G9)),IF(PERLIHATKANPERINGATAN,tblHolidays[KOREKSI],tblHolidays[HARI]),0),6),INDEX(tblHolidays[],MATCH(DATE(CalYear,MONTH(G9),DAY(G9)),IF(PERLIHATKANPERINGATAN,tblHolidays[KOREKSI],tblHolidays[HARI]),0),2),\"\"),\"\"),\"\")","v":""},{"$f":"IFERROR(IF(PERLIHATKANHARILIBUR,IF(INDEX(tblHolidays[],MATCH(DATE(CalYear,MONTH(H9),DAY(H9)),IF(PERLIHATKANPERINGATAN,tblHolidays[KOREKSI],tblHolidays[HARI]),0),6),INDEX(tblHolidays[],MATCH(DATE(CalYear,MONTH(H9),DAY(H9)),IF(PERLIHATKANPERINGATAN,tblHolidays[KOREKSI],tblHolidays[HARI]),0),2),\"\"),\"\"),\"\")","v":""}]
[null,{"$f":"Hari+DATE(CalYear,1,1)-WEEKDAY(DATE(CalYear,1,1),(AWALMINGGU=\"SENIN\")+1)+22","v":"2018-01-21"},"2018-01-22","2018-01-23","2018-01-24","2018-01-25","2018-01-26","2018-01-27"]
[null,{"$f":"IFERROR(IF(PERLIHATKANHARILIBUR,IF(INDEX(tblHolidays[],MATCH(DATE(CalYear,MONTH(B11),DAY(B11)),IF(PERLIHATKANPERINGATAN,tblHolidays[KOREKSI],tblHolidays[HARI]),0),6),INDEX(tblHolidays[],MATCH(DATE(CalYear,MONTH(B11),DAY(B11)),IF(PERLIHATKANPERINGATAN,tblHolidays[KOREKSI],tblHolidays[HARI]),0),2),\"\"),\"\"),\"\")","v":""},{"$f":"IFERROR(IF(PERLIHATKANHARILIBUR,IF(INDEX(tblHolidays[],MATCH(DATE(CalYear,MONTH(C11),DAY(C11)),IF(PERLIHATKANPERINGATAN,tblHolidays[KOREKSI],tblHolidays[HARI]),0),6),INDEX(tblHolidays[],MATCH(DATE(CalYear,MONTH(C11),DAY(C11)),IF(PERLIHATKANPERINGATAN,tblHolidays[KOREKSI],tblHolidays[HARI]),0),2),\"\"),\"\"),\"\")","v":""},{"$f":"IFERROR(IF(PERLIHATKANHARILIBUR,IF(INDEX(tblHolidays[],MATCH(DATE(CalYear,MONTH(D11),DAY(D11)),IF(PERLIHATKANPERINGATAN,tblHolidays[KOREKSI],tblHolidays[HARI]),0),6),INDEX(tblHolidays[],MATCH(DATE(CalYear,MONTH(D11),DAY(D11)),IF(PERLIHATKANPERINGATAN,tblHolidays[KOREKSI],tblHolidays[HARI]),0),2),\"\"),\"\"),\"\")","v":""},{"$f":"IFERROR(IF(PERLIHATKANHARILIBUR,IF(INDEX(tblHolidays[],MATCH(DATE(CalYear,MONTH(E11),DAY(E11)),IF(PERLIHATKANPERINGATAN,tblHolidays[KOREKSI],tblHolidays[HARI]),0),6),INDEX(tblHolidays[],MATCH(DATE(CalYear,MONTH(E11),DAY(E11)),IF(PERLIHATKANPERINGATAN,tblHolidays[KOREKSI],tblHolidays[HARI]),0),2),\"\"),\"\"),\"\")","v":""},{"$f":"IFERROR(IF(PERLIHATKANHARILIBUR,IF(INDEX(tblHolidays[],MATCH(DATE(CalYear,MONTH(F11),DAY(F11)),IF(PERLIHATKANPERINGATAN,tblHolidays[KOREKSI],tblHolidays[HARI]),0),6),INDEX(tblHolidays[],MATCH(DATE(CalYear,MONTH(F11),DAY(F11)),IF(PERLIHATKANPERINGATAN,tblHolidays[KOREKSI],tblHolidays[HARI]),0),2),\"\"),\"\"),\"\")","v":""},{"$f":"IFERROR(IF(PERLIHATKANHARILIBUR,IF(INDEX(tblHolidays[],MATCH(DATE(CalYear,MONTH(G11),DAY(G11)),IF(PERLIHATKANPERINGATAN,tblHolidays[KOREKSI],tblHolidays[HARI]),0),6),INDEX(tblHolidays[],MATCH(DATE(CalYear,MONTH(G11),DAY(G11)),IF(PERLIHATKANPERINGATAN,tblHolidays[KOREKSI],tblHolidays[HARI]),0),2),\"\"),\"\"),\"\")","v":""},{"$f":"IFERROR(IF(PERLIHATKANHARILIBUR,IF(INDEX(tblHolidays[],MATCH(DATE(CalYear,MONTH(H11),DAY(H11)),IF(PERLIHATKANPERINGATAN,tblHolidays[KOREKSI],tblHolidays[HARI]),0),6),INDEX(tblHolidays[],MATCH(DATE(CalYear,MONTH(H11),DAY(H11)),IF(PERLIHATKANPERINGATAN,tblHolidays[KOREKSI],tblHolidays[HARI]),0),2),\"\"),\"\"),\"\")","v":""}]
[null,{"$f":"Hari+DATE(CalYear,1,1)-WEEKDAY(DATE(CalYear,1,1),(AWALMINGGU=\"SENIN\")+1)+29","v":"2018-01-28"},"2018-01-29","2018-01-30","2018-01-31","2018-02-01","2018-02-02","2018-02-03"]
[null,{"$f":"IFERROR(IF(PERLIHATKANHARILIBUR,IF(INDEX(tblHolidays[],MATCH(DATE(CalYear,MONTH(B13),DAY(B13)),IF(PERLIHATKANPERINGATAN,tblHolidays[KOREKSI],tblHolidays[HARI]),0),6),INDEX(tblHolidays[],MATCH(DATE(CalYear,MONTH(B13),DAY(B13)),IF(PERLIHATKANPERINGATAN,tblHolidays[KOREKSI],tblHolidays[HARI]),0),2),\"\"),\"\"),\"\")","v":""},{"$f":"IFERROR(IF(PERLIHATKANHARILIBUR,IF(INDEX(tblHolidays[],MATCH(DATE(CalYear,MONTH(C13),DAY(C13)),IF(PERLIHATKANPERINGATAN,tblHolidays[KOREKSI],tblHolidays[HARI]),0),6),INDEX(tblHolidays[],MATCH(DATE(CalYear,MONTH(C13),DAY(C13)),IF(PERLIHATKANPERINGATAN,tblHolidays[KOREKSI],tblHolidays[HARI]),0),2),\"\"),\"\"),\"\")","v":""},{"$f":"IFERROR(IF(PERLIHATKANHARILIBUR,IF(INDEX(tblHolidays[],MATCH(DATE(CalYear,MONTH(D13),DAY(D13)),IF(PERLIHATKANPERINGATAN,tblHolidays[KOREKSI],tblHolidays[HARI]),0),6),INDEX(tblHolidays[],MATCH(DATE(CalYear,MONTH(D13),DAY(D13)),IF(PERLIHATKANPERINGATAN,tblHolidays[KOREKSI],tblHolidays[HARI]),0),2),\"\"),\"\"),\"\")","v":""},{"$f":"IFERROR(IF(PERLIHATKANHARILIBUR,IF(INDEX(tblHolidays[],MATCH(DATE(CalYear,MONTH(E13),DAY(E13)),IF(PERLIHATKANPERINGATAN,tblHolidays[KOREKSI],tblHolidays[HARI]),0),6),INDEX(tblHolidays[],MATCH(DATE(CalYear,MONTH(E13),DAY(E13)),IF(PERLIHATKANPERINGATAN,tblHolidays[KOREKSI],tblHolidays[HARI]),0),2),\"\"),\"\"),\"\")","v":""},{"$f":"IFERROR(IF(PERLIHATKANHARILIBUR,IF(INDEX(tblHolidays[],MATCH(DATE(CalYear,MONTH(F13),DAY(F13)),IF(PERLIHATKANPERINGATAN,tblHolidays[KOREKSI],tblHolidays[HARI]),0),6),INDEX(tblHolidays[],MATCH(DATE(CalYear,MONTH(F13),DAY(F13)),IF(PERLIHATKANPERINGATAN,tblHolidays[KOREKSI],tblHolidays[HARI]),0),2),\"\"),\"\"),\"\")","v":""},{"$f":"IFERROR(IF(PERLIHATKANHARILIBUR,IF(INDEX(tblHolidays[],MATCH(DATE(CalYear,MONTH(G13),DAY(G13)),IF(PERLIHATKANPERINGATAN,tblHolidays[KOREKSI],tblHolidays[HARI]),0),6),INDEX(tblHolidays[],MATCH(DATE(CalYear,MONTH(G13),DAY(G13)),IF(PERLIHATKANPERINGATAN,tblHolidays[KOREKSI],tblHolidays[HARI]),0),2),\"\"),\"\"),\"\")","v":""},{"$f":"IFERROR(IF(PERLIHATKANHARILIBUR,IF(INDEX(tblHolidays[],MATCH(DATE(CalYear,MONTH(H13),DAY(H13)),IF(PERLIHATKANPERINGATAN,tblHolidays[KOREKSI],tblHolidays[HARI]),0),6),INDEX(tblHolidays[],MATCH(DATE(CalYear,MONTH(H13),DAY(H13)),IF(PERLIHATKANPERINGATAN,tblHolidays[KOREKSI],tblHolidays[HARI]),0),2),\"\"),\"\"),\"\")","v":""}]
[null,{"$f":"Hari+DATE(CalYear,1,1)-WEEKDAY(DATE(CalYear,1,1),(AWALMINGGU=\"SENIN\")+1)+36","v":"2018-02-04"},"2018-02-05","CATATAN"]
[null,{"$f":"IFERROR(IF(PERLIHATKANHARILIBUR,IF(INDEX(tblHolidays[],MATCH(DATE(CalYear,MONTH(B15),DAY(B15)),IF(PERLIHATKANPERINGATAN,tblHolidays[KOREKSI],tblHolidays[HARI]),0),6),INDEX(tblHolidays[],MATCH(DATE(CalYear,MONTH(B15),DAY(B15)),IF(PERLIHATKANPERINGATAN,tblHolidays[KOREKSI],tblHolidays[HARI]),0),2),\"\"),\"\"),\"\")","v":""},{"$f":"IFERROR(IF(PERLIHATKANHARILIBUR,IF(INDEX(tblHolidays[],MATCH(DATE(CalYear,MONTH(C15),DAY(C15)),IF(PERLIHATKANPERINGATAN,tblHolidays[KOREKSI],tblHolidays[HARI]),0),6),INDEX(tblHolidays[],MATCH(DATE(CalYear,MONTH(C15),DAY(C15)),IF(PERLIHATKANPERINGATAN,tblHolidays[KOREKSI],tblHolidays[HARI]),0),2),\"\"),\"\"),\"\")","v":""}]

{"sheet":"Februari","index":2,"n_rows":16,"n_cols":8,"rows_kept":16,"merged":[[1,1,1,3],[14,3,14,7],[15,3,15,7],[16,1,16,7]]}
[]
[null,{"$f":"B9","v":"2018-02-11"}]
[]
[null,{"$f":"AWALMINGGU","v":"MINGGU"},{"$f":"UPPER(TEXT(C5,\"dddd\"))","v":"SENIN"},"SELASA","RABU","KAMIS","JUMAT","SABTU"]
[null,{"$f":"Hari+DATE(CalYear,2,1)-WEEKDAY(DATE(CalYear,2,1),(AWALMINGGU=\"SENIN\")+1)+1","v":"2018-01-28"},"2018-01-29","2018-01-30","2018-01-31","2018-02-01","2018-02-02","2018-02-03"]
[null,{"$f":"IFERROR(IF(PERLIHATKANHARILIBUR,IF(INDEX(tblHolidays[],MATCH(DATE(CalYear-(DAY(B5)>15)+(ROW()>6),MONTH(B5),DAY(B5)),IF(PERLIHATKANPERINGATAN,tblHolidays[KOREKSI],tblHolidays[HARI]),0),6),INDEX(tblHolidays[],MATCH(DATE(CalYear-(DAY(B5)>15)+(ROW()>6),MONTH(B5),DAY(B5)),IF(PERLIHATKANPERINGATAN,tblHolidays[KOREKSI],tblHolidays[HARI]),0),2),\"\"),\"\"),\"\")","v":""},{"$f":"IFERROR(IF(PERLIHATKANHARILIBUR,IF(INDEX(tblHolidays[],MATCH(DATE(CalYear-(DAY(C5)>15)+(ROW()>6),MONTH(C5),DAY(C5)),IF(PERLIHATKANPERINGATAN,tblHolidays[KOREKSI],tblHolidays[HARI]),0),6),INDEX(tblHolidays[],MATCH(DATE(CalYear-(DAY(C5)>15)+(ROW()>6),MONTH(C5),DAY(C5)),IF(PERLIHATKANPERINGATAN,tblHolidays[KOREKSI],tblHolidays[HARI]),0),2),\"\"),\"\"),\"\")","v":""},{"$f":"IFERROR(IF(PERLIHATKANHARILIBUR,IF(INDEX(tblHolidays[],MATCH(DATE(CalYear-(DAY(D5)>15)+(ROW()>6),MONTH(D5),DAY(D5)),IF(PERLIHATKANPERINGATAN,tblHolidays[KOREKSI],tblHolidays[HARI]),0),6),INDEX(tblHolidays[],MATCH(DATE(CalYear-(DAY(D5)>15)+(ROW()>6),MONTH(D5),DAY(D5)),IF(PERLIHATKANPERINGATAN,tblHolidays[KOREKSI],tblHolidays[HARI]),0),2),\"\"),\"\"),\"\")","v":""},{"$f":"IFERROR(IF(PERLIHATKANHARILIBUR,IF(INDEX(tblHolidays[],MATCH(DATE(CalYear-(DAY(E5)>15)+(ROW()>6),MONTH(E5),DAY(E5)),IF(PERLIHATKANPERINGATAN,tblHolidays[KOREKSI],tblHolidays[HARI]),0),6),INDEX(tblHolidays[],MATCH(DATE(CalYear-(DAY(E5)>15)+(ROW()>6),MONTH(E5),DAY(E5)),IF(PERLIHATKANPERINGATAN,tblHolidays[KOREKSI],tblHolidays[HARI]),0),2),\"\"),\"\"),\"\")","v":""},{"$f":"IFERROR(IF(PERLIHATKANHARILIBUR,IF(INDEX(tblHolidays[],MATCH(DATE(CalYear-(DAY(F5)>15)+(ROW()>6),MONTH(F5),DAY(F5)),IF(PERLIHATKANPERINGATAN,tblHolidays[KOREKSI],tblHolidays[HARI]),0),6),INDEX(tblHolidays[],MATCH(DATE(CalYear-(DAY(F5)>15)+(ROW()>6),MONTH(F5),DAY(F5)),IF(PERLIHATKANPERINGATAN,tblHolidays[KOREKSI],tblHolidays[HARI]),0),2),\"\"),\"\"),\"\")","v":""},{"$f":"IFERROR(IF(PERLIHATKANHARILIBUR,IF(INDEX(tblHolidays[],MATCH(DATE(CalYear-(DAY(G5)>15)+(ROW()>6),MONTH(G5),DAY(G5)),IF(PERLIHATKANPERINGATAN,tblHolidays[KOREKSI],tblHolidays[HARI]),0),6),INDEX(tblHolidays[],MATCH(DATE(CalYear-(DAY(G5)>15)+(ROW()>6),MONTH(G5),DAY(G5)),IF(PERLIHATKANPERINGATAN,tblHolidays[KOREKSI],tblHolidays[HARI]),0),2),\"\"),\"\"),\"\")","v":""},{"$f":"IFERROR(IF(PERLIHATKANHARILIBUR,IF(INDEX(tblHolidays[],MATCH(DATE(CalYear-(DAY(H5)>15)+(ROW()>6),MONTH(H5),DAY(H5)),IF(PERLIHATKANPERINGATAN,tblHolidays[KOREKSI],tblHolidays[HARI]),0),6),INDEX(tblHolidays[],MATCH(DATE(CalYear-(DAY(H5)>15)+(ROW()>6),MONTH(H5),DAY(H5)),IF(PERLIHATKANPERINGATAN,tblHolidays[KOREKSI],tblHolidays[HARI]),0),2),\"\"),\"\"),\"\")","v":""}]
[null,{"$f":"Hari+DATE(CalYear,2,1)-WEEKDAY(DATE(CalYear,2,1),(AWALMINGGU=\"SENIN\")+1)+8","v":"2018-02-04"},"2018-02-05","2018-02-06","2018-02-07","2018-02-08","2018-02-09","2018-02-10"]
[null,{"$f":"IFERROR(IF(PERLIHATKANHARILIBUR,IF(INDEX(tblHolidays[],MATCH(DATE(CalYear,MONTH(B7),DAY(B7)),IF(PERLIHATKANPERINGATAN,tblHolidays[KOREKSI],tblHolidays[HARI]),0),6),INDEX(tblHolidays[],MATCH(DATE(CalYear,MONTH(B7),DAY(B7)),IF(PERLIHATKANPERINGATAN,tblHolidays[KOREKSI],tblHolidays[HARI]),0),2),\"\"),\"\"),\"\")","v":""},{"$f":"IFERROR(IF(PERLIHATKANHARILIBUR,IF(INDEX(tblHolidays[],MATCH(DATE(CalYear,MONTH(C7),DAY(C7)),IF(PERLIHATKANPERINGATAN,tblHolidays[KOREKSI],tblHolidays[HARI]),0),6),INDEX(tblHolidays[],MATCH(DATE(CalYear,MONTH(C7),DAY(C7)),IF(PERLIHATKANPERINGATAN,tblHolidays[KOREKSI],tblHolidays[HARI]),0),2),\"\"),\"\"),\"\")","v":""},{"$f":"IFERROR(IF(PERLIHATKANHARILIBUR,IF(INDEX(tblHolidays[],MATCH(DATE(CalYear,MONTH(D7),DAY(D7)),IF(PERLIHATKANPERINGATAN,tblHolidays[KOREKSI],tblHolidays[HARI]),0),6),INDEX(tblHolidays[],MATCH(DATE(CalYear,MONTH(D7),DAY(D7)),IF(PERLIHATKANPERINGATAN,tblHolidays[KOREKSI],tblHolidays[HARI]),0),2),\"\"),\"\"),\"\")","v":""},{"$f":"IFERROR(IF(PERLIHATKANHARILIBUR,IF(INDEX(tblHolidays[],MATCH(DATE(CalYear,MONTH(E7),DAY(E7)),IF(PERLIHATKANPERINGATAN,tblHolidays[KOREKSI],tblHolidays[HARI]),0),6),INDEX(tblHolidays[],MATCH(DATE(CalYear,MONTH(E7),DAY(E7)),IF(PERLIHATKANPERINGATAN,tblHolidays[KOREKSI],tblHolidays[HARI]),0),2),\"\"),\"\"),\"\")","v":""},{"$f":"IFERROR(IF(PERLIHATKANHARILIBUR,IF(INDEX(tblHolidays[],MATCH(DATE(CalYear,MONTH(F7),DAY(F7)),IF(PERLIHATKANPERINGATAN,tblHolidays[KOREKSI],tblHolidays[HARI]),0),6),INDEX(tblHolidays[],MATCH(DATE(CalYear,MONTH(F7),DAY(F7)),IF(PERLIHATKANPERINGATAN,tblHolidays[KOREKSI],tblHolidays[HARI]),0),2),\"\"),\"\"),\"\")","v":""},{"$f":"IFERROR(IF(PERLIHATKANHARILIBUR,IF(INDEX(tblHolidays[],MATCH(DATE(CalYear,MONTH(G7),DAY(G7)),IF(PERLIHATKANPERINGATAN,tblHolidays[KOREKSI],tblHolidays[HARI]),0),6),INDEX(tblHolidays[],MATCH(DATE(CalYear,MONTH(G7),DAY(G7)),IF(PERLIHATKANPERINGATAN,tblHolidays[KOREKSI],tblHolidays[HARI]),0),2),\"\"),\"\"),\"\")","v":""},{"$f":"IFERROR(IF(PERLIHATKANHARILIBUR,IF(INDEX(tblHolidays[],MATCH(DATE(CalYear,MONTH(H7),DAY(H7)),IF(PERLIHATKANPERINGATAN,tblHolidays[KOREKSI],tblHolidays[HARI]),0),6),INDEX(tblHolidays[],MATCH(DATE(CalYear,MONTH(H7),DAY(H7)),IF(PERLIHATKANPERINGATAN,tblHolidays[KOREKSI],tblHolidays[HARI]),0),2),\"\"),\"\"),\"\")","v":""}]
[null,{"$f":"Hari+DATE(CalYear,2,1)-WEEKDAY(DATE(CalYear,2,1),(AWALMINGGU=\"SENIN\")+1)+15","v":"2018-02-11"},"2018-02-12","2018-02-13","2018-02-14","2018-02-15","2018-02-16","2018-02-17"]
[null,{"$f":"IFERROR(IF(PERLIHATKANHARILIBUR,IF(INDEX(tblHolidays[],MATCH(DATE(CalYear,MONTH(B9),DAY(B9)),IF(PERLIHATKANPERINGATAN,tblHolidays[KOREKSI],tblHolidays[HARI]),0),6),INDEX(tblHolidays[],MATCH(DATE(CalYear,MONTH(B9),DAY(B9)),IF(PERLIHATKANPERINGATAN,tblHolidays[KOREKSI],tblHolidays[HARI]),0),2),\"\"),\"\"),\"\")","v":""},{"$f":"IFERROR(IF(PERLIHATKANHARILIBUR,IF(INDEX(tblHolidays[],MATCH(DATE(CalYear,MONTH(C9),DAY(C9)),IF(PERLIHATKANPERINGATAN,tblHolidays[KOREKSI],tblHolidays[HARI]),0),6),INDEX(tblHolidays[],MATCH(DATE(CalYear,MONTH(C9),DAY(C9)),IF(PERLIHATKANPERINGATAN,tblHolidays[KOREKSI],tblHolidays[HARI]),0),2),\"\"),\"\"),\"\")","v":""},{"$f":"IFERROR(IF(PERLIHATKANHARILIBUR,IF(INDEX(tblHolidays[],MATCH(DATE(CalYear,MONTH(D9),DAY(D9)),IF(PERLIHATKANPERINGATAN,tblHolidays[KOREKSI],tblHolidays[HARI]),0),6),INDEX(tblHolidays[],MATCH(DATE(CalYear,MONTH(D9),DAY(D9)),IF(PERLIHATKANPERINGATAN,tblHolidays[KOREKSI],tblHolidays[HARI]),0),2),\"\"),\"\"),\"\")","v":""},{"$f":"IFERROR(IF(PERLIHATKANHARILIBUR,IF(INDEX(tblHolidays[],MATCH(DATE(CalYear,MONTH(E9),DAY(E9)),IF(PERLIHATKANPERINGATAN,tblHolidays[KOREKSI],tblHolidays[HARI]),0),6),INDEX(tblHolidays[],MATCH(DATE(CalYear,MONTH(E9),DAY(E9)),IF(PERLIHATKANPERINGATAN,tblHolidays[KOREKSI],tblHolidays[HARI]),0),2),\"\"),\"\"),\"\")","v":""},{"$f":"IFERROR(IF(PERLIHATKANHARILIBUR,IF(INDEX(tblHolidays[],MATCH(DATE(CalYear,MONTH(F9),DAY(F9)),IF(PERLIHATKANPERINGATAN,tblHolidays[KOREKSI],tblHolidays[HARI]),0),6),INDEX(tblHolidays[],MATCH(DATE(CalYear,MONTH(F9),DAY(F9)),IF(PERLIHATKANPERINGATAN,tblHolidays[KOREKSI],tblHolidays[HARI]),0),2),\"\"),\"\"),\"\")","v":""},{"$f":"IFERROR(IF(PERLIHATKANHARILIBUR,IF(INDEX(tblHolidays[],MATCH(DATE(CalYear,MONTH(G9),DAY(G9)),IF(PERLIHATKANPERINGATAN,tblHolidays[KOREKSI],tblHolidays[HARI]),0),6),INDEX(tblHolidays[],MATCH(DATE(CalYear,MONTH(G9),DAY(G9)),IF(PERLIHATKANPERINGATAN,tblHolidays[KOREKSI],tblHolidays[HARI]),0),2),\"\"),\"\"),\"\")","v":""},{"$f":"IFERROR(IF(PERLIHATKANHARILIBUR,IF(INDEX(tblHolidays[],MATCH(DATE(CalYear,MONTH(H9),DAY(H9)),IF(PERLIHATKANPERINGATAN,tblHolidays[KOREKSI],tblHolidays[HARI]),0),6),INDEX(tblHolidays[],MATCH(DATE(CalYear,MONTH(H9),DAY(H9)),IF(PERLIHATKANPERINGATAN,tblHolidays[KOREKSI],tblHolidays[HARI]),0),2),\"\"),\"\"),\"\")","v":""}]
[null,{"$f":"Hari+DATE(CalYear,2,1)-WEEKDAY(DATE(CalYear,2,1),(AWALMINGGU=\"SENIN\")+1)+22","v":"2018-02-18"},"2018-02-19","2018-02-20","2018-02-21","2018-02-22","2018-02-23","2018-02-24"]
[null,{"$f":"IFERROR(IF(PERLIHATKANHARILIBUR,IF(INDEX(tblHolidays[],MATCH(DATE(CalYear,MONTH(B11),DAY(B11)),IF(PERLIHATKANPERINGATAN,tblHolidays[KOREKSI],tblHolidays[HARI]),0),6),INDEX(tblHolidays[],MATCH(DATE(CalYear,MONTH(B11),DAY(B11)),IF(PERLIHATKANPERINGATAN,tblHolidays[KOREKSI],tblHolidays[HARI]),0),2),\"\"),\"\"),\"\")","v":""},{"$f":"IFERROR(IF(PERLIHATKANHARILIBUR,IF(INDEX(tblHolidays[],MATCH(DATE(CalYear,MONTH(C11),DAY(C11)),IF(PERLIHATKANPERINGATAN,tblHolidays[KOREKSI],tblHolidays[HARI]),0),6),INDEX(tblHolidays[],MATCH(DATE(CalYear,MONTH(C11),DAY(C11)),IF(PERLIHATKANPERINGATAN,tblHolidays[KOREKSI],tblHolidays[HARI]),0),2),\"\"),\"\"),\"\")","v":"Wafat Yesus Kristus"},{"$f":"IFERROR(IF(PERLIHATKANHARILIBUR,IF(INDEX(tblHolidays[],MATCH(DATE(CalYear,MONTH(D11),DAY(D11)),IF(PERLIHATKANPERINGATAN,tblHolidays[KOREKSI],tblHolidays[HARI]),0),6),INDEX(tblHolidays[],MATCH(DATE(CalYear,MONTH(D11),DAY(D11)),IF(PERLIHATKANPERINGATAN,tblHolidays[KOREKSI],tblHolidays[HARI]),0),2),\"\"),\"\"),\"\")","v":""},{"$f":"IFERROR(IF(PERLIHATKANHARILIBUR,IF(INDEX(tblHolidays[],MATCH(DATE(CalYear,MONTH(E11),DAY(E11)),IF(PERLIHATKANPERINGATAN,tblHolidays[KOREKSI],tblHolidays[HARI]),0),6),INDEX(tblHolidays[],MATCH(DATE(CalYear,MONTH(E11),DAY(E11)),IF(PERLIHATKANPERINGATAN,tblHolidays[KOREKSI],tblHolidays[HARI]),0),2),\"\"),\"\"),\"\")","v":""},{"$f":"IFERROR(IF(PERLIHATKANHARILIBUR,IF(INDEX(tblHolidays[],MATCH(DATE(CalYear,MONTH(F11),DAY(F11)),IF(PERLIHATKANPERINGATAN,tblHolidays[KOREKSI],tblHolidays[HARI]),0),6),INDEX(tblHolidays[],MATCH(DATE(CalYear,MONTH(F11),DAY(F11)),IF(PERLIHATKANPERINGATAN,tblHolidays[KOREKSI],tblHolidays[HARI]),0),2),\"\"),\"\"),\"\")","v":""},{"$f":"IFERROR(IF(PERLIHATKANHARILIBUR,IF(INDEX(tblHolidays[],MATCH(DATE(CalYear,MONTH(G11),DAY(G11)),IF(PERLIHATKANPERINGATAN,tblHolidays[KOREKSI],tblHolidays[HARI]),0),6),INDEX(tblHolidays[],MATCH(DATE(CalYear,MONTH(G11),DAY(G11)),IF(PERLIHATKANPERINGATAN,tblHolidays[KOREKSI],tblHolidays[HARI]),0),2),\"\"),\"\"),\"\")","v":""},{"$f":"IFERROR(IF(PERLIHATKANHARILIBUR,IF(INDEX(tblHolidays[],MATCH(DATE(CalYear,MONTH(H11),DAY(H11)),IF(PERLIHATKANPERINGATAN,tblHolidays[KOREKSI],tblHolidays[HARI]),0),6),INDEX(tblHolidays[],MATCH(DATE(CalYear,MONTH(H11),DAY(H11)),IF(PERLIHATKANPERINGATAN,tblHolidays[KOREKSI],tblHolidays[HARI]),0),2),\"\"),\"\"),\"\")","v":""}]
[null,{"$f":"Hari+DATE(CalYear,2,1)-WEEKDAY(DATE(CalYear,2,1),(AWALMINGGU=\"SENIN\")+1)+29","v":"2018-02-25"},"2018-02-26","2018-02-27","2018-02-28","2018-03-01","2018-03-02","2018-03-03"]
[null,{"$f":"IFERROR(IF(PERLIHATKANHARILIBUR,IF(INDEX(tblHolidays[],MATCH(DATE(CalYear,MONTH(B13),DAY(B13)),IF(PERLIHATKANPERINGATAN,tblHolidays[KOREKSI],tblHolidays[HARI]),0),6),INDEX(tblHolidays[],MATCH(DATE(CalYear,MONTH(B13),DAY(B13)),IF(PERLIHATKANPERINGATAN,tblHolidays[KOREKSI],tblHolidays[HARI]),0),2),\"\"),\"\"),\"\")","v":""},{"$f":"IFERROR(IF(PERLIHATKANHARILIBUR,IF(INDEX(tblHolidays[],MATCH(DATE(CalYear,MONTH(C13),DAY(C13)),IF(PERLIHATKANPERINGATAN,tblHolidays[KOREKSI],tblHolidays[HARI]),0),6),INDEX(tblHolidays[],MATCH(DATE(CalYear,MONTH(C13),DAY(C13)),IF(PERLIHATKANPERINGATAN,tblHolidays[KOREKSI],tblHolidays[HARI]),0),2),\"\"),\"\"),\"\")","v":""},{"$f":"IFERROR(IF(PERLIHATKANHARILIBUR,IF(INDEX(tblHolidays[],MATCH(DATE(CalYear,MONTH(D13),DAY(D13)),IF(PERLIHATKANPERINGATAN,tblHolidays[KOREKSI],tblHolidays[HARI]),0),6),INDEX(tblHolidays[],MATCH(DATE(CalYear,MONTH(D13),DAY(D13)),IF(PERLIHATKANPERINGATAN,tblHolidays[KOREKSI],tblHolidays[HARI]),0),2),\"\"),\"\"),\"\")","v":""},{"$f":"IFERROR(IF(PERLIHATKANHARILIBUR,IF(INDEX(tblHolidays[],MATCH(DATE(CalYear,MONTH(E13),DAY(E13)),IF(PERLIHATKANPERINGATAN,tblHolidays[KOREKSI],tblHolidays[HARI]),0),6),INDEX(tblHolidays[],MATCH(DATE(CalYear,MONTH(E13),DAY(E13)),IF(PERLIHATKANPERINGATAN,tblHolidays[KOREKSI],tblHolidays[HARI]),0),2),\"\"),\"\"),\"\")","v":""},{"$f":"IFERROR(IF(PERLIHATKANHARILIBUR,IF(INDEX(tblHolidays[],MATCH(DATE(CalYear,MONTH(F13),DAY(F13)),IF(PERLIHATKANPERINGATAN,tblHolidays[KOREKSI],tblHolidays[HARI]),0),6),INDEX(tblHolidays[],MATCH(DATE(CalYear,MONTH(F13),DAY(F13)),IF(PERLIHATKANPERINGATAN,tblHolidays[KOREKSI],tblHolidays[HARI]),0),2),\"\"),\"\"),\"\")","v":""},{"$f":"IFERROR(IF(PERLIHATKANHARILIBUR,IF(INDEX(tblHolidays[],MATCH(DATE(CalYear,MONTH(G13),DAY(G13)),IF(PERLIHATKANPERINGATAN,tblHolidays[KOREKSI],tblHolidays[HARI]),0),6),INDEX(tblHolidays[],MATCH(DATE(CalYear,MONTH(G13),DAY(G13)),IF(PERLIHATKANPERINGATAN,tblHolidays[KOREKSI],tblHolidays[HARI]),0),2),\"\"),\"\"),\"\")","v":""},{"$f":"IFERROR(IF(PERLIHATKANHARILIBUR,IF(INDEX(tblHolidays[],MATCH(DATE(CalYear,MONTH(H13),DAY(H13)),IF(PERLIHATKANPERINGATAN,tblHolidays[KOREKSI],tblHolidays[HARI]),0),6),INDEX(tblHolidays[],MATCH(DATE(CalYear,MONTH(H13),DAY(H13)),IF(PERLIHATKANPERINGATAN,tblHolidays[KOREKSI],tblHolidays[HARI]),0),2),\"\"),\"\"),\"\")","v":""}]
[null,{"$f":"Hari+DATE(CalYear,2,1)-WEEKDAY(DATE(CalYear,2,1),(AWALMINGGU=\"SENIN\")+1)+36","v":"2018-03-04"},"2018-03-05","CATATAN"]
[null,{"$f":"IFERROR(IF(PERLIHATKANHARILIBUR,IF(INDEX(tblHolidays[],MATCH(DATE(CalYear,MONTH(B15),DAY(B15)),IF(PERLIHATKANPERINGATAN,tblHolidays[KOREKSI],tblHolidays[HARI]),0),6),INDEX(tblHolidays[],MATCH(DATE(CalYear,MONTH(B15),DAY(B15)),IF(PERLIHATKANPERINGATAN,tblHolidays[KOREKSI],tblHolidays[HARI]),0),2),\"\"),\"\"),\"\")","v":""},{"$f":"IFERROR(IF(PERLIHATKANHARILIBUR,IF(INDEX(tblHolidays[],MATCH(DATE(CalYear,MONTH(C15),DAY(C15)),IF(PERLIHATKANPERINGATAN,tblHolidays[KOREKSI],tblHolidays[HARI]),0),6),INDEX(tblHolidays[],MATCH(DATE(CalYear,MONTH(C15),DAY(C15)),IF(PERLIHATKANPERINGATAN,tblHolidays[KOREKSI],tblHolidays[HARI]),0),2),\"\"),\"\"),\"\")","v":""}]

{"sheet":"Maret","index":3,"n_rows":16,"n_cols":8,"rows_kept":16,"merged":[[1,1,1,3],[14,3,14,7],[15,3,15,7],[16,1,16,7]]}
[]
[null,{"$f":"B9","v":"2018-03-11"}]
[]
[null,{"$f":"AWALMINGGU","v":"MINGGU"},{"$f":"UPPER(TEXT(C5,\"dddd\"))","v":"SENIN"},"SELASA","RABU","KAMIS","JUMAT","SABTU"]
[null,{"$f":"Hari+DATE(CalYear,3,1)-WEEKDAY(DATE(CalYear,3,1),(AWALMINGGU=\"SENIN\")+1)+1","v":"2018-02-25"},"2018-02-26","2018-02-27","2018-02-28","2018-03-01","2018-03-02","2018-03-03"]
[null,{"$f":"IFERROR(IF(PERLIHATKANHARILIBUR,IF(INDEX(tblHolidays[],MATCH(DATE(CalYear-(DAY(B5)>15)+(ROW()>6),MONTH(B5),DAY(B5)),IF(PERLIHATKANPERINGATAN,tblHolidays[KOREKSI],tblHolidays[HARI]),0),6),INDEX(tblHolidays[],MATCH(DATE(CalYear-(DAY(B5)>15)+(ROW()>6),MONTH(B5),DAY(B5)),IF(PERLIHATKANPERINGATAN,tblHolidays[KOREKSI],tblHolidays[HARI]),0),2),\"\"),\"\"),\"\")","v":""},{"$f":"IFERROR(IF(PERLIHATKANHARILIBUR,IF(INDEX(tblHolidays[],MATCH(DATE(CalYear-(DAY(C5)>15)+(ROW()>6),MONTH(C5),DAY(C5)),IF(PERLIHATKANPERINGATAN,tblHolidays[KOREKSI],tblHolidays[HARI]),0),6),INDEX(tblHolidays[],MATCH(DATE(CalYear-(DAY(C5)>15)+(ROW()>6),MONTH(C5),DAY(C5)),IF(PERLIHATKANPERINGATAN,tblHolidays[KOREKSI],tblHolidays[HARI]),0),2),\"\"),\"\"),\"\")","v":""},{"$f":"IFERROR(IF(PERLIHATKANHARILIBUR,IF(INDEX(tblHolidays[],MATCH(DATE(CalYear-(DAY(D5)>15)+(ROW()>6),MONTH(D5),DAY(D5)),IF(PERLIHATKANPERINGATAN,tblHolidays[KOREKSI],tblHolidays[HARI]),0),6),INDEX(tblHolidays[],MATCH(DATE(CalYear-(DAY(D5)>15)+(ROW()>6),MONTH(D5),DAY(D5)),IF(PERLIHATKANPERINGATAN,tblHolidays[KOREKSI],tblHolidays[HARI]),0),2),\"\"),\"\"),\"\")","v":""},{"$f":"IFERROR(IF(PERLIHATKANHARILIBUR,IF(INDEX(tblHolidays[],MATCH(DATE(CalYear-(DAY(E5)>15)+(ROW()>6),MONTH(E5),DAY(E5)),IF(PERLIHATKANPERINGATAN,tblHolidays[KOREKSI],tblHolidays[HARI]),0),6),INDEX(tblHolidays[],MATCH(DATE(CalYear-(DAY(E5)>15)+(ROW()>6),MONTH(E5),DAY(E5)),IF(PERLIHATKANPERINGATAN,tblHolidays[KOREKSI],tblHolidays[HARI]),0),2),\"\"),\"\"),\"\")","v":""},{"$f":"IFERROR(IF(PERLIHATKANHARILIBUR,IF(INDEX(tblHolidays[],MATCH(DATE(CalYear-(DAY(F5)>15)+(ROW()>6),MONTH(F5),DAY(F5)),IF(PERLIHATKANPERINGATAN,tblHolidays[KOREKSI],tblHolidays[HARI]),0),6),INDEX(tblHolidays[],MATCH(DATE(CalYear-(DAY(F5)>15)+(ROW()>6),MONTH(F5),DAY(F5)),IF(PERLIHATKANPERINGATAN,tblHolidays[KOREKSI],tblHolidays[HARI]),0),2),\"\"),\"\"),\"\")","v":""},{"$f":"IFERROR(IF(PERLIHATKANHARILIBUR,IF(INDEX(tblHolidays[],MATCH(DATE(CalYear-(DAY(G5)>15)+(ROW()>6),MONTH(G5),DAY(G5)),IF(PERLIHATKANPERINGATAN,tblHolidays[KOREKSI],tblHolidays[HARI]),0),6),INDEX(tblHolidays[],MATCH(DATE(CalYear-(DAY(G5)>15)+(ROW()>6),MONTH(G5),DAY(G5)),IF(PERLIHATKANPERINGATAN,tblHolidays[KOREKSI],tblHolidays[HARI]),0),2),\"\"),\"\"),\"\")","v":""},{"$f":"IFERROR(IF(PERLIHATKANHARILIBUR,IF(INDEX(tblHolidays[],MATCH(DATE(CalYear-(DAY(H5)>15)+(ROW()>6),MONTH(H5),DAY(H5)),IF(PERLIHATKANPERINGATAN,tblHolidays[KOREKSI],tblHolidays[HARI]),0),6),INDEX(tblHolidays[],MATCH(DATE(CalYear-(DAY(H5)>15)+(ROW()>6),MONTH(H5),DAY(H5)),IF(PERLIHATKANPERINGATAN,tblHolidays[KOREKSI],tblHolidays[HARI]),0),2),\"\"),\"\"),\"\")","v":""}]
[null,{"$f":"Hari+DATE(CalYear,3,1)-WEEKDAY(DATE(CalYear,3,1),(AWALMINGGU=\"SENIN\")+1)+8","v":"2018-03-04"},"2018-03-05","2018-03-06","2018-03-07","2018-03-08","2018-03-09","2018-03-10"]
[null,{"$f":"IFERROR(IF(PERLIHATKANHARILIBUR,IF(INDEX(tblHolidays[],MATCH(DATE(CalYear,MONTH(B7),DAY(B7)),IF(PERLIHATKANPERINGATAN,tblHolidays[KOREKSI],tblHolidays[HARI]),0),6),INDEX(tblHolidays[],MATCH(DATE(CalYear,MONTH(B7),DAY(B7)),IF(PERLIHATKANPERINGATAN,tblHolidays[KOREKSI],tblHolidays[HARI]),0),2),\"\"),\"\"),\"\")","v":""},{"$f":"IFERROR(IF(PERLIHATKANHARILIBUR,IF(INDEX(tblHolidays[],MATCH(DATE(CalYear,MONTH(C7),DAY(C7)),IF(PERLIHATKANPERINGATAN,tblHolidays[KOREKSI],tblHolidays[HARI]),0),6),INDEX(tblHolidays[],MATCH(DATE(CalYear,MONTH(C7),DAY(C7)),IF(PERLIHATKANPERINGATAN,tblHolidays[KOREKSI],tblHolidays[HARI]),0),2),\"\"),\"\"),\"\")","v":""},{"$f":"IFERROR(IF(PERLIHATKANHARILIBUR,IF(INDEX(tblHolidays[],MATCH(DATE(CalYear,MONTH(D7),DAY(D7)),IF(PERLIHATKANPERINGATAN,tblHolidays[KOREKSI],tblHolidays[HARI]),0),6),INDEX(tblHolidays[],MATCH(DATE(CalYear,MONTH(D7),DAY(D7)),IF(PERLIHATKANPERINGATAN,tblHolidays[KOREKSI],tblHolidays[HARI]),0),2),\"\"),\"\"),\"\")","v":""},{"$f":"IFERROR(IF(PERLIHATKANHARILIBUR,IF(INDEX(tblHolidays[],MATCH(DATE(CalYear,MONTH(E7),DAY(E7)),IF(PERLIHATKANPERINGATAN,tblHolidays[KOREKSI],tblHolidays[HARI]),0),6),INDEX(tblHolidays[],MATCH(DATE(CalYear,MONTH(E7),DAY(E7)),IF(PERLIHATKANPERINGATAN,tblHolidays[KOREKSI],tblHolidays[HARI]),0),2),\"\"),\"\"),\"\")","v":""},{"$f":"IFERROR(IF(PERLIHATKANHARILIBUR,IF(INDEX(tblHolidays[],MATCH(DATE(CalYear,MONTH(F7),DAY(F7)),IF(PERLIHATKANPERINGATAN,tblHolidays[KOREKSI],tblHolidays[HARI]),0),6),INDEX(tblHolidays[],MATCH(DATE(CalYear,MONTH(F7),DAY(F7)),IF(PERLIHATKANPERINGATAN,tblHolidays[KOREKSI],tblHolidays[HARI]),0),2),\"\"),\"\"),\"\")","v":""},{"$f":"IFERROR(IF(PERLIHATKANHARILIBUR,IF(INDEX(tblHolidays[],MATCH(DATE(CalYear,MONTH(G7),DAY(G7)),IF(PERLIHATKANPERINGATAN,tblHolidays[KOREKSI],tblHolidays[HARI]),0),6),INDEX(tblHolidays[],MATCH(DATE(CalYear,MONTH(G7),DAY(G7)),IF(PERLIHATKANPERINGATAN,tblHolidays[KOREKSI],tblHolidays[HARI]),0),2),\"\"),\"\"),\"\")","v":""},{"$f":"IFERROR(IF(PERLIHATKANHARILIBUR,IF(INDEX(tblHolidays[],MATCH(DATE(CalYear,MONTH(H7),DAY(H7)),IF(PERLIHATKANPERINGATAN,tblHolidays[KOREKSI],tblHolidays[HARI]),0),6),INDEX(tblHolidays[],MATCH(DATE(CalYear,MONTH(H7),DAY(H7)),IF(PERLIHATKANPERINGATAN,tblHolidays[KOREKSI],tblHolidays[HARI]),0),2),\"\"),\"\"),\"\")","v":""}]
[null,{"$f":"Hari+DATE(CalYear,3,1)-WEEKDAY(DATE(CalYear,3,1),(AWALMINGGU=\"SENIN\")+1)+15","v":"2018-03-11"},"2018-03-12","2018-03-13","2018-03-14","2018-03-15","2018-03-16","2018-03-17"]
[null,{"$f":"IFERROR(IF(PERLIHATKANHARILIBUR,IF(INDEX(tblHolidays[],MATCH(DATE(CalYear,MONTH(B9),DAY(B9)),IF(PERLIHATKANPERINGATAN,tblHolidays[KOREKSI],tblHolidays[HARI]),0),6),INDEX(tblHolidays[],MATCH(DATE(CalYear,MONTH(B9),DAY(B9)),IF(PERLIHATKANPERINGATAN,tblHolidays[KOREKSI],tblHolidays[HARI]),0),2),\"\"),\"\"),\"\")","v":""},{"$f":"IFERROR(IF(PERLIHATKANHARILIBUR,IF(INDEX(tblHolidays[],MATCH(DATE(CalYear,MONTH(C9),DAY(C9)),IF(PERLIHATKANPERINGATAN,tblHolidays[KOREKSI],tblHolidays[HARI]),0),6),INDEX(tblHolidays[],MATCH(DATE(CalYear,MONTH(C9),DAY(C9)),IF(PERLIHATKANPERINGATAN,tblHolidays[KOREKSI],tblHolidays[HARI]),0),2),\"\"),\"\"),\"\")","v":""},{"$f":"IFERROR(IF(PERLIHATKANHARILIBUR,IF(INDEX(tblHolidays[],MATCH(DATE(CalYear,MONTH(D9),DAY(D9)),IF(PERLIHATKANPERINGATAN,tblHolidays[KOREKSI],tblHolidays[HARI]),0),6),INDEX(tblHolidays[],MATCH(DATE(CalYear,MONTH(D9),DAY(D9)),IF(PERLIHATKANPERINGATAN,tblHolidays[KOREKSI],tblHolidays[HARI]),0),2),\"\"),\"\"),\"\")","v":""},{"$f":"IFERROR(IF(PERLIHATKANHARILIBUR,IF(INDEX(tblHolidays[],MATCH(DATE(CalYear,MONTH(E9),DAY(E9)),IF(PERLIHATKANPERINGATAN,tblHolidays[KOREKSI],tblHolidays[HARI]),0),6),INDEX(tblHolidays[],MATCH(DATE(CalYear,MONTH(E9),DAY(E9)),IF(PERLIHATKANPERINGATAN,tblHolidays[KOREKSI],tblHolidays[HARI]),0),2),\"\"),\"\"),\"\")","v":""},{"$f":"IFERROR(IF(PERLIHATKANHARILIBUR,IF(INDEX(tblHolidays[],MATCH(DATE(CalYear,MONTH(F9),DAY(F9)),IF(PERLIHATKANPERINGATAN,tblHolidays[KOREKSI],tblHolidays[HARI]),0),6),INDEX(tblHolidays[],MATCH(DATE(CalYear,MONTH(F9),DAY(F9)),IF(PERLIHATKANPERINGATAN,tblHolidays[KOREKSI],tblHolidays[HARI]),0),2),\"\"),\"\"),\"\")","v":""},{"$f":"IFERROR(IF(PERLIHATKANHARILIBUR,IF(INDEX(tblHolidays[],MATCH(DATE(CalYear,MONTH(G9),DAY(G9)),IF(PERLIHATKANPERINGATAN,tblHolidays[KOREKSI],tblHolidays[HARI]),0),6),INDEX(tblHolidays[],MATCH(DATE(CalYear,MONTH(G9),DAY(G9)),IF(PERLIHATKANPERINGATAN,tblHolidays[KOREKSI],tblHolidays[HARI]),0),2),\"\"),\"\"),\"\")","v":""},{"$f":"IFERROR(IF(PERLIHATKANHARILIBUR,IF(INDEX(tblHolidays[],MATCH(DATE(CalYear,MONTH(H9),DAY(H9)),IF(PERLIHATKANPERINGATAN,tblHolidays[KOREKSI],tblHolidays[HARI]),0),6),INDEX(tblHolidays[],MATCH(DATE(CalYear,MONTH(H9),DAY(H9)),IF(PERLIHATKANPERINGATAN,tblHolidays[KOREKSI],tblHolidays[HARI]),0),2),\"\"),\"\"),\"\")","v":""}]
[null,{"$f":"Hari+DATE(CalYear,3,1)-WEEKDAY(DATE(CalYear,3,1),(AWALMINGGU=\"SENIN\")+1)+22","v":"2018-03-18"},"2018-03-19","2018-03-20","2018-03-21","2018-03-22","2018-03-23","2018-03-24"]
[null,{"$f":"IFERROR(IF(PERLIHATKANHARILIBUR,IF(INDEX(tblHolidays[],MATCH(DATE(CalYear,MONTH(B11),DAY(B11)),IF(PERLIHATKANPERINGATAN,tblHolidays[KOREKSI],tblHolidays[HARI]),0),6),INDEX(tblHolidays[],MATCH(DATE(CalYear,MONTH(B11),DAY(B11)),IF(PERLIHATKANPERINGATAN,tblHolidays[KOREKSI],tblHolidays[HARI]),0),2),\"\"),\"\"),\"\")","v":""},{"$f":"IFERROR(IF(PERLIHATKANHARILIBUR,IF(INDEX(tblHolidays[],MATCH(DATE(CalYear,MONTH(C11),DAY(C11)),IF(PERLIHATKANPERINGATAN,tblHolidays[KOREKSI],tblHolidays[HARI]),0),6),INDEX(tblHolidays[],MATCH(DATE(CalYear,MONTH(C11),DAY(C11)),IF(PERLIHATKANPERINGATAN,tblHolidays[KOREKSI],tblHolidays[HARI]),0),2),\"\"),\"\"),\"\")","v":""},{"$f":"IFERROR(IF(PERLIHATKANHARILIBUR,IF(INDEX(tblHolidays[],MATCH(DATE(CalYear,MONTH(D11),DAY(D11)),IF(PERLIHATKANPERINGATAN,tblHolidays[KOREKSI],tblHolidays[HARI]),0),6),INDEX(tblHolidays[],MATCH(DATE(CalYear,MONTH(D11),DAY(D11)),IF(PERLIHATKANPERINGATAN,tblHolidays[KOREKSI],tblHolidays[HARI]),0),2),\"\"),\"\"),\"\")","v":""},{"$f":"IFERROR(IF(PERLIHATKANHARILIBUR,IF(INDEX(tblHolidays[],MATCH(DATE(CalYear,MONTH(E11),DAY(E11)),IF(PERLIHATKANPERINGATAN,tblHolidays[KOREKSI],tblHolidays[HARI]),0),6),INDEX(tblHolidays[],MATCH(DATE(CalYear,MONTH(E11),DAY(E11)),IF(PERLIHATKANPERINGATAN,tblHolidays[KOREKSI],tblHolidays[HARI]),0),2),\"\"),\"\"),\"\")","v":""},{"$f":"IFERROR(IF(PERLIHATKANHARILIBUR,IF(INDEX(tblHolidays[],MATCH(DATE(CalYear,MONTH(F11),DAY(F11)),IF(PERLIHATKANPERINGATAN,tblHolidays[KOREKSI],tblHolidays[HARI]),0),6),INDEX(tblHolidays[],MATCH(DATE(CalYear,MONTH(F11),DAY(F11)),IF(PERLIHATKANPERINGATAN,tblHolidays[KOREKSI],tblHolidays[HARI]),0),2),\"\"),\"\"),\"\")","v":""},{"$f":"IFERROR(IF(PERLIHATKANHARILIBUR,IF(INDEX(tblHolidays[],MATCH(DATE(CalYear,MONTH(G11),DAY(G11)),IF(PERLIHATKANPERINGATAN,tblHolidays[KOREKSI],tblHolidays[HARI]),0),6),INDEX(tblHolidays[],MATCH(DATE(CalYear,MONTH(G11),DAY(G11)),IF(PERLIHATKANPERINGATAN,tblHolidays[KOREKSI],tblHolidays[HARI]),0),2),\"\"),\"\"),\"\")","v":""},{"$f":"IFERROR(IF(PERLIHATKANHARILIBUR,IF(INDEX(tblHolidays[],MATCH(DATE(CalYear,MONTH(H11),DAY(H11)),IF(PERLIHATKANPERINGATAN,tblHolidays[KOREKSI],tblHolidays[HARI]),0),6),INDEX(tblHolidays[],MATCH(DATE(CalYear,MONTH(H11),DAY(H11)),IF(PERLIHATKANPERINGATAN,tblHolidays[KOREKSI],tblHolidays[HARI]),0),2),\"\"),\"\"),\"\")","v":""}]
[null,{"$f":"Hari+DATE(CalYear,3,1)-WEEKDAY(DATE(CalYear,3,1),(AWALMINGGU=\"SENIN\")+1)+29","v":"2018-03-25"},"2018-03-26","2018-03-27","2018-03-28","2018-03-29","2018-03-30","2018-03-31"]
[null,{"$f":"IFERROR(IF(PERLIHATKANHARILIBUR,IF(INDEX(tblHolidays[],MATCH(DATE(CalYear,MONTH(B13),DAY(B13)),IF(PERLIHATKANPERINGATAN,tblHolidays[KOREKSI],tblHolidays[HARI]),0),6),INDEX(tblHolidays[],MATCH(DATE(CalYear,MONTH(B13),DAY(B13)),IF(PERLIHATKANPERINGATAN,tblHolidays[KOREKSI],tblHolidays[HARI]),0),2),\"\"),\"\"),\"\")","v":""},{"$f":"IFERROR(IF(PERLIHATKANHARILIBUR,IF(INDEX(tblHolidays[],MATCH(DATE(CalYear,MONTH(C13),DAY(C13)),IF(PERLIHATKANPERINGATAN,tblHolidays[KOREKSI],tblHolidays[HARI]),0),6),INDEX(tblHolidays[],MATCH(DATE(CalYear,MONTH(C13),DAY(C13)),IF(PERLIHATKANPERINGATAN,tblHolidays[KOREKSI],tblHolidays[HARI]),0),2),\"\"),\"\"),\"\")","v":""},{"$f":"IFERROR(IF(PERLIHATKANHARILIBUR,IF(INDEX(tblHolidays[],MATCH(DATE(CalYear,MONTH(D13),DAY(D13)),IF(PERLIHATKANPERINGATAN,tblHolidays[KOREKSI],tblHolidays[HARI]),0),6),INDEX(tblHolidays[],MATCH(DATE(CalYear,MONTH(D13),DAY(D13)),IF(PERLIHATKANPERINGATAN,tblHolidays[KOREKSI],tblHolidays[HARI]),0),2),\"\"),\"\"),\"\")","v":""},{"$f":"IFERROR(IF(PERLIHATKANHARILIBUR,IF(INDEX(tblHolidays[],MATCH(DATE(CalYear,MONTH(E13),DAY(E13)),IF(PERLIHATKANPERINGATAN,tblHolidays[KOREKSI],tblHolidays[HARI]),0),6),INDEX(tblHolidays[],MATCH(DATE(CalYear,MONTH(E13),DAY(E13)),IF(PERLIHATKANPERINGATAN,tblHolidays[KOREKSI],tblHolidays[HARI]),0),2),\"\"),\"\"),\"\")","v":""},{"$f":"IFERROR(IF(PERLIHATKANHARILIBUR,IF(INDEX(tblHolidays[],MATCH(DATE(CalYear,MONTH(F13),DAY(F13)),IF(PERLIHATKANPERINGATAN,tblHolidays[KOREKSI],tblHolidays[HARI]),0),6),INDEX(tblHolidays[],MATCH(DATE(CalYear,MONTH(F13),DAY(F13)),IF(PERLIHATKANPERINGATAN,tblHolidays[KOREKSI],tblHolidays[HARI]),0),2),\"\"),\"\"),\"\")","v":""},{"$f":"IFERROR(IF(PERLIHATKANHARILIBUR,IF(INDEX(tblHolidays[],MATCH(DATE(CalYear,MONTH(G13),DAY(G13)),IF(PERLIHATKANPERINGATAN,tblHolidays[KOREKSI],tblHolidays[HARI]),0),6),INDEX(tblHolidays[],MATCH(DATE(CalYear,MONTH(G13),DAY(G13)),IF(PERLIHATKANPERINGATAN,tblHolidays[KOREKSI],tblHolidays[HARI]),0),2),\"\"),\"\"),\"\")","v":""},{"$f":"IFERROR(IF(PERLIHATKANHARILIBUR,IF(INDEX(tblHolidays[],MATCH(DATE(CalYear,MONTH(H13),DAY(H13)),IF(PERLIHATKANPERINGATAN,tblHolidays[KOREKSI],tblHolidays[HARI]),0),6),INDEX(tblHolidays[],MATCH(DATE(CalYear,MONTH(H13),DAY(H13)),IF(PERLIHATKANPERINGATAN,tblHolidays[KOREKSI],tblHolidays[HARI]),0),2),\"\"),\"\"),\"\")","v":""}]
[null,{"$f":"Hari+DATE(CalYear,3,1)-WEEKDAY(DATE(CalYear,3,1),(AWALMINGGU=\"SENIN\")+1)+36","v":"2018-04-01"},"2018-04-02","CATATAN"]
[null,{"$f":"IFERROR(IF(PERLIHATKANHARILIBUR,IF(INDEX(tblHolidays[],MATCH(DATE(CalYear,MONTH(B15),DAY(B15)),IF(PERLIHATKANPERINGATAN,tblHolidays[KOREKSI],tblHolidays[HARI]),0),6),INDEX(tblHolidays[],MATCH(DATE(CalYear,MONTH(B15),DAY(B15)),IF(PERLIHATKANPERINGATAN,tblHolidays[KOREKSI],tblHolidays[HARI]),0),2),\"\"),\"\"),\"\")","v":""},{"$f":"IFERROR(IF(PERLIHATKANHARILIBUR,IF(INDEX(tblHolidays[],MATCH(DATE(CalYear,MONTH(C15),DAY(C15)),IF(PERLIHATKANPERINGATAN,tblHolidays[KOREKSI],tblHolidays[HARI]),0),6),INDEX(tblHolidays[],MATCH(DATE(CalYear,MONTH(C15),DAY(C15)),IF(PERLIHATKANPERINGATAN,tblHolidays[KOREKSI],tblHolidays[HARI]),0),2),\"\"),\"\"),\"\")","v":""}]

{"sheet":"April","index":4,"n_rows":16,"n_cols":8,"rows_kept":16,"merged":[[1,1,1,3],[14,3,14,7],[15,3,15,7],[16,1,16,7]]}
[]
[null,{"$f":"B9","v":"2018-04-15"}]
[]
[null,{"$f":"AWALMINGGU","v":"MINGGU"},{"$f":"UPPER(TEXT(C5,\"dddd\"))","v":"SENIN"},"SELASA","RABU","KAMIS","JUMAT","SABTU"]
[null,{"$f":"Hari+DATE(CalYear,4,1)-WEEKDAY(DATE(CalYear,4,1),(AWALMINGGU=\"SENIN\")+1)+1","v":"2018-04-01"},"2018-04-02","2018-04-03","2018-04-04","2018-04-05","2018-04-06","2018-04-07"]
[null,{"$f":"IFERROR(IF(PERLIHATKANHARILIBUR,IF(INDEX(tblHolidays[],MATCH(DATE(CalYear-(DAY(B5)>15)+(ROW()>6),MONTH(B5),DAY(B5)),IF(PERLIHATKANPERINGATAN,tblHolidays[KOREKSI],tblHolidays[HARI]),0),6),INDEX(tblHolidays[],MATCH(DATE(CalYear-(DAY(B5)>15)+(ROW()>6),MONTH(B5),DAY(B5)),IF(PERLIHATKANPERINGATAN,tblHolidays[KOREKSI],tblHolidays[HARI]),0),2),\"\"),\"\"),\"\")","v":""},{"$f":"IFERROR(IF(PERLIHATKANHARILIBUR,IF(INDEX(tblHolidays[],MATCH(DATE(CalYear-(DAY(C5)>15)+(ROW()>6),MONTH(C5),DAY(C5)),IF(PERLIHATKANPERINGATAN,tblHolidays[KOREKSI],tblHolidays[HARI]),0),6),INDEX(tblHolidays[],MATCH(DATE(CalYear-(DAY(C5)>15)+(ROW()>6),MONTH(C5),DAY(C5)),IF(PERLIHATKANPERINGATAN,tblHolidays[KOREKSI],tblHolidays[HARI]),0),2),\"\"),\"\"),\"\")","v":""},{"$f":"IFERROR(IF(PERLIHATKANHARILIBUR,IF(INDEX(tblHolidays[],MATCH(DATE(CalYear-(DAY(D5)>15)+(ROW()>6),MONTH(D5),DAY(D5)),IF(PERLIHATKANPERINGATAN,tblHolidays[KOREKSI],tblHolidays[HARI]),0),6),INDEX(tblHolidays[],MATCH(DATE(CalYear-(DAY(D5)>15)+(ROW()>6),MONTH(D5),DAY(D5)),IF(PERLIHATKANPERINGATAN,tblHolidays[KOREKSI],tblHolidays[HARI]),0),2),\"\"),\"\"),\"\")","v":""},{"$f":"IFERROR(IF(PERLIHATKANHARILIBUR,IF(INDEX(tblHolidays[],MATCH(DATE(CalYear-(DAY(E5)>15)+(ROW()>6),MONTH(E5),DAY(E5)),IF(PERLIHATKANPERINGATAN,tblHolidays[KOREKSI],tblHolidays[HARI]),0),6),INDEX(tblHolidays[],MATCH(DATE(CalYear-(DAY(E5)>15)+(ROW()>6),MONTH(E5),DAY(E5)),IF(PERLIHATKANPERINGATAN,tblHolidays[KOREKSI],tblHolidays[HARI]),0),2),\"\"),\"\"),\"\")","v":""},{"$f":"IFERROR(IF(PERLIHATKANHARILIBUR,IF(INDEX(tblHolidays[],MATCH(DATE(CalYear-(DAY(F5)>15)+(ROW()>6),MONTH(F5),DAY(F5)),IF(PERLIHATKANPERINGATAN,tblHolidays[KOREKSI],tblHolidays[HARI]),0),6),INDEX(tblHolidays[],MATCH(DATE(CalYear-(DAY(F5)>15)+(ROW()>6),MONTH(F5),DAY(F5)),IF(PERLIHATKANPERINGATAN,tblHolidays[KOREKSI],tblHolidays[HARI]),0),2),\"\"),\"\"),\"\")","v":""},{"$f":"IFERROR(IF(PERLIHATKANHARILIBUR,IF(INDEX(tblHolidays[],MATCH(DATE(CalYear-(DAY(G5)>15)+(ROW()>6),MONTH(G5),DAY(G5)),IF(PERLIHATKANPERINGATAN,tblHolidays[KOREKSI],tblHolidays[HARI]),0),6),INDEX(tblHolidays[],MATCH(DATE(CalYear-(DAY(G5)>15)+(ROW()>6),MONTH(G5),DAY(G5)),IF(PERLIHATKANPERINGATAN,tblHolidays[KOREKSI],tblHolidays[HARI]),0),2),\"\"),\"\"),\"\")","v":""},{"$f":"IFERROR(IF(PERLIHATKANHARILIBUR,IF(INDEX(tblHolidays[],MATCH(DATE(CalYear-(DAY(H5)>15)+(ROW()>6),MONTH(H5),DAY(H5)),IF(PERLIHATKANPERINGATAN,tblHolidays[KOREKSI],tblHolidays[HARI]),0),6),INDEX(tblHolidays[],MATCH(DATE(CalYear-(DAY(H5)>15)+(ROW()>6),MONTH(H5),DAY(H5)),IF(PERLIHATKANPERINGATAN,tblHolidays[KOREKSI],tblHolidays[HARI]),0),2),\"\"),\"\"),\"\")","v":""}]
[null,{"$f":"Hari+DATE(CalYear,4,1)-WEEKDAY(DATE(CalYear,4,1),(AWALMINGGU=\"SENIN\")+1)+8","v":"2018-04-08"},"2018-04-09","2018-04-10","2018-04-11","2018-04-12","2018-04-13","2018-04-14"]
[null,{"$f":"IFERROR(IF(PERLIHATKANHARILIBUR,IF(INDEX(tblHolidays[],MATCH(DATE(CalYear,MONTH(B7),DAY(B7)),IF(PERLIHATKANPERINGATAN,tblHolidays[KOREKSI],tblHolidays[HARI]),0),6),INDEX(tblHolidays[],MATCH(DATE(CalYear,MONTH(B7),DAY(B7)),IF(PERLIHATKANPERINGATAN,tblHolidays[KOREKSI],tblHolidays[HARI]),0),2),\"\"),\"\"),\"\")","v":""},{"$f":"IFERROR(IF(PERLIHATKANHARILIBUR,IF(INDEX(tblHolidays[],MATCH(DATE(CalYear,MONTH(C7),DAY(C7)),IF(PERLIHATKANPERINGATAN,tblHolidays[KOREKSI],tblHolidays[HARI]),0),6),INDEX(tblHolidays[],MATCH(DATE(CalYear,MONTH(C7),DAY(C7)),IF(PERLIHATKANPERINGATAN,tblHolidays[KOREKSI],tblHolidays[HARI]),0),2),\"\"),\"\"),\"\")","v":""},{"$f":"IFERROR(IF(PERLIHATKANHARILIBUR,IF(INDEX(tblHolidays[],MATCH(DATE(CalYear,MONTH(D7),DAY(D7)),IF(PERLIHATKANPERINGATAN,tblHolidays[KOREKSI],tblHolidays[HARI]),0),6),INDEX(tblHolidays[],MATCH(DATE(CalYear,MONTH(D7),DAY(D7)),IF(PERLIHATKANPERINGATAN,tblHolidays[KOREKSI],tblHolidays[HARI]),0),2),\"\"),\"\"),\"\")","v":""},{"$f":"IFERROR(IF(PERLIHATKANHARILIBUR,IF(INDEX(tblHolidays[],MATCH(DATE(CalYear,MONTH(E7),DAY(E7)),IF(PERLIHATKANPERINGATAN,tblHolidays[KOREKSI],tblHolidays[HARI]),0),6),INDEX(tblHolidays[],MATCH(DATE(CalYear,MONTH(E7),DAY(E7)),IF(PERLIHATKANPERINGATAN,tblHolidays[KOREKSI],tblHolidays[HARI]),0),2),\"\"),\"\"),\"\")","v":""},{"$f":"IFERROR(IF(PERLIHATKANHARILIBUR,IF(INDEX(tblHolidays[],MATCH(DATE(CalYear,MONTH(F7),DAY(F7)),IF(PERLIHATKANPERINGATAN,tblHolidays[KOREKSI],tblHolidays[HARI]),0),6),INDEX(tblHolidays[],MATCH(DATE(CalYear,MONTH(F7),DAY(F7)),IF(PERLIHATKANPERINGATAN,tblHolidays[KOREKSI],tblHolidays[HARI]),0),2),\"\"),\"\"),\"\")","v":""},{"$f":"IFERROR(IF(PERLIHATKANHARILIBUR,IF(INDEX(tblHolidays[],MATCH(DATE(CalYear,MONTH(G7),DAY(G7)),IF(PERLIHATKANPERINGATAN,tblHolidays[KOREKSI],tblHolidays[HARI]),0),6),INDEX(tblHolidays[],MATCH(DATE(CalYear,MONTH(G7),DAY(G7)),IF(PERLIHATKANPERINGATAN,tblHolidays[KOREKSI],tblHolidays[HARI]),0),2),\"\"),\"\"),\"\")","v":""},{"$f":"IFERROR(IF(PERLIHATKANHARILIBUR,IF(INDEX(tblHolidays[],MATCH(DATE(CalYear,MONTH(H7),DAY(H7)),IF(PERLIHATKANPERINGATAN,tblHolidays[KOREKSI],tblHolidays[HARI]),0),6),INDEX(tblHolidays[],MATCH(DATE(CalYear,MONTH(H7),DAY(H7)),IF(PERLIHATKANPERINGATAN,tblHolidays[KOREKSI],tblHolidays[HARI]),0),2),\"\"),\"\"),\"\")","v":""}]
[null,{"$f":"Hari+DATE(CalYear,4,1)-WEEKDAY(DATE(CalYear,4,1),(AWALMINGGU=\"SENIN\")+1)+15","v":"2018-04-15"},"2018-04-16","2018-04-17","2018-04-18","2018-04-19","2018-04-20","2018-04-21"]
[null,{"$f":"IFERROR(IF(PERLIHATKANHARILIBUR,IF(INDEX(tblHolidays[],MATCH(DATE(CalYear,MONTH(B9),DAY(B9)),IF(PERLIHATKANPERINGATAN,tblHolidays[KOREKSI],tblHolidays[HARI]),0),6),INDEX(tblHolidays[],MATCH(DATE(CalYear,MONTH(B9),DAY(B9)),IF(PERLIHATKANPERINGATAN,tblHolidays[KOREKSI],tblHolidays[HARI]),0),2),\"\"),\"\"),\"\")","v":""},{"$f":"IFERROR(IF(PERLIHATKANHARILIBUR,IF(INDEX(tblHolidays[],MATCH(DATE(CalYear,MONTH(C9),DAY(C9)),IF(PERLIHATKANPERINGATAN,tblHolidays[KOREKSI],tblHolidays[HARI]),0),6),INDEX(tblHolidays[],MATCH(DATE(CalYear,MONTH(C9),DAY(C9)),IF(PERLIHATKANPERINGATAN,tblHolidays[KOREKSI],tblHolidays[HARI]),0),2),\"\"),\"\"),\"\")","v":""},{"$f":"IFERROR(IF(PERLIHATKANHARILIBUR,IF(INDEX(tblHolidays[],MATCH(DATE(CalYear,MONTH(D9),DAY(D9)),IF(PERLIHATKANPERINGATAN,tblHolidays[KOREKSI],tblHolidays[HARI]),0),6),INDEX(tblHolidays[],MATCH(DATE(CalYear,MONTH(D9),DAY(D9)),IF(PERLIHATKANPERINGATAN,tblHolidays[KOREKSI],tblHolidays[HARI]),0),2),\"\"),\"\"),\"\")","v":""},{"$f":"IFERROR(IF(PERLIHATKANHARILIBUR,IF(INDEX(tblHolidays[],MATCH(DATE(CalYear,MONTH(E9),DAY(E9)),IF(PERLIHATKANPERINGATAN,tblHolidays[KOREKSI],tblHolidays[HARI]),0),6),INDEX(tblHolidays[],MATCH(DATE(CalYear,MONTH(E9),DAY(E9)),IF(PERLIHATKANPERINGATAN,tblHolidays[KOREKSI],tblHolidays[HARI]),0),2),\"\"),\"\"),\"\")","v":""},{"$f":"IFERROR(IF(PERLIHATKANHARILIBUR,IF(INDEX(tblHolidays[],MATCH(DATE(CalYear,MONTH(F9),DAY(F9)),IF(PERLIHATKANPERINGATAN,tblHolidays[KOREKSI],tblHolidays[HARI]),0),6),INDEX(tblHolidays[],MATCH(DATE(CalYear,MONTH(F9),DAY(F9)),IF(PERLIHATKANPERINGATAN,tblHolidays[KOREKSI],tblHolidays[HARI]),0),2),\"\"),\"\"),\"\")","v":""},{"$f":"IFERROR(IF(PERLIHATKANHARILIBUR,IF(INDEX(tblHolidays[],MATCH(DATE(CalYear,MONTH(G9),DAY(G9)),IF(PERLIHATKANPERINGATAN,tblHolidays[KOREKSI],tblHolidays[HARI]),0),6),INDEX(tblHolidays[],MATCH(DATE(CalYear,MONTH(G9),DAY(G9)),IF(PERLIHATKANPERINGATAN,tblHolidays[KOREKSI],tblHolidays[HARI]),0),2),\"\"),\"\"),\"\")","v":""},{"$f":"IFERROR(IF(PERLIHATKANHARILIBUR,IF(INDEX(tblHolidays[],MATCH(DATE(CalYear,MONTH(H9),DAY(H9)),IF(PERLIHATKANPERINGATAN,tblHolidays[KOREKSI],tblHolidays[HARI]),0),6),INDEX(tblHolidays[],MATCH(DATE(CalYear,MONTH(H9),DAY(H9)),IF(PERLIHATKANPERINGATAN,tblHolidays[KOREKSI],tblHolidays[HARI]),0),2),\"\"),\"\"),\"\")","v":""}]
[null,{"$f":"Hari+DATE(CalYear,4,1)-WEEKDAY(DATE(CalYear,4,1),(AWALMINGGU=\"SENIN\")+1)+22","v":"2018-04-22"},"2018-04-23","2018-04-24","2018-04-25","2018-04-26","2018-04-27","2018-04-28"]
[null,{"$f":"IFERROR(IF(PERLIHATKANHARILIBUR,IF(INDEX(tblHolidays[],MATCH(DATE(CalYear,MONTH(B11),DAY(B11)),IF(PERLIHATKANPERINGATAN,tblHolidays[KOREKSI],tblHolidays[HARI]),0),6),INDEX(tblHolidays[],MATCH(DATE(CalYear,MONTH(B11),DAY(B11)),IF(PERLIHATKANPERINGATAN,tblHolidays[KOREKSI],tblHolidays[HARI]),0),2),\"\"),\"\"),\"\")","v":""},{"$f":"IFERROR(IF(PERLIHATKANHARILIBUR,IF(INDEX(tblHolidays[],MATCH(DATE(CalYear,MONTH(C11),DAY(C11)),IF(PERLIHATKANPERINGATAN,tblHolidays[KOREKSI],tblHolidays[HARI]),0),6),INDEX(tblHolidays[],MATCH(DATE(CalYear,MONTH(C11),DAY(C11)),IF(PERLIHATKANPERINGATAN,tblHolidays[KOREKSI],tblHolidays[HARI]),0),2),\"\"),\"\"),\"\")","v":""},{"$f":"IFERROR(IF(PERLIHATKANHARILIBUR,IF(INDEX(tblHolidays[],MATCH(DATE(CalYear,MONTH(D11),DAY(D11)),IF(PERLIHATKANPERINGATAN,tblHolidays[KOREKSI],tblHolidays[HARI]),0),6),INDEX(tblHolidays[],MATCH(DATE(CalYear,MONTH(D11),DAY(D11)),IF(PERLIHATKANPERINGATAN,tblHolidays[KOREKSI],tblHolidays[HARI]),0),2),\"\"),\"\"),\"\")","v":""},{"$f":"IFERROR(IF(PERLIHATKANHARILIBUR,IF(INDEX(tblHolidays[],MATCH(DATE(CalYear,MONTH(E11),DAY(E11)),IF(PERLIHATKANPERINGATAN,tblHolidays[KOREKSI],tblHolidays[HARI]),0),6),INDEX(tblHolidays[],MATCH(DATE(CalYear,MONTH(E11),DAY(E11)),IF(PERLIHATKANPERINGATAN,tblHolidays[KOREKSI],tblHolidays[HARI]),0),2),\"\"),\"\"),\"\")","v":""},{"$f":"IFERROR(IF(PERLIHATKANHARILIBUR,IF(INDEX(tblHolidays[],MATCH(DATE(CalYear,MONTH(F11),DAY(F11)),IF(PERLIHATKANPERINGATAN,tblHolidays[KOREKSI],tblHolidays[HARI]),0),6),INDEX(tblHolidays[],MATCH(DATE(CalYear,MONTH(F11),DAY(F11)),IF(PERLIHATKANPERINGATAN,tblHolidays[KOREKSI],tblHolidays[HARI]),0),2),\"\"),\"\"),\"\")","v":""},{"$f":"IFERROR(IF(PERLIHATKANHARILIBUR,IF(INDEX(tblHolidays[],MATCH(DATE(CalYear,MONTH(G11),DAY(G11)),IF(PERLIHATKANPERINGATAN,tblHolidays[KOREKSI],tblHolidays[HARI]),0),6),INDEX(tblHolidays[],MATCH(DATE(CalYear,MONTH(G11),DAY(G11)),IF(PERLIHATKANPERINGATAN,tblHolidays[KOREKSI],tblHolidays[HARI]),0),2),\"\"),\"\"),\"\")","v":""},{"$f":"IFERROR(IF(PERLIHATKANHARILIBUR,IF(INDEX(tblHolidays[],MATCH(DATE(CalYear,MONTH(H11),DAY(H11)),IF(PERLIHATKANPERINGATAN,tblHolidays[KOREKSI],tblHolidays[HARI]),0),6),INDEX(tblHolidays[],MATCH(DATE(CalYear,MONTH(H11),DAY(H11)),IF(PERLIHATKANPERINGATAN,tblHolidays[KOREKSI],tblHolidays[HARI]),0),2),\"\"),\"\"),\"\")","v":""}]
[null,{"$f":"Hari+DATE(CalYear,4,1)-WEEKDAY(DATE(CalYear,4,1),(AWALMINGGU=\"SENIN\")+1)+29","v":"2018-04-29"},"2018-04-30","2018-05-01","2018-05-02","2018-05-03","2018-05-04","2018-05-05"]
[null,{"$f":"IFERROR(IF(PERLIHATKANHARILIBUR,IF(INDEX(tblHolidays[],MATCH(DATE(CalYear,MONTH(B13),DAY(B13)),IF(PERLIHATKANPERINGATAN,tblHolidays[KOREKSI],tblHolidays[HARI]),0),6),INDEX(tblHolidays[],MATCH(DATE(CalYear,MONTH(B13),DAY(B13)),IF(PERLIHATKANPERINGATAN,tblHolidays[KOREKSI],tblHolidays[HARI]),0),2),\"\"),\"\"),\"\")","v":""},{"$f":"IFERROR(IF(PERLIHATKANHARILIBUR,IF(INDEX(tblHolidays[],MATCH(DATE(CalYear,MONTH(C13),DAY(C13)),IF(PERLIHATKANPERINGATAN,tblHolidays[KOREKSI],tblHolidays[HARI]),0),6),INDEX(tblHolidays[],MATCH(DATE(CalYear,MONTH(C13),DAY(C13)),IF(PERLIHATKANPERINGATAN,tblHolidays[KOREKSI],tblHolidays[HARI]),0),2),\"\"),\"\"),\"\")","v":""},{"$f":"IFERROR(IF(PERLIHATKANHARILIBUR,IF(INDEX(tblHolidays[],MATCH(DATE(CalYear,MONTH(D13),DAY(D13)),IF(PERLIHATKANPERINGATAN,tblHolidays[KOREKSI],tblHolidays[HARI]),0),6),INDEX(tblHolidays[],MATCH(DATE(CalYear,MONTH(D13),DAY(D13)),IF(PERLIHATKANPERINGATAN,tblHolidays[KOREKSI],tblHolidays[HARI]),0),2),\"\"),\"\"),\"\")","v":""},{"$f":"IFERROR(IF(PERLIHATKANHARILIBUR,IF(INDEX(tblHolidays[],MATCH(DATE(CalYear,MONTH(E13),DAY(E13)),IF(PERLIHATKANPERINGATAN,tblHolidays[KOREKSI],tblHolidays[HARI]),0),6),INDEX(tblHolidays[],MATCH(DATE(CalYear,MONTH(E13),DAY(E13)),IF(PERLIHATKANPERINGATAN,tblHolidays[KOREKSI],tblHolidays[HARI]),0),2),\"\"),\"\"),\"\")","v":""},{"$f":"IFERROR(IF(PERLIHATKANHARILIBUR,IF(INDEX(tblHolidays[],MATCH(DATE(CalYear,MONTH(F13),DAY(F13)),IF(PERLIHATKANPERINGATAN,tblHolidays[KOREKSI],tblHolidays[HARI]),0),6),INDEX(tblHolidays[],MATCH(DATE(CalYear,MONTH(F13),DAY(F13)),IF(PERLIHATKANPERINGATAN,tblHolidays[KOREKSI],tblHolidays[HARI]),0),2),\"\"),\"\"),\"\")","v":""},{"$f":"IFERROR(IF(PERLIHATKANHARILIBUR,IF(INDEX(tblHolidays[],MATCH(DATE(CalYear,MONTH(G13),DAY(G13)),IF(PERLIHATKANPERINGATAN,tblHolidays[KOREKSI],tblHolidays[HARI]),0),6),INDEX(tblHolidays[],MATCH(DATE(CalYear,MONTH(G13),DAY(G13)),IF(PERLIHATKANPERINGATAN,tblHolidays[KOREKSI],tblHolidays[HARI]),0),2),\"\"),\"\"),\"\")","v":""},{"$f":"IFERROR(IF(PERLIHATKANHARILIBUR,IF(INDEX(tblHolidays[],MATCH(DATE(CalYear,MONTH(H13),DAY(H13)),IF(PERLIHATKANPERINGATAN,tblHolidays[KOREKSI],tblHolidays[HARI]),0),6),INDEX(tblHolidays[],MATCH(DATE(CalYear,MONTH(H13),DAY(H13)),IF(PERLIHATKANPERINGATAN,tblHolidays[KOREKSI],tblHolidays[HARI]),0),2),\"\"),\"\"),\"\")","v":""}]
[null,{"$f":"Hari+DATE(CalYear,4,1)-WEEKDAY(DATE(CalYear,4,1),(AWALMINGGU=\"SENIN\")+1)+36","v":"2018-05-06"},"2018-05-07","CATATAN"]
[null,{"$f":"IFERROR(IF(PERLIHATKANHARILIBUR,IF(INDEX(tblHolidays[],MATCH(DATE(CalYear,MONTH(B15),DAY(B15)),IF(PERLIHATKANPERINGATAN,tblHolidays[KOREKSI],tblHolidays[HARI]),0),6),INDEX(tblHolidays[],MATCH(DATE(CalYear,MONTH(B15),DAY(B15)),IF(PERLIHATKANPERINGATAN,tblHolidays[KOREKSI],tblHolidays[HARI]),0),2),\"\"),\"\"),\"\")","v":""},{"$f":"IFERROR(IF(PERLIHATKANHARILIBUR,IF(INDEX(tblHolidays[],MATCH(DATE(CalYear,MONTH(C15),DAY(C15)),IF(PERLIHATKANPERINGATAN,tblHolidays[KOREKSI],tblHolidays[HARI]),0),6),INDEX(tblHolidays[],MATCH(DATE(CalYear,MONTH(C15),DAY(C15)),IF(PERLIHATKANPERINGATAN,tblHolidays[KOREKSI],tblHolidays[HARI]),0),2),\"\"),\"\"),\"\")","v":""}]

{"sheet":"Mei","index":5,"n_rows":16,"n_cols":8,"rows_kept":16,"merged":[[1,1,1,3],[14,3,14,7],[15,3,15,7],[16,1,16,7]]}
[]
[null,{"$f":"B9","v":"2018-05-13"}]
[]
[null,{"$f":"AWALMINGGU","v":"MINGGU"},{"$f":"UPPER(TEXT(C5,\"dddd\"))","v":"SENIN"},"SELASA","RABU","KAMIS","JUMAT","SABTU"]
[null,{"$f":"Hari+DATE(CalYear,5,1)-WEEKDAY(DATE(CalYear,5,1),(AWALMINGGU=\"SENIN\")+1)+1","v":"2018-04-29"},"2018-04-30","2018-05-01","2018-05-02","2018-05-03","2018-05-04","2018-05-05"]
[null,{"$f":"IFERROR(IF(PERLIHATKANHARILIBUR,IF(INDEX(tblHolidays[],MATCH(DATE(CalYear-(DAY(B5)>15)+(ROW()>6),MONTH(B5),DAY(B5)),IF(PERLIHATKANPERINGATAN,tblHolidays[KOREKSI],tblHolidays[HARI]),0),6),INDEX(tblHolidays[],MATCH(DATE(CalYear-(DAY(B5)>15)+(ROW()>6),MONTH(B5),DAY(B5)),IF(PERLIHATKANPERINGATAN,tblHolidays[KOREKSI],tblHolidays[HARI]),0),2),\"\"),\"\"),\"\")","v":""},{"$f":"IFERROR(IF(PERLIHATKANHARILIBUR,IF(INDEX(tblHolidays[],MATCH(DATE(CalYear-(DAY(C5)>15)+(ROW()>6),MONTH(C5),DAY(C5)),IF(PERLIHATKANPERINGATAN,tblHolidays[KOREKSI],tblHolidays[HARI]),0),6),INDEX(tblHolidays[],MATCH(DATE(CalYear-(DAY(C5)>15)+(ROW()>6),MONTH(C5),DAY(C5)),IF(PERLIHATKANPERINGATAN,tblHolidays[KOREKSI],tblHolidays[HARI]),0),2),\"\"),\"\"),\"\")","v":""},{"$f":"IFERROR(IF(PERLIHATKANHARILIBUR,IF(INDEX(tblHolidays[],MATCH(DATE(CalYear-(DAY(D5)>15)+(ROW()>6),MONTH(D5),DAY(D5)),IF(PERLIHATKANPERINGATAN,tblHolidays[KOREKSI],tblHolidays[HARI]),0),6),INDEX(tblHolidays[],MATCH(DATE(CalYear-(DAY(D5)>15)+(ROW()>6),MONTH(D5),DAY(D5)),IF(PERLIHATKANPERINGATAN,tblHolidays[KOREKSI],tblHolidays[HARI]),0),2),\"\"),\"\"),\"\")","v":""},{"$f":"IFERROR(IF(PERLIHATKANHARILIBUR,IF(INDEX(tblHolidays[],MATCH(DATE(CalYear-(DAY(E5)>15)+(ROW()>6),MONTH(E5),DAY(E5)),IF(PERLIHATKANPERINGATAN,tblHolidays[KOREKSI],tblHolidays[HARI]),0),6),INDEX(tblHolidays[],MATCH(DATE(CalYear-(DAY(E5)>15)+(ROW()>6),MONTH(E5),DAY(E5)),IF(PERLIHATKANPERINGATAN,tblHolidays[KOREKSI],tblHolidays[HARI]),0),2),\"\"),\"\"),\"\")","v":""},{"$f":"IFERROR(IF(PERLIHATKANHARILIBUR,IF(INDEX(tblHolidays[],MATCH(DATE(CalYear-(DAY(F5)>15)+(ROW()>6),MONTH(F5),DAY(F5)),IF(PERLIHATKANPERINGATAN,tblHolidays[KOREKSI],tblHolidays[HARI]),0),6),INDEX(tblHolidays[],MATCH(DATE(CalYear-(DAY(F5)>15)+(ROW()>6),MONTH(F5),DAY(F5)),IF(PERLIHATKANPERINGATAN,tblHolidays[KOREKSI],tblHolidays[HARI]),0),2),\"\"),\"\"),\"\")","v":""},{"$f":"IFERROR(IF(PERLIHATKANHARILIBUR,IF(INDEX(tblHolidays[],MATCH(DATE(CalYear-(DAY(G5)>15)+(ROW()>6),MONTH(G5),DAY(G5)),IF(PERLIHATKANPERINGATAN,tblHolidays[KOREKSI],tblHolidays[HARI]),0),6),INDEX(tblHolidays[],MATCH(DATE(CalYear-(DAY(G5)>15)+(ROW()>6),MONTH(G5),DAY(G5)),IF(PERLIHATKANPERINGATAN,tblHolidays[KOREKSI],tblHolidays[HARI]),0),2),\"\"),\"\"),\"\")","v":""},{"$f":"IFERROR(IF(PERLIHATKANHARILIBUR,IF(INDEX(tblHolidays[],MATCH(DATE(CalYear-(DAY(H5)>15)+(ROW()>6),MONTH(H5),DAY(H5)),IF(PERLIHATKANPERINGATAN,tblHolidays[KOREKSI],tblHolidays[HARI]),0),6),INDEX(tblHolidays[],MATCH(DATE(CalYear-(DAY(H5)>15)+(ROW()>6),MONTH(H5),DAY(H5)),IF(PERLIHATKANPERINGATAN,tblHolidays[KOREKSI],tblHolidays[HARI]),0),2),\"\"),\"\"),\"\")","v":""}]
[null,{"$f":"Hari+DATE(CalYear,5,1)-WEEKDAY(DATE(CalYear,5,1),(AWALMINGGU=\"SENIN\")+1)+8","v":"2018-05-06"},"2018-05-07","2018-05-08","2018-05-09","2018-05-10","2018-05-11","2018-05-12"]
[null,{"$f":"IFERROR(IF(PERLIHATKANHARILIBUR,IF(INDEX(tblHolidays[],MATCH(DATE(CalYear,MONTH(B7),DAY(B7)),IF(PERLIHATKANPERINGATAN,tblHolidays[KOREKSI],tblHolidays[HARI]),0),6),INDEX(tblHolidays[],MATCH(DATE(CalYear,MONTH(B7),DAY(B7)),IF(PERLIHATKANPERINGATAN,tblHolidays[KOREKSI],tblHolidays[HARI]),0),2),\"\"),\"\"),\"\")","v":""},{"$f":"IFERROR(IF(PERLIHATKANHARILIBUR,IF(INDEX(tblHolidays[],MATCH(DATE(CalYear,MONTH(C7),DAY(C7)),IF(PERLIHATKANPERINGATAN,tblHolidays[KOREKSI],tblHolidays[HARI]),0),6),INDEX(tblHolidays[],MATCH(DATE(CalYear,MONTH(C7),DAY(C7)),IF(PERLIHATKANPERINGATAN,tblHolidays[KOREKSI],tblHolidays[HARI]),0),2),\"\"),\"\"),\"\")","v":""},{"$f":"IFERROR(IF(PERLIHATKANHARILIBUR,IF(INDEX(tblHolidays[],MATCH(DATE(CalYear,MONTH(D7),DAY(D7)),IF(PERLIHATKANPERINGATAN,tblHolidays[KOREKSI],tblHolidays[HARI]),0),6),INDEX(tblHolidays[],MATCH(DATE(CalYear,MONTH(D7),DAY(D7)),IF(PERLIHATKANPERINGATAN,tblHolidays[KOREKSI],tblHolidays[HARI]),0),2),\"\"),\"\"),\"\")","v":""},{"$f":"IFERROR(IF(PERLIHATKANHARILIBUR,IF(INDEX(tblHolidays[],MATCH(DATE(CalYear,MONTH(E7),DAY(E7)),IF(PERLIHATKANPERINGATAN,tblHolidays[KOREKSI],tblHolidays[HARI]),0),6),INDEX(tblHolidays[],MATCH(DATE(CalYear,MONTH(E7),DAY(E7)),IF(PERLIHATKANPERINGATAN,tblHolidays[KOREKSI],tblHolidays[HARI]),0),2),\"\"),\"\"),\"\")","v":""},{"$f":"IFERROR(IF(PERLIHATKANHARILIBUR,IF(INDEX(tblHolidays[],MATCH(DATE(CalYear,MONTH(F7),DAY(F7)),IF(PERLIHATKANPERINGATAN,tblHolidays[KOREKSI],tblHolidays[HARI]),0),6),INDEX(tblHolidays[],MATCH(DATE(CalYear,MONTH(F7),DAY(F7)),IF(PERLIHATKANPERINGATAN,tblHolidays[KOREKSI],tblHolidays[HARI]),0),2),\"\"),\"\"),\"\")","v":""},{"$f":"IFERROR(IF(PERLIHATKANHARILIBUR,IF(INDEX(tblHolidays[],MATCH(DATE(CalYear,MONTH(G7),DAY(G7)),IF(PERLIHATKANPERINGATAN,tblHolidays[KOREKSI],tblHolidays[HARI]),0),6),INDEX(tblHolidays[],MATCH(DATE(CalYear,MONTH(G7),DAY(G7)),IF(PERLIHATKANPERINGATAN,tblHolidays[KOREKSI],tblHolidays[HARI]),0),2),\"\"),\"\"),\"\")","v":""},{"$f":"IFERROR(IF(PERLIHATKANHARILIBUR,IF(INDEX(tblHolidays[],MATCH(DATE(CalYear,MONTH(H7),DAY(H7)),IF(PERLIHATKANPERINGATAN,tblHolidays[KOREKSI],tblHolidays[HARI]),0),6),INDEX(tblHolidays[],MATCH(DATE(CalYear,MONTH(H7),DAY(H7)),IF(PERLIHATKANPERINGATAN,tblHolidays[KOREKSI],tblHolidays[HARI]),0),2),\"\"),\"\"),\"\")","v":""}]
[null,{"$f":"Hari+DATE(CalYear,5,1)-WEEKDAY(DATE(CalYear,5,1),(AWALMINGGU=\"SENIN\")+1)+15","v":"2018-05-13"},"2018-05-14","2018-05-15","2018-05-16","2018-05-17","2018-05-18","2018-05-19"]
[null,{"$f":"IFERROR(IF(PERLIHATKANHARILIBUR,IF(INDEX(tblHolidays[],MATCH(DATE(CalYear,MONTH(B9),DAY(B9)),IF(PERLIHATKANPERINGATAN,tblHolidays[KOREKSI],tblHolidays[HARI]),0),6),INDEX(tblHolidays[],MATCH(DATE(CalYear,MONTH(B9),DAY(B9)),IF(PERLIHATKANPERINGATAN,tblHolidays[KOREKSI],tblHolidays[HARI]),0),2),\"\"),\"\"),\"\")","v":""},{"$f":"IFERROR(IF(PERLIHATKANHARILIBUR,IF(INDEX(tblHolidays[],MATCH(DATE(CalYear,MONTH(C9),DAY(C9)),IF(PERLIHATKANPERINGATAN,tblHolidays[KOREKSI],tblHolidays[HARI]),0),6),INDEX(tblHolidays[],MATCH(DATE(CalYear,MONTH(C9),DAY(C9)),IF(PERLIHATKANPERINGATAN,tblHolidays[KOREKSI],tblHolidays[HARI]),0),2),\"\"),\"\"),\"\")","v":""},{"$f":"IFERROR(IF(PERLIHATKANHARILIBUR,IF(INDEX(tblHolidays[],MATCH(DATE(CalYear,MONTH(D9),DAY(D9)),IF(PERLIHATKANPERINGATAN,tblHolidays[KOREKSI],tblHolidays[HARI]),0),6),INDEX(tblHolidays[],MATCH(DATE(CalYear,MONTH(D9),DAY(D9)),IF(PERLIHATKANPERINGATAN,tblHolidays[KOREKSI],tblHolidays[HARI]),0),2),\"\"),\"\"),\"\")","v":""},{"$f":"IFERROR(IF(PERLIHATKANHARILIBUR,IF(INDEX(tblHolidays[],MATCH(DATE(CalYear,MONTH(E9),DAY(E9)),IF(PERLIHATKANPERINGATAN,tblHolidays[KOREKSI],tblHolidays[HARI]),0),6),INDEX(tblHolidays[],MATCH(DATE(CalYear,MONTH(E9),DAY(E9)),IF(PERLIHATKANPERINGATAN,tblHolidays[KOREKSI],tblHolidays[HARI]),0),2),\"\"),\"\"),\"\")","v":""},{"$f":"IFERROR(IF(PERLIHATKANHARILIBUR,IF(INDEX(tblHolidays[],MATCH(DATE(CalYear,MONTH(F9),DAY(F9)),IF(PERLIHATKANPERINGATAN,tblHolidays[KOREKSI],tblHolidays[HARI]),0),6),INDEX(tblHolidays[],MATCH(DATE(CalYear,MONTH(F9),DAY(F9)),IF(PERLIHATKANPERINGATAN,tblHolidays[KOREKSI],tblHolidays[HARI]),0),2),\"\"),\"\"),\"\")","v":""},{"$f":"IFERROR(IF(PERLIHATKANHARILIBUR,IF(INDEX(tblHolidays[],MATCH(DATE(CalYear,MONTH(G9),DAY(G9)),IF(PERLIHATKANPERINGATAN,tblHolidays[KOREKSI],tblHolidays[HARI]),0),6),INDEX(tblHolidays[],MATCH(DATE(CalYear,MONTH(G9),DAY(G9)),IF(PERLIHATKANPERINGATAN,tblHolidays[KOREKSI],tblHolidays[HARI]),0),2),\"\"),\"\"),\"\")","v":""},{"$f":"IFERROR(IF(PERLIHATKANHARILIBUR,IF(INDEX(tblHolidays[],MATCH(DATE(CalYear,MONTH(H9),DAY(H9)),IF(PERLIHATKANPERINGATAN,tblHolidays[KOREKSI],tblHolidays[HARI]),0),6),INDEX(tblHolidays[],MATCH(DATE(CalYear,MONTH(H9),DAY(H9)),IF(PERLIHATKANPERINGATAN,tblHolidays[KOREKSI],tblHolidays[HARI]),0),2),\"\"),\"\"),\"\")","v":""}]
[null,{"$f":"Hari+DATE(CalYear,5,1)-WEEKDAY(DATE(CalYear,5,1),(AWALMINGGU=\"SENIN\")+1)+22","v":"2018-05-20"},"2018-05-21","2018-05-22","2018-05-23","2018-05-24","2018-05-25","2018-05-26"]
[null,{"$f":"IFERROR(IF(PERLIHATKANHARILIBUR,IF(INDEX(tblHolidays[],MATCH(DATE(CalYear,MONTH(B11),DAY(B11)),IF(PERLIHATKANPERINGATAN,tblHolidays[KOREKSI],tblHolidays[HARI]),0),6),INDEX(tblHolidays[],MATCH(DATE(CalYear,MONTH(B11),DAY(B11)),IF(PERLIHATKANPERINGATAN,tblHolidays[KOREKSI],tblHolidays[HARI]),0),2),\"\"),\"\"),\"\")","v":""},{"$f":"IFERROR(IF(PERLIHATKANHARILIBUR,IF(INDEX(tblHolidays[],MATCH(DATE(CalYear,MONTH(C11),DAY(C11)),IF(PERLIHATKANPERINGATAN,tblHolidays[KOREKSI],tblHolidays[HARI]),0),6),INDEX(tblHolidays[],MATCH(DATE(CalYear,MONTH(C11),DAY(C11)),IF(PERLIHATKANPERINGATAN,tblHolidays[KOREKSI],tblHolidays[HARI]),0),2),\"\"),\"\"),\"\")","v":""},{"$f":"IFERROR(IF(PERLIHATKANHARILIBUR,IF(INDEX(tblHolidays[],MATCH(DATE(CalYear,MONTH(D11),DAY(D11)),IF(PERLIHATKANPERINGATAN,tblHolidays[KOREKSI],tblHolidays[HARI]),0),6),INDEX(tblHolidays[],MATCH(DATE(CalYear,MONTH(D11),DAY(D11)),IF(PERLIHATKANPERINGATAN,tblHolidays[KOREKSI],tblHolidays[HARI]),0),2),\"\"),\"\"),\"\")","v":""},{"$f":"IFERROR(IF(PERLIHATKANHARILIBUR,IF(INDEX(tblHolidays[],MATCH(DATE(CalYear,MONTH(E11),DAY(E11)),IF(PERLIHATKANPERINGATAN,tblHolidays[KOREKSI],tblHolidays[HARI]),0),6),INDEX(tblHolidays[],MATCH(DATE(CalYear,MONTH(E11),DAY(E11)),IF(PERLIHATKANPERINGATAN,tblHolidays[KOREKSI],tblHolidays[HARI]),0),2),\"\"),\"\"),\"\")","v":""},{"$f":"IFERROR(IF(PERLIHATKANHARILIBUR,IF(INDEX(tblHolidays[],MATCH(DATE(CalYear,MONTH(F11),DAY(F11)),IF(PERLIHATKANPERINGATAN,tblHolidays[KOREKSI],tblHolidays[HARI]),0),6),INDEX(tblHolidays[],MATCH(DATE(CalYear,MONTH(F11),DAY(F11)),IF(PERLIHATKANPERINGATAN,tblHolidays[KOREKSI],tblHolidays[HARI]),0),2),\"\"),\"\"),\"\")","v":""},{"$f":"IFERROR(IF(PERLIHATKANHARILIBUR,IF(INDEX(tblHolidays[],MATCH(DATE(CalYear,MONTH(G11),DAY(G11)),IF(PERLIHATKANPERINGATAN,tblHolidays[KOREKSI],tblHolidays[HARI]),0),6),INDEX(tblHolidays[],MATCH(DATE(CalYear,MONTH(G11),DAY(G11)),IF(PERLIHATKANPERINGATAN,tblHolidays[KOREKSI],tblHolidays[HARI]),0),2),\"\"),\"\"),\"\")","v":""},{"$f":"IFERROR(IF(PERLIHATKANHARILIBUR,IF(INDEX(tblHolidays[],MATCH(DATE(CalYear,MONTH(H11),DAY(H11)),IF(PERLIHATKANPERINGATAN,tblHolidays[KOREKSI],tblHolidays[HARI]),0),6),INDEX(tblHolidays[],MATCH(DATE(CalYear,MONTH(H11),DAY(H11)),IF(PERLIHATKANPERINGATAN,tblHolidays[KOREKSI],tblHolidays[HARI]),0),2),\"\"),\"\"),\"\")","v":""}]
[null,{"$f":"Hari+DATE(CalYear,5,1)-WEEKDAY(DATE(CalYear,5,1),(AWALMINGGU=\"SENIN\")+1)+29","v":"2018-05-27"},"2018-05-28","2018-05-29","2018-05-30","2018-05-31","2018-06-01","2018-06-02"]
[null,{"$f":"IFERROR(IF(PERLIHATKANHARILIBUR,IF(INDEX(tblHolidays[],MATCH(DATE(CalYear,MONTH(B13),DAY(B13)),IF(PERLIHATKANPERINGATAN,tblHolidays[KOREKSI],tblHolidays[HARI]),0),6),INDEX(tblHolidays[],MATCH(DATE(CalYear,MONTH(B13),DAY(B13)),IF(PERLIHATKANPERINGATAN,tblHolidays[KOREKSI],tblHolidays[HARI]),0),2),\"\"),\"\"),\"\")","v":""},{"$f":"IFERROR(IF(PERLIHATKANHARILIBUR,IF(INDEX(tblHolidays[],MATCH(DATE(CalYear,MONTH(C13),DAY(C13)),IF(PERLIHATKANPERINGATAN,tblHolidays[KOREKSI],tblHolidays[HARI]),0),6),INDEX(tblHolidays[],MATCH(DATE(CalYear,MONTH(C13),DAY(C13)),IF(PERLIHATKANPERINGATAN,tblHolidays[KOREKSI],tblHolidays[HARI]),0),2),\"\"),\"\"),\"\")","v":"Hari Kelahiran Pancasila"},{"$f":"IFERROR(IF(PERLIHATKANHARILIBUR,IF(INDEX(tblHolidays[],MATCH(DATE(CalYear,MONTH(D13),DAY(D13)),IF(PERLIHATKANPERINGATAN,tblHolidays[KOREKSI],tblHolidays[HARI]),0),6),INDEX(tblHolidays[],MATCH(DATE(CalYear,MONTH(D13),DAY(D13)),IF(PERLIHATKANPERINGATAN,tblHolidays[KOREKSI],tblHolidays[HARI]),0),2),\"\"),\"\"),\"\")","v":""},{"$f":"IFERROR(IF(PERLIHATKANHARILIBUR,IF(INDEX(tblHolidays[],MATCH(DATE(CalYear,MONTH(E13),DAY(E13)),IF(PERLIHATKANPERINGATAN,tblHolidays[KOREKSI],tblHolidays[HARI]),0),6),INDEX(tblHolidays[],MATCH(DATE(CalYear,MONTH(E13),DAY(E13)),IF(PERLIHATKANPERINGATAN,tblHolidays[KOREKSI],tblHolidays[HARI]),0),2),\"\"),\"\"),\"\")","v":""},{"$f":"IFERROR(IF(PERLIHATKANHARILIBUR,IF(INDEX(tblHolidays[],MATCH(DATE(CalYear,MONTH(F13),DAY(F13)),IF(PERLIHATKANPERINGATAN,tblHolidays[KOREKSI],tblHolidays[HARI]),0),6),INDEX(tblHolidays[],MATCH(DATE(CalYear,MONTH(F13),DAY(F13)),IF(PERLIHATKANPERINGATAN,tblHolidays[KOREKSI],tblHolidays[HARI]),0),2),\"\"),\"\"),\"\")","v":""},{"$f":"IFERROR(IF(PERLIHATKANHARILIBUR,IF(INDEX(tblHolidays[],MATCH(DATE(CalYear,MONTH(G13),DAY(G13)),IF(PERLIHATKANPERINGATAN,tblHolidays[KOREKSI],tblHolidays[HARI]),0),6),INDEX(tblHolidays[],MATCH(DATE(CalYear,MONTH(G13),DAY(G13)),IF(PERLIHATKANPERINGATAN,tblHolidays[KOREKSI],tblHolidays[HARI]),0),2),\"\"),\"\"),\"\")","v":""},{"$f":"IFERROR(IF(PERLIHATKANHARILIBUR,IF(INDEX(tblHolidays[],MATCH(DATE(CalYear,MONTH(H13),DAY(H13)),IF(PERLIHATKANPERINGATAN,tblHolidays[KOREKSI],tblHolidays[HARI]),0),6),INDEX(tblHolidays[],MATCH(DATE(CalYear,MONTH(H13),DAY(H13)),IF(PERLIHATKANPERINGATAN,tblHolidays[KOREKSI],tblHolidays[HARI]),0),2),\"\"),\"\"),\"\")","v":""}]
[null,{"$f":"Hari+DATE(CalYear,5,1)-WEEKDAY(DATE(CalYear,5,1),(AWALMINGGU=\"SENIN\")+1)+36","v":"2018-06-03"},"2018-06-04","CATATAN"]
[null,{"$f":"IFERROR(IF(PERLIHATKANHARILIBUR,IF(INDEX(tblHolidays[],MATCH(DATE(CalYear,MONTH(B15),DAY(B15)),IF(PERLIHATKANPERINGATAN,tblHolidays[KOREKSI],tblHolidays[HARI]),0),6),INDEX(tblHolidays[],MATCH(DATE(CalYear,MONTH(B15),DAY(B15)),IF(PERLIHATKANPERINGATAN,tblHolidays[KOREKSI],tblHolidays[HARI]),0),2),\"\"),\"\"),\"\")","v":""},{"$f":"IFERROR(IF(PERLIHATKANHARILIBUR,IF(INDEX(tblHolidays[],MATCH(DATE(CalYear,MONTH(C15),DAY(C15)),IF(PERLIHATKANPERINGATAN,tblHolidays[KOREKSI],tblHolidays[HARI]),0),6),INDEX(tblHolidays[],MATCH(DATE(CalYear,MONTH(C15),DAY(C15)),IF(PERLIHATKANPERINGATAN,tblHolidays[KOREKSI],tblHolidays[HARI]),0),2),\"\"),\"\"),\"\")","v":""}]

{"sheet":"Juni","index":6,"n_rows":16,"n_cols":8,"rows_kept":16,"merged":[[1,1,1,3],[14,3,14,7],[15,3,15,7],[16,1,16,7]]}
[]
[null,{"$f":"B9","v":"2018-06-10"}]
[]
[null,{"$f":"AWALMINGGU","v":"MINGGU"},{"$f":"UPPER(TEXT(C5,\"dddd\"))","v":"SENIN"},"SELASA","RABU","KAMIS","JUMAT","SABTU"]
[null,{"$f":"Hari+DATE(CalYear,6,1)-WEEKDAY(DATE(CalYear,6,1),(AWALMINGGU=\"SENIN\")+1)+1","v":"2018-05-27"},"2018-05-28","2018-05-29","2018-05-30","2018-05-31","2018-06-01","2018-06-02"]
[null,{"$f":"IFERROR(IF(PERLIHATKANHARILIBUR,IF(INDEX(tblHolidays[],MATCH(DATE(CalYear-(DAY(B5)>15)+(ROW()>6),MONTH(B5),DAY(B5)),IF(PERLIHATKANPERINGATAN,tblHolidays[KOREKSI],tblHolidays[HARI]),0),6),INDEX(tblHolidays[],MATCH(DATE(CalYear-(DAY(B5)>15)+(ROW()>6),MONTH(B5),DAY(B5)),IF(PERLIHATKANPERINGATAN,tblHolidays[KOREKSI],tblHolidays[HARI]),0),2),\"\"),\"\"),\"\")","v":""},{"$f":"IFERROR(IF(PERLIHATKANHARILIBUR,IF(INDEX(tblHolidays[],MATCH(DATE(CalYear-(DAY(C5)>15)+(ROW()>6),MONTH(C5),DAY(C5)),IF(PERLIHATKANPERINGATAN,tblHolidays[KOREKSI],tblHolidays[HARI]),0),6),INDEX(tblHolidays[],MATCH(DATE(CalYear-(DAY(C5)>15)+(ROW()>6),MONTH(C5),DAY(C5)),IF(PERLIHATKANPERINGATAN,tblHolidays[KOREKSI],tblHolidays[HARI]),0),2),\"\"),\"\"),\"\")","v":""},{"$f":"IFERROR(IF(PERLIHATKANHARILIBUR,IF(INDEX(tblHolidays[],MATCH(DATE(CalYear-(DAY(D5)>15)+(ROW()>6),MONTH(D5),DAY(D5)),IF(PERLIHATKANPERINGATAN,tblHolidays[KOREKSI],tblHolidays[HARI]),0),6),INDEX(tblHolidays[],MATCH(DATE(CalYear-(DAY(D5)>15)+(ROW()>6),MONTH(D5),DAY(D5)),IF(PERLIHATKANPERINGATAN,tblHolidays[KOREKSI],tblHolidays[HARI]),0),2),\"\"),\"\"),\"\")","v":""},{"$f":"IFERROR(IF(PERLIHATKANHARILIBUR,IF(INDEX(tblHolidays[],MATCH(DATE(CalYear-(DAY(E5)>15)+(ROW()>6),MONTH(E5),DAY(E5)),IF(PERLIHATKANPERINGATAN,tblHolidays[KOREKSI],tblHolidays[HARI]),0),6),INDEX(tblHolidays[],MATCH(DATE(CalYear-(DAY(E5)>15)+(ROW()>6),MONTH(E5),DAY(E5)),IF(PERLIHATKANPERINGATAN,tblHolidays[KOREKSI],tblHolidays[HARI]),0),2),\"\"),\"\"),\"\")","v":""},{"$f":"IFERROR(IF(PERLIHATKANHARILIBUR,IF(INDEX(tblHolidays[],MATCH(DATE(CalYear-(DAY(F5)>15)+(ROW()>6),MONTH(F5),DAY(F5)),IF(PERLIHATKANPERINGATAN,tblHolidays[KOREKSI],tblHolidays[HARI]),0),6),INDEX(tblHolidays[],MATCH(DATE(CalYear-(DAY(F5)>15)+(ROW()>6),MONTH(F5),DAY(F5)),IF(PERLIHATKANPERINGATAN,tblHolidays[KOREKSI],tblHolidays[HARI]),0),2),\"\"),\"\"),\"\")","v":""},{"$f":"IFERROR(IF(PERLIHATKANHARILIBUR,IF(INDEX(tblHolidays[],MATCH(DATE(CalYear-(DAY(G5)>15)+(ROW()>6),MONTH(G5),DAY(G5)),IF(PERLIHATKANPERINGATAN,tblHolidays[KOREKSI],tblHolidays[HARI]),0),6),INDEX(tblHolidays[],MATCH(DATE(CalYear-(DAY(G5)>15)+(ROW()>6),MONTH(G5),DAY(G5)),IF(PERLIHATKANPERINGATAN,tblHolidays[KOREKSI],tblHolidays[HARI]),0),2),\"\"),\"\"),\"\")","v":""},{"$f":"IFERROR(IF(PERLIHATKANHARILIBUR,IF(INDEX(tblHolidays[],MATCH(DATE(CalYear-(DAY(H5)>15)+(ROW()>6),MONTH(H5),DAY(H5)),IF(PERLIHATKANPERINGATAN,tblHolidays[KOREKSI],tblHolidays[HARI]),0),6),INDEX(tblHolidays[],MATCH(DATE(CalYear-(DAY(H5)>15)+(ROW()>6),MONTH(H5),DAY(H5)),IF(PERLIHATKANPERINGATAN,tblHolidays[KOREKSI],tblHolidays[HARI]),0),2),\"\"),\"\"),\"\")","v":""}]
[null,{"$f":"Hari+DATE(CalYear,6,1)-WEEKDAY(DATE(CalYear,6,1),(AWALMINGGU=\"SENIN\")+1)+8","v":"2018-06-03"},"2018-06-04","2018-06-05","2018-06-06","2018-06-07","2018-06-08","2018-06-09"]
[null,{"$f":"IFERROR(IF(PERLIHATKANHARILIBUR,IF(INDEX(tblHolidays[],MATCH(DATE(CalYear,MONTH(B7),DAY(B7)),IF(PERLIHATKANPERINGATAN,tblHolidays[KOREKSI],tblHolidays[HARI]),0),6),INDEX(tblHolidays[],MATCH(DATE(CalYear,MONTH(B7),DAY(B7)),IF(PERLIHATKANPERINGATAN,tblHolidays[KOREKSI],tblHolidays[HARI]),0),2),\"\"),\"\"),\"\")","v":""},{"$f":"IFERROR(IF(PERLIHATKANHARILIBUR,IF(INDEX(tblHolidays[],MATCH(DATE(CalYear,MONTH(C7),DAY(C7)),IF(PERLIHATKANPERINGATAN,tblHolidays[KOREKSI],tblHolidays[HARI]),0),6),INDEX(tblHolidays[],MATCH(DATE(CalYear,MONTH(C7),DAY(C7)),IF(PERLIHATKANPERINGATAN,tblHolidays[KOREKSI],tblHolidays[HARI]),0),2),\"\"),\"\"),\"\")","v":""},{"$f":"IFERROR(IF(PERLIHATKANHARILIBUR,IF(INDEX(tblHolidays[],MATCH(DATE(CalYear,MONTH(D7),DAY(D7)),IF(PERLIHATKANPERINGATAN,tblHolidays[KOREKSI],tblHolidays[HARI]),0),6),INDEX(tblHolidays[],MATCH(DATE(CalYear,MONTH(D7),DAY(D7)),IF(PERLIHATKANPERINGATAN,tblHolidays[KOREKSI],tblHolidays[HARI]),0),2),\"\"),\"\"),\"\")","v":""},{"$f":"IFERROR(IF(PERLIHATKANHARILIBUR,IF(INDEX(tblHolidays[],MATCH(DATE(CalYear,MONTH(E7),DAY(E7)),IF(PERLIHATKANPERINGATAN,tblHolidays[KOREKSI],tblHolidays[HARI]),0),6),INDEX(tblHolidays[],MATCH(DATE(CalYear,MONTH(E7),DAY(E7)),IF(PERLIHATKANPERINGATAN,tblHolidays[KOREKSI],tblHolidays[HARI]),0),2),\"\"),\"\"),\"\")","v":""},{"$f":"IFERROR(IF(PERLIHATKANHARILIBUR,IF(INDEX(tblHolidays[],MATCH(DATE(CalYear,MONTH(F7),DAY(F7)),IF(PERLIHATKANPERINGATAN,tblHolidays[KOREKSI],tblHolidays[HARI]),0),6),INDEX(tblHolidays[],MATCH(DATE(CalYear,MONTH(F7),DAY(F7)),IF(PERLIHATKANPERINGATAN,tblHolidays[KOREKSI],tblHolidays[HARI]),0),2),\"\"),\"\"),\"\")","v":""},{"$f":"IFERROR(IF(PERLIHATKANHARILIBUR,IF(INDEX(tblHolidays[],MATCH(DATE(CalYear,MONTH(G7),DAY(G7)),IF(PERLIHATKANPERINGATAN,tblHolidays[KOREKSI],tblHolidays[HARI]),0),6),INDEX(tblHolidays[],MATCH(DATE(CalYear,MONTH(G7),DAY(G7)),IF(PERLIHATKANPERINGATAN,tblHolidays[KOREKSI],tblHolidays[HARI]),0),2),\"\"),\"\"),\"\")","v":""},{"$f":"IFERROR(IF(PERLIHATKANHARILIBUR,IF(INDEX(tblHolidays[],MATCH(DATE(CalYear,MONTH(H7),DAY(H7)),IF(PERLIHATKANPERINGATAN,tblHolidays[KOREKSI],tblHolidays[HARI]),0),6),INDEX(tblHolidays[],MATCH(DATE(CalYear,MONTH(H7),DAY(H7)),IF(PERLIHATKANPERINGATAN,tblHolidays[KOREKSI],tblHolidays[HARI]),0),2),\"\"),\"\"),\"\")","v":""}]
[null,{"$f":"Hari+DATE(CalYear,6,1)-WEEKDAY(DATE(CalYear,6,1),(AWALMINGGU=\"SENIN\")+1)+15","v":"2018-06-10"},"2018-06-11","2018-06-12","2018-06-13","2018-06-14","2018-06-15","2018-06-16"]
[null,{"$f":"IFERROR(IF(PERLIHATKANHARILIBUR,IF(INDEX(tblHolidays[],MATCH(DATE(CalYear,MONTH(B9),DAY(B9)),IF(PERLIHATKANPERINGATAN,tblHolidays[KOREKSI],tblHolidays[HARI]),0),6),INDEX(tblHolidays[],MATCH(DATE(CalYear,MONTH(B9),DAY(B9)),IF(PERLIHATKANPERINGATAN,tblHolidays[KOREKSI],tblHolidays[HARI]),0),2),\"\"),\"\"),\"\")","v":""},{"$f":"IFERROR(IF(PERLIHATKANHARILIBUR,IF(INDEX(tblHolidays[],MATCH(DATE(CalYear,MONTH(C9),DAY(C9)),IF(PERLIHATKANPERINGATAN,tblHolidays[KOREKSI],tblHolidays[HARI]),0),6),INDEX(tblHolidays[],MATCH(DATE(CalYear,MONTH(C9),DAY(C9)),IF(PERLIHATKANPERINGATAN,tblHolidays[KOREKSI],tblHolidays[HARI]),0),2),\"\"),\"\"),\"\")","v":""},{"$f":"IFERROR(IF(PERLIHATKANHARILIBUR,IF(INDEX(tblHolidays[],MATCH(DATE(CalYear,MONTH(D9),DAY(D9)),IF(PERLIHATKANPERINGATAN,tblHolidays[KOREKSI],tblHolidays[HARI]),0),6),INDEX(tblHolidays[],MATCH(DATE(CalYear,MONTH(D9),DAY(D9)),IF(PERLIHATKANPERINGATAN,tblHolidays[KOREKSI],tblHolidays[HARI]),0),2),\"\"),\"\"),\"\")","v":""},{"$f":"IFERROR(IF(PERLIHATKANHARILIBUR,IF(INDEX(tblHolidays[],MATCH(DATE(CalYear,MONTH(E9),DAY(E9)),IF(PERLIHATKANPERINGATAN,tblHolidays[KOREKSI],tblHolidays[HARI]),0),6),INDEX(tblHolidays[],MATCH(DATE(CalYear,MONTH(E9),DAY(E9)),IF(PERLIHATKANPERINGATAN,tblHolidays[KOREKSI],tblHolidays[HARI]),0),2),\"\"),\"\"),\"\")","v":""},{"$f":"IFERROR(IF(PERLIHATKANHARILIBUR,IF(INDEX(tblHolidays[],MATCH(DATE(CalYear,MONTH(F9),DAY(F9)),IF(PERLIHATKANPERINGATAN,tblHolidays[KOREKSI],tblHolidays[HARI]),0),6),INDEX(tblHolidays[],MATCH(DATE(CalYear,MONTH(F9),DAY(F9)),IF(PERLIHATKANPERINGATAN,tblHolidays[KOREKSI],tblHolidays[HARI]),0),2),\"\"),\"\"),\"\")","v":""},{"$f":"IFERROR(IF(PERLIHATKANHARILIBUR,IF(INDEX(tblHolidays[],MATCH(DATE(CalYear,MONTH(G9),DAY(G9)),IF(PERLIHATKANPERINGATAN,tblHolidays[KOREKSI],tblHolidays[HARI]),0),6),INDEX(tblHolidays[],MATCH(DATE(CalYear,MONTH(G9),DAY(G9)),IF(PERLIHATKANPERINGATAN,tblHolidays[KOREKSI],tblHolidays[HARI]),0),2),\"\"),\"\"),\"\")","v":""},{"$f":"IFERROR(IF(PERLIHATKANHARILIBUR,IF(INDEX(tblHolidays[],MATCH(DATE(CalYear,MONTH(H9),DAY(H9)),IF(PERLIHATKANPERINGATAN,tblHolidays[KOREKSI],tblHolidays[HARI]),0),6),INDEX(tblHolidays[],MATCH(DATE(CalYear,MONTH(H9),DAY(H9)),IF(PERLIHATKANPERINGATAN,tblHolidays[KOREKSI],tblHolidays[HARI]),0),2),\"\"),\"\"),\"\")","v":""}]
[null,{"$f":"Hari+DATE(CalYear,6,1)-WEEKDAY(DATE(CalYear,6,1),(AWALMINGGU=\"SENIN\")+1)+22","v":"2018-06-17"},"2018-06-18","2018-06-19","2018-06-20","2018-06-21","2018-06-22","2018-06-23"]
[null,{"$f":"IFERROR(IF(PERLIHATKANHARILIBUR,IF(INDEX(tblHolidays[],MATCH(DATE(CalYear,MONTH(B11),DAY(B11)),IF(PERLIHATKANPERINGATAN,tblHolidays[KOREKSI],tblHolidays[HARI]),0),6),INDEX(tblHolidays[],MATCH(DATE(CalYear,MONTH(B11),DAY(B11)),IF(PERLIHATKANPERINGATAN,tblHolidays[KOREKSI],tblHolidays[HARI]),0),2),\"\"),\"\"),\"\")","v":""},{"$f":"IFERROR(IF(PERLIHATKANHARILIBUR,IF(INDEX(tblHolidays[],MATCH(DATE(CalYear,MONTH(C11),DAY(C11)),IF(PERLIHATKANPERINGATAN,tblHolidays[KOREKSI],tblHolidays[HARI]),0),6),INDEX(tblHolidays[],MATCH(DATE(CalYear,MONTH(C11),DAY(C11)),IF(PERLIHATKANPERINGATAN,tblHolidays[KOREKSI],tblHolidays[HARI]),0),2),\"\"),\"\"),\"\")","v":""},{"$f":"IFERROR(IF(PERLIHATKANHARILIBUR,IF(INDEX(tblHolidays[],MATCH(DATE(CalYear,MONTH(D11),DAY(D11)),IF(PERLIHATKANPERINGATAN,tblHolidays[KOREKSI],tblHolidays[HARI]),0),6),INDEX(tblHolidays[],MATCH(DATE(CalYear,MONTH(D11),DAY(D11)),IF(PERLIHATKANPERINGATAN,tblHolidays[KOREKSI],tblHolidays[HARI]),0),2),\"\"),\"\"),\"\")","v":""},{"$f":"IFERROR(IF(PERLIHATKANHARILIBUR,IF(INDEX(tblHolidays[],MATCH(DATE(CalYear,MONTH(E11),DAY(E11)),IF(PERLIHATKANPERINGATAN,tblHolidays[KOREKSI],tblHolidays[HARI]),0),6),INDEX(tblHolidays[],MATCH(DATE(CalYear,MONTH(E11),DAY(E11)),IF(PERLIHATKANPERINGATAN,tblHolidays[KOREKSI],tblHolidays[HARI]),0),2),\"\"),\"\"),\"\")","v":""},{"$f":"IFERROR(IF(PERLIHATKANHARILIBUR,IF(INDEX(tblHolidays[],MATCH(DATE(CalYear,MONTH(F11),DAY(F11)),IF(PERLIHATKANPERINGATAN,tblHolidays[KOREKSI],tblHolidays[HARI]),0),6),INDEX(tblHolidays[],MATCH(DATE(CalYear,MONTH(F11),DAY(F11)),IF(PERLIHATKANPERINGATAN,tblHolidays[KOREKSI],tblHolidays[HARI]),0),2),\"\"),\"\"),\"\")","v":""},{"$f":"IFERROR(IF(PERLIHATKANHARILIBUR,IF(INDEX(tblHolidays[],MATCH(DATE(CalYear,MONTH(G11),DAY(G11)),IF(PERLIHATKANPERINGATAN,tblHolidays[KOREKSI],tblHolidays[HARI]),0),6),INDEX(tblHolidays[],MATCH(DATE(CalYear,MONTH(G11),DAY(G11)),IF(PERLIHATKANPERINGATAN,tblHolidays[KOREKSI],tblHolidays[HARI]),0),2),\"\"),\"\"),\"\")","v":""},{"$f":"IFERROR(IF(PERLIHATKANHARILIBUR,IF(INDEX(tblHolidays[],MATCH(DATE(CalYear,MONTH(H11),DAY(H11)),IF(PERLIHATKANPERINGATAN,tblHolidays[KOREKSI],tblHolidays[HARI]),0),6),INDEX(tblHolidays[],MATCH(DATE(CalYear,MONTH(H11),DAY(H11)),IF(PERLIHATKANPERINGATAN,tblHolidays[KOREKSI],tblHolidays[HARI]),0),2),\"\"),\"\"),\"\")","v":""}]
[null,{"$f":"Hari+DATE(CalYear,6,1)-WEEKDAY(DATE(CalYear,6,1),(AWALMINGGU=\"SENIN\")+1)+29","v":"2018-06-24"},"2018-06-25","2018-06-26","2018-06-27","2018-06-28","2018-06-29","2018-06-30"]
[null,{"$f":"IFERROR(IF(PERLIHATKANHARILIBUR,IF(INDEX(tblHolidays[],MATCH(DATE(CalYear,MONTH(B13),DAY(B13)),IF(PERLIHATKANPERINGATAN,tblHolidays[KOREKSI],tblHolidays[HARI]),0),6),INDEX(tblHolidays[],MATCH(DATE(CalYear,MONTH(B13),DAY(B13)),IF(PERLIHATKANPERINGATAN,tblHolidays[KOREKSI],tblHolidays[HARI]),0),2),\"\"),\"\"),\"\")","v":""},{"$f":"IFERROR(IF(PERLIHATKANHARILIBUR,IF(INDEX(tblHolidays[],MATCH(DATE(CalYear,MONTH(C13),DAY(C13)),IF(PERLIHATKANPERINGATAN,tblHolidays[KOREKSI],tblHolidays[HARI]),0),6),INDEX(tblHolidays[],MATCH(DATE(CalYear,MONTH(C13),DAY(C13)),IF(PERLIHATKANPERINGATAN,tblHolidays[KOREKSI],tblHolidays[HARI]),0),2),\"\"),\"\"),\"\")","v":""},{"$f":"IFERROR(IF(PERLIHATKANHARILIBUR,IF(INDEX(tblHolidays[],MATCH(DATE(CalYear,MONTH(D13),DAY(D13)),IF(PERLIHATKANPERINGATAN,tblHolidays[KOREKSI],tblHolidays[HARI]),0),6),INDEX(tblHolidays[],MATCH(DATE(CalYear,MONTH(D13),DAY(D13)),IF(PERLIHATKANPERINGATAN,tblHolidays[KOREKSI],tblHolidays[HARI]),0),2),\"\"),\"\"),\"\")","v":""},{"$f":"IFERROR(IF(PERLIHATKANHARILIBUR,IF(INDEX(tblHolidays[],MATCH(DATE(CalYear,MONTH(E13),DAY(E13)),IF(PERLIHATKANPERINGATAN,tblHolidays[KOREKSI],tblHolidays[HARI]),0),6),INDEX(tblHolidays[],MATCH(DATE(CalYear,MONTH(E13),DAY(E13)),IF(PERLIHATKANPERINGATAN,tblHolidays[KOREKSI],tblHolidays[HARI]),0),2),\"\"),\"\"),\"\")","v":""},{"$f":"IFERROR(IF(PERLIHATKANHARILIBUR,IF(INDEX(tblHolidays[],MATCH(DATE(CalYear,MONTH(F13),DAY(F13)),IF(PERLIHATKANPERINGATAN,tblHolidays[KOREKSI],tblHolidays[HARI]),0),6),INDEX(tblHolidays[],MATCH(DATE(CalYear,MONTH(F13),DAY(F13)),IF(PERLIHATKANPERINGATAN,tblHolidays[KOREKSI],tblHolidays[HARI]),0),2),\"\"),\"\"),\"\")","v":""},{"$f":"IFERROR(IF(PERLIHATKANHARILIBUR,IF(INDEX(tblHolidays[],MATCH(DATE(CalYear,MONTH(G13),DAY(G13)),IF(PERLIHATKANPERINGATAN,tblHolidays[KOREKSI],tblHolidays[HARI]),0),6),INDEX(tblHolidays[],MATCH(DATE(CalYear,MONTH(G13),DAY(G13)),IF(PERLIHATKANPERINGATAN,tblHolidays[KOREKSI],tblHolidays[HARI]),0),2),\"\"),\"\"),\"\")","v":""},{"$f":"IFERROR(IF(PERLIHATKANHARILIBUR,IF(INDEX(tblHolidays[],MATCH(DATE(CalYear,MONTH(H13),DAY(H13)),IF(PERLIHATKANPERINGATAN,tblHolidays[KOREKSI],tblHolidays[HARI]),0),6),INDEX(tblHolidays[],MATCH(DATE(CalYear,MONTH(H13),DAY(H13)),IF(PERLIHATKANPERINGATAN,tblHolidays[KOREKSI],tblHolidays[HARI]),0),2),\"\"),\"\"),\"\")","v":""}]
[null,{"$f":"Hari+DATE(CalYear,6,1)-WEEKDAY(DATE(CalYear,6,1),(AWALMINGGU=\"SENIN\")+1)+36","v":"2018-07-01"},"2018-07-02","CATATAN"]
[null,{"$f":"IFERROR(IF(PERLIHATKANHARILIBUR,IF(INDEX(tblHolidays[],MATCH(DATE(CalYear,MONTH(B15),DAY(B15)),IF(PERLIHATKANPERINGATAN,tblHolidays[KOREKSI],tblHolidays[HARI]),0),6),INDEX(tblHolidays[],MATCH(DATE(CalYear,MONTH(B15),DAY(B15)),IF(PERLIHATKANPERINGATAN,tblHolidays[KOREKSI],tblHolidays[HARI]),0),2),\"\"),\"\"),\"\")","v":""},{"$f":"IFERROR(IF(PERLIHATKANHARILIBUR,IF(INDEX(tblHolidays[],MATCH(DATE(CalYear,MONTH(C15),DAY(C15)),IF(PERLIHATKANPERINGATAN,tblHolidays[KOREKSI],tblHolidays[HARI]),0),6),INDEX(tblHolidays[],MATCH(DATE(CalYear,MONTH(C15),DAY(C15)),IF(PERLIHATKANPERINGATAN,tblHolidays[KOREKSI],tblHolidays[HARI]),0),2),\"\"),\"\"),\"\")","v":""}]

{"sheet":"Juli","index":7,"n_rows":16,"n_cols":8,"rows_kept":16,"merged":[[1,1,1,3],[14,3,14,7],[15,3,15,7],[16,1,16,7]]}
[]
[null,{"$f":"B9","v":"2018-07-15"}]
[]
[null,{"$f":"AWALMINGGU","v":"MINGGU"},{"$f":"UPPER(TEXT(C5,\"dddd\"))","v":"SENIN"},"SELASA","RABU","KAMIS","JUMAT","SABTU"]
[null,{"$f":"Hari+DATE(CalYear,7,1)-WEEKDAY(DATE(CalYear,7,1),(AWALMINGGU=\"SENIN\")+1)+1","v":"2018-07-01"},"2018-07-02","2018-07-03","2018-07-04","2018-07-05","2018-07-06","2018-07-07"]
[null,{"$f":"IFERROR(IF(PERLIHATKANHARILIBUR,IF(INDEX(tblHolidays[],MATCH(DATE(CalYear-(DAY(B5)>15)+(ROW()>6),MONTH(B5),DAY(B5)),IF(PERLIHATKANPERINGATAN,tblHolidays[KOREKSI],tblHolidays[HARI]),0),6),INDEX(tblHolidays[],MATCH(DATE(CalYear-(DAY(B5)>15)+(ROW()>6),MONTH(B5),DAY(B5)),IF(PERLIHATKANPERINGATAN,tblHolidays[KOREKSI],tblHolidays[HARI]),0),2),\"\"),\"\"),\"\")","v":""},{"$f":"IFERROR(IF(PERLIHATKANHARILIBUR,IF(INDEX(tblHolidays[],MATCH(DATE(CalYear-(DAY(C5)>15)+(ROW()>6),MONTH(C5),DAY(C5)),IF(PERLIHATKANPERINGATAN,tblHolidays[KOREKSI],tblHolidays[HARI]),0),6),INDEX(tblHolidays[],MATCH(DATE(CalYear-(DAY(C5)>15)+(ROW()>6),MONTH(C5),DAY(C5)),IF(PERLIHATKANPERINGATAN,tblHolidays[KOREKSI],tblHolidays[HARI]),0),2),\"\"),\"\"),\"\")","v":""},{"$f":"IFERROR(IF(PERLIHATKANHARILIBUR,IF(INDEX(tblHolidays[],MATCH(DATE(CalYear-(DAY(D5)>15)+(ROW()>6),MONTH(D5),DAY(D5)),IF(PERLIHATKANPERINGATAN,tblHolidays[KOREKSI],tblHolidays[HARI]),0),6),INDEX(tblHolidays[],MATCH(DATE(CalYear-(DAY(D5)>15)+(ROW()>6),MONTH(D5),DAY(D5)),IF(PERLIHATKANPERINGATAN,tblHolidays[KOREKSI],tblHolidays[HARI]),0),2),\"\"),\"\"),\"\")","v":""},{"$f":"IFERROR(IF(PERLIHATKANHARILIBUR,IF(INDEX(tblHolidays[],MATCH(DATE(CalYear-(DAY(E5)>15)+(ROW()>6),MONTH(E5),DAY(E5)),IF(PERLIHATKANPERINGATAN,tblHolidays[KOREKSI],tblHolidays[HARI]),0),6),INDEX(tblHolidays[],MATCH(DATE(CalYear-(DAY(E5)>15)+(ROW()>6),MONTH(E5),DAY(E5)),IF(PERLIHATKANPERINGATAN,tblHolidays[KOREKSI],tblHolidays[HARI]),0),2),\"\"),\"\"),\"\")","v":"Hari Raya Idul Fitri 1439 H"},{"$f":"IFERROR(IF(PERLIHATKANHARILIBUR,IF(INDEX(tblHolidays[],MATCH(DATE(CalYear-(DAY(F5)>15)+(ROW()>6),MONTH(F5),DAY(F5)),IF(PERLIHATKANPERINGATAN,tblHolidays[KOREKSI],tblHolidays[HARI]),0),6),INDEX(tblHolidays[],MATCH(DATE(CalYear-(DAY(F5)>15)+(ROW()>6),MONTH(F5),DAY(F5)),IF(PERLIHATKANPERINGATAN,tblHolidays[KOREKSI],tblHolidays[HARI]),0),2),\"\"),\"\"),\"\")","v":""},{"$f":"IFERROR(IF(PERLIHATKANHARILIBUR,IF(INDEX(tblHolidays[],MATCH(DATE(CalYear-(DAY(G5)>15)+(ROW()>6),MONTH(G5),DAY(G5)),IF(PERLIHATKANPERINGATAN,tblHolidays[KOREKSI],tblHolidays[HARI]),0),6),INDEX(tblHolidays[],MATCH(DATE(CalYear-(DAY(G5)>15)+(ROW()>6),MONTH(G5),DAY(G5)),IF(PERLIHATKANPERINGATAN,tblHolidays[KOREKSI],tblHolidays[HARI]),0),2),\"\"),\"\"),\"\")","v":""},{"$f":"IFERROR(IF(PERLIHATKANHARILIBUR,IF(INDEX(tblHolidays[],MATCH(DATE(CalYear-(DAY(H5)>15)+(ROW()>6),MONTH(H5),DAY(H5)),IF(PERLIHATKANPERINGATAN,tblHolidays[KOREKSI],tblHolidays[HARI]),0),6),INDEX(tblHolidays[],MATCH(DATE(CalYear-(DAY(H5)>15)+(ROW()>6),MONTH(H5),DAY(H5)),IF(PERLIHATKANPERINGATAN,tblHolidays[KOREKSI],tblHolidays[HARI]),0),2),\"\"),\"\"),\"\")","v":""}]
[null,{"$f":"Hari+DATE(CalYear,7,1)-WEEKDAY(DATE(CalYear,7,1),(AWALMINGGU=\"SENIN\")+1)+8","v":"2018-07-08"},"2018-07-09","2018-07-10","2018-07-11","2018-07-12","2018-07-13","2018-07-14"]
[null,{"$f":"IFERROR(IF(PERLIHATKANHARILIBUR,IF(INDEX(tblHolidays[],MATCH(DATE(CalYear,MONTH(B7),DAY(B7)),IF(PERLIHATKANPERINGATAN,tblHolidays[KOREKSI],tblHolidays[HARI]),0),6),INDEX(tblHolidays[],MATCH(DATE(CalYear,MONTH(B7),DAY(B7)),IF(PERLIHATKANPERINGATAN,tblHolidays[KOREKSI],tblHolidays[HARI]),0),2),\"\"),\"\"),\"\")","v":""},{"$f":"IFERROR(IF(PERLIHATKANHARILIBUR,IF(INDEX(tblHolidays[],MATCH(DATE(CalYear,MONTH(C7),DAY(C7)),IF(PERLIHATKANPERINGATAN,tblHolidays[KOREKSI],tblHolidays[HARI]),0),6),INDEX(tblHolidays[],MATCH(DATE(CalYear,MONTH(C7),DAY(C7)),IF(PERLIHATKANPERINGATAN,tblHolidays[KOREKSI],tblHolidays[HARI]),0),2),\"\"),\"\"),\"\")","v":""},{"$f":"IFERROR(IF(PERLIHATKANHARILIBUR,IF(INDEX(tblHolidays[],MATCH(DATE(CalYear,MONTH(D7),DAY(D7)),IF(PERLIHATKANPERINGATAN,tblHolidays[KOREKSI],tblHolidays[HARI]),0),6),INDEX(tblHolidays[],MATCH(DATE(CalYear,MONTH(D7),DAY(D7)),IF(PERLIHATKANPERINGATAN,tblHolidays[KOREKSI],tblHolidays[HARI]),0),2),\"\"),\"\"),\"\")","v":""},{"$f":"IFERROR(IF(PERLIHATKANHARILIBUR,IF(INDEX(tblHolidays[],MATCH(DATE(CalYear,MONTH(E7),DAY(E7)),IF(PERLIHATKANPERINGATAN,tblHolidays[KOREKSI],tblHolidays[HARI]),0),6),INDEX(tblHolidays[],MATCH(DATE(CalYear,MONTH(E7),DAY(E7)),IF(PERLIHATKANPERINGATAN,tblHolidays[KOREKSI],tblHolidays[HARI]),0),2),\"\"),\"\"),\"\")","v":""},{"$f":"IFERROR(IF(PERLIHATKANHARILIBUR,IF(INDEX(tblHolidays[],MATCH(DATE(CalYear,MONTH(F7),DAY(F7)),IF(PERLIHATKANPERINGATAN,tblHolidays[KOREKSI],tblHolidays[HARI]),0),6),INDEX(tblHolidays[],MATCH(DATE(CalYear,MONTH(F7),DAY(F7)),IF(PERLIHATKANPERINGATAN,tblHolidays[KOREKSI],tblHolidays[HARI]),0),2),\"\"),\"\"),\"\")","v":""},{"$f":"IFERROR(IF(PERLIHATKANHARILIBUR,IF(INDEX(tblHolidays[],MATCH(DATE(CalYear,MONTH(G7),DAY(G7)),IF(PERLIHATKANPERINGATAN,tblHolidays[KOREKSI],tblHolidays[HARI]),0),6),INDEX(tblHolidays[],MATCH(DATE(CalYear,MONTH(G7),DAY(G7)),IF(PERLIHATKANPERINGATAN,tblHolidays[KOREKSI],tblHolidays[HARI]),0),2),\"\"),\"\"),\"\")","v":""},{"$f":"IFERROR(IF(PERLIHATKANHARILIBUR,IF(INDEX(tblHolidays[],MATCH(DATE(CalYear,MONTH(H7),DAY(H7)),IF(PERLIHATKANPERINGATAN,tblHolidays[KOREKSI],tblHolidays[HARI]),0),6),INDEX(tblHolidays[],MATCH(DATE(CalYear,MONTH(H7),DAY(H7)),IF(PERLIHATKANPERINGATAN,tblHolidays[KOREKSI],tblHolidays[HARI]),0),2),\"\"),\"\"),\"\")","v":""}]
[null,{"$f":"Hari+DATE(CalYear,7,1)-WEEKDAY(DATE(CalYear,7,1),(AWALMINGGU=\"SENIN\")+1)+15","v":"2018-07-15"},"2018-07-16","2018-07-17","2018-07-18","2018-07-19","2018-07-20","2018-07-21"]
[null,{"$f":"IFERROR(IF(PERLIHATKANHARILIBUR,IF(INDEX(tblHolidays[],MATCH(DATE(CalYear,MONTH(B9),DAY(B9)),IF(PERLIHATKANPERINGATAN,tblHolidays[KOREKSI],tblHolidays[HARI]),0),6),INDEX(tblHolidays[],MATCH(DATE(CalYear,MONTH(B9),DAY(B9)),IF(PERLIHATKANPERINGATAN,tblHolidays[KOREKSI],tblHolidays[HARI]),0),2),\"\"),\"\"),\"\")","v":""},{"$f":"IFERROR(IF(PERLIHATKANHARILIBUR,IF(INDEX(tblHolidays[],MATCH(DATE(CalYear,MONTH(C9),DAY(C9)),IF(PERLIHATKANPERINGATAN,tblHolidays[KOREKSI],tblHolidays[HARI]),0),6),INDEX(tblHolidays[],MATCH(DATE(CalYear,MONTH(C9),DAY(C9)),IF(PERLIHATKANPERINGATAN,tblHolidays[KOREKSI],tblHolidays[HARI]),0),2),\"\"),\"\"),\"\")","v":""},{"$f":"IFERROR(IF(PERLIHATKANHARILIBUR,IF(INDEX(tblHolidays[],MATCH(DATE(CalYear,MONTH(D9),DAY(D9)),IF(PERLIHATKANPERINGATAN,tblHolidays[KOREKSI],tblHolidays[HARI]),0),6),INDEX(tblHolidays[],MATCH(DATE(CalYear,MONTH(D9),DAY(D9)),IF(PERLIHATKANPERINGATAN,tblHolidays[KOREKSI],tblHolidays[HARI]),0),2),\"\"),\"\"),\"\")","v":""},{"$f":"IFERROR(IF(PERLIHATKANHARILIBUR,IF(INDEX(tblHolidays[],MATCH(DATE(CalYear,MONTH(E9),DAY(E9)),IF(PERLIHATKANPERINGATAN,tblHolidays[KOREKSI],tblHolidays[HARI]),0),6),INDEX(tblHolidays[],MATCH(DATE(CalYear,MONTH(E9),DAY(E9)),IF(PERLIHATKANPERINGATAN,tblHolidays[KOREKSI],tblHolidays[HARI]),0),2),\"\"),\"\"),\"\")","v":""},{"$f":"IFERROR(IF(PERLIHATKANHARILIBUR,IF(INDEX(tblHolidays[],MATCH(DATE(CalYear,MONTH(F9),DAY(F9)),IF(PERLIHATKANPERINGATAN,tblHolidays[KOREKSI],tblHolidays[HARI]),0),6),INDEX(tblHolidays[],MATCH(DATE(CalYear,MONTH(F9),DAY(F9)),IF(PERLIHATKANPERINGATAN,tblHolidays[KOREKSI],tblHolidays[HARI]),0),2),\"\"),\"\"),\"\")","v":""},{"$f":"IFERROR(IF(PERLIHATKANHARILIBUR,IF(INDEX(tblHolidays[],MATCH(DATE(CalYear,MONTH(G9),DAY(G9)),IF(PERLIHATKANPERINGATAN,tblHolidays[KOREKSI],tblHolidays[HARI]),0),6),INDEX(tblHolidays[],MATCH(DATE(CalYear,MONTH(G9),DAY(G9)),IF(PERLIHATKANPERINGATAN,tblHolidays[KOREKSI],tblHolidays[HARI]),0),2),\"\"),\"\"),\"\")","v":""},{"$f":"IFERROR(IF(PERLIHATKANHARILIBUR,IF(INDEX(tblHolidays[],MATCH(DATE(CalYear,MONTH(H9),DAY(H9)),IF(PERLIHATKANPERINGATAN,tblHolidays[KOREKSI],tblHolidays[HARI]),0),6),INDEX(tblHolidays[],MATCH(DATE(CalYear,MONTH(H9),DAY(H9)),IF(PERLIHATKANPERINGATAN,tblHolidays[KOREKSI],tblHolidays[HARI]),0),2),\"\"),\"\"),\"\")","v":""}]
[null,{"$f":"Hari+DATE(CalYear,7,1)-WEEKDAY(DATE(CalYear,7,1),(AWALMINGGU=\"SENIN\")+1)+22","v":"2018-07-22"},"2018-07-23","2018-07-24","2018-07-25","2018-07-26","2018-07-27","2018-07-28"]
[null,{"$f":"IFERROR(IF(PERLIHATKANHARILIBUR,IF(INDEX(tblHolidays[],MATCH(DATE(CalYear,MONTH(B11),DAY(B11)),IF(PERLIHATKANPERINGATAN,tblHolidays[KOREKSI],tblHolidays[HARI]),0),6),INDEX(tblHolidays[],MATCH(DATE(CalYear,MONTH(B11),DAY(B11)),IF(PERLIHATKANPERINGATAN,tblHolidays[KOREKSI],tblHolidays[HARI]),0),2),\"\"),\"\"),\"\")","v":""},{"$f":"IFERROR(IF(PERLIHATKANHARILIBUR,IF(INDEX(tblHolidays[],MATCH(DATE(CalYear,MONTH(C11),DAY(C11)),IF(PERLIHATKANPERINGATAN,tblHolidays[KOREKSI],tblHolidays[HARI]),0),6),INDEX(tblHolidays[],MATCH(DATE(CalYear,MONTH(C11),DAY(C11)),IF(PERLIHATKANPERINGATAN,tblHolidays[KOREKSI],tblHolidays[HARI]),0),2),\"\"),\"\"),\"\")","v":""},{"$f":"IFERROR(IF(PERLIHATKANHARILIBUR,IF(INDEX(tblHolidays[],MATCH(DATE(CalYear,MONTH(D11),DAY(D11)),IF(PERLIHATKANPERINGATAN,tblHolidays[KOREKSI],tblHolidays[HARI]),0),6),INDEX(tblHolidays[],MATCH(DATE(CalYear,MONTH(D11),DAY(D11)),IF(PERLIHATKANPERINGATAN,tblHolidays[KOREKSI],tblHolidays[HARI]),0),2),\"\"),\"\"),\"\")","v":""},{"$f":"IFERROR(IF(PERLIHATKANHARILIBUR,IF(INDEX(tblHolidays[],MATCH(DATE(CalYear,MONTH(E11),DAY(E11)),IF(PERLIHATKANPERINGATAN,tblHolidays[KOREKSI],tblHolidays[HARI]),0),6),INDEX(tblHolidays[],MATCH(DATE(CalYear,MONTH(E11),DAY(E11)),IF(PERLIHATKANPERINGATAN,tblHolidays[KOREKSI],tblHolidays[HARI]),0),2),\"\"),\"\"),\"\")","v":""},{"$f":"IFERROR(IF(PERLIHATKANHARILIBUR,IF(INDEX(tblHolidays[],MATCH(DATE(CalYear,MONTH(F11),DAY(F11)),IF(PERLIHATKANPERINGATAN,tblHolidays[KOREKSI],tblHolidays[HARI]),0),6),INDEX(tblHolidays[],MATCH(DATE(CalYear,MONTH(F11),DAY(F11)),IF(PERLIHATKANPERINGATAN,tblHolidays[KOREKSI],tblHolidays[HARI]),0),2),\"\"),\"\"),\"\")","v":""},{"$f":"IFERROR(IF(PERLIHATKANHARILIBUR,IF(INDEX(tblHolidays[],MATCH(DATE(CalYear,MONTH(G11),DAY(G11)),IF(PERLIHATKANPERINGATAN,tblHolidays[KOREKSI],tblHolidays[HARI]),0),6),INDEX(tblHolidays[],MATCH(DATE(CalYear,MONTH(G11),DAY(G11)),IF(PERLIHATKANPERINGATAN,tblHolidays[KOREKSI],tblHolidays[HARI]),0),2),\"\"),\"\"),\"\")","v":""},{"$f":"IFERROR(IF(PERLIHATKANHARILIBUR,IF(INDEX(tblHolidays[],MATCH(DATE(CalYear,MONTH(H11),DAY(H11)),IF(PERLIHATKANPERINGATAN,tblHolidays[KOREKSI],tblHolidays[HARI]),0),6),INDEX(tblHolidays[],MATCH(DATE(CalYear,MONTH(H11),DAY(H11)),IF(PERLIHATKANPERINGATAN,tblHolidays[KOREKSI],tblHolidays[HARI]),0),2),\"\"),\"\"),\"\")","v":""}]
[null,{"$f":"Hari+DATE(CalYear,7,1)-WEEKDAY(DATE(CalYear,7,1),(AWALMINGGU=\"SENIN\")+1)+29","v":"2018-07-29"},"2018-07-30","2018-07-31","2018-08-01","2018-08-02","2018-08-03","2018-08-04"]
[null,{"$f":"IFERROR(IF(PERLIHATKANHARILIBUR,IF(INDEX(tblHolidays[],MATCH(DATE(CalYear,MONTH(B13),DAY(B13)),IF(PERLIHATKANPERINGATAN,tblHolidays[KOREKSI],tblHolidays[HARI]),0),6),INDEX(tblHolidays[],MATCH(DATE(CalYear,MONTH(B13),DAY(B13)),IF(PERLIHATKANPERINGATAN,tblHolidays[KOREKSI],tblHolidays[HARI]),0),2),\"\"),\"\"),\"\")","v":""},{"$f":"IFERROR(IF(PERLIHATKANHARILIBUR,IF(INDEX(tblHolidays[],MATCH(DATE(CalYear,MONTH(C13),DAY(C13)),IF(PERLIHATKANPERINGATAN,tblHolidays[KOREKSI],tblHolidays[HARI]),0),6),INDEX(tblHolidays[],MATCH(DATE(CalYear,MONTH(C13),DAY(C13)),IF(PERLIHATKANPERINGATAN,tblHolidays[KOREKSI],tblHolidays[HARI]),0),2),\"\"),\"\"),\"\")","v":""},{"$f":"IFERROR(IF(PERLIHATKANHARILIBUR,IF(INDEX(tblHolidays[],MATCH(DATE(CalYear,MONTH(D13),DAY(D13)),IF(PERLIHATKANPERINGATAN,tblHolidays[KOREKSI],tblHolidays[HARI]),0),6),INDEX(tblHolidays[],MATCH(DATE(CalYear,MONTH(D13),DAY(D13)),IF(PERLIHATKANPERINGATAN,tblHolidays[KOREKSI],tblHolidays[HARI]),0),2),\"\"),\"\"),\"\")","v":""},{"$f":"IFERROR(IF(PERLIHATKANHARILIBUR,IF(INDEX(tblHolidays[],MATCH(DATE(CalYear,MONTH(E13),DAY(E13)),IF(PERLIHATKANPERINGATAN,tblHolidays[KOREKSI],tblHolidays[HARI]),0),6),INDEX(tblHolidays[],MATCH(DATE(CalYear,MONTH(E13),DAY(E13)),IF(PERLIHATKANPERINGATAN,tblHolidays[KOREKSI],tblHolidays[HARI]),0),2),\"\"),\"\"),\"\")","v":""},{"$f":"IFERROR(IF(PERLIHATKANHARILIBUR,IF(INDEX(tblHolidays[],MATCH(DATE(CalYear,MONTH(F13),DAY(F13)),IF(PERLIHATKANPERINGATAN,tblHolidays[KOREKSI],tblHolidays[HARI]),0),6),INDEX(tblHolidays[],MATCH(DATE(CalYear,MONTH(F13),DAY(F13)),IF(PERLIHATKANPERINGATAN,tblHolidays[KOREKSI],tblHolidays[HARI]),0),2),\"\"),\"\"),\"\")","v":""},{"$f":"IFERROR(IF(PERLIHATKANHARILIBUR,IF(INDEX(tblHolidays[],MATCH(DATE(CalYear,MONTH(G13),DAY(G13)),IF(PERLIHATKANPERINGATAN,tblHolidays[KOREKSI],tblHolidays[HARI]),0),6),INDEX(tblHolidays[],MATCH(DATE(CalYear,MONTH(G13),DAY(G13)),IF(PERLIHATKANPERINGATAN,tblHolidays[KOREKSI],tblHolidays[HARI]),0),2),\"\"),\"\"),\"\")","v":""},{"$f":"IFERROR(IF(PERLIHATKANHARILIBUR,IF(INDEX(tblHolidays[],MATCH(DATE(CalYear,MONTH(H13),DAY(H13)),IF(PERLIHATKANPERINGATAN,tblHolidays[KOREKSI],tblHolidays[HARI]),0),6),INDEX(tblHolidays[],MATCH(DATE(CalYear,MONTH(H13),DAY(H13)),IF(PERLIHATKANPERINGATAN,tblHolidays[KOREKSI],tblHolidays[HARI]),0),2),\"\"),\"\"),\"\")","v":""}]
[null,{"$f":"Hari+DATE(CalYear,7,1)-WEEKDAY(DATE(CalYear,7,1),(AWALMINGGU=\"SENIN\")+1)+36","v":"2018-08-05"},"2018-08-06","CATATAN"]
[null,{"$f":"IFERROR(IF(PERLIHATKANHARILIBUR,IF(INDEX(tblHolidays[],MATCH(DATE(CalYear,MONTH(B15),DAY(B15)),IF(PERLIHATKANPERINGATAN,tblHolidays[KOREKSI],tblHolidays[HARI]),0),6),INDEX(tblHolidays[],MATCH(DATE(CalYear,MONTH(B15),DAY(B15)),IF(PERLIHATKANPERINGATAN,tblHolidays[KOREKSI],tblHolidays[HARI]),0),2),\"\"),\"\"),\"\")","v":""},{"$f":"IFERROR(IF(PERLIHATKANHARILIBUR,IF(INDEX(tblHolidays[],MATCH(DATE(CalYear,MONTH(C15),DAY(C15)),IF(PERLIHATKANPERINGATAN,tblHolidays[KOREKSI],tblHolidays[HARI]),0),6),INDEX(tblHolidays[],MATCH(DATE(CalYear,MONTH(C15),DAY(C15)),IF(PERLIHATKANPERINGATAN,tblHolidays[KOREKSI],tblHolidays[HARI]),0),2),\"\"),\"\"),\"\")","v":""}]

{"sheet":"Agustus","index":8,"n_rows":16,"n_cols":8,"rows_kept":16,"merged":[[1,1,1,3],[14,3,14,7],[15,3,15,7],[16,1,16,7]]}
[]
[null,{"$f":"B9","v":"2018-08-12"}]
[]
[null,{"$f":"AWALMINGGU","v":"MINGGU"},{"$f":"UPPER(TEXT(C5,\"dddd\"))","v":"SENIN"},"SELASA","RABU","KAMIS","JUMAT","SABTU"]
[null,{"$f":"Hari+DATE(CalYear,8,1)-WEEKDAY(DATE(CalYear,8,1),(AWALMINGGU=\"SENIN\")+1)+1","v":"2018-07-29"},"2018-07-30","2018-07-31","2018-08-01","2018-08-02","2018-08-03","2018-08-04"]
[null,{"$f":"IFERROR(IF(PERLIHATKANHARILIBUR,IF(INDEX(tblHolidays[],MATCH(DATE(CalYear-(DAY(B5)>15)+(ROW()>6),MONTH(B5),DAY(B5)),IF(PERLIHATKANPERINGATAN,tblHolidays[KOREKSI],tblHolidays[HARI]),0),6),INDEX(tblHolidays[],MATCH(DATE(CalYear-(DAY(B5)>15)+(ROW()>6),MONTH(B5),DAY(B5)),IF(PERLIHATKANPERINGATAN,tblHolidays[KOREKSI],tblHolidays[HARI]),0),2),\"\"),\"\"),\"\")","v":""},{"$f":"IFERROR(IF(PERLIHATKANHARILIBUR,IF(INDEX(tblHolidays[],MATCH(DATE(CalYear-(DAY(C5)>15)+(ROW()>6),MONTH(C5),DAY(C5)),IF(PERLIHATKANPERINGATAN,tblHolidays[KOREKSI],tblHolidays[HARI]),0),6),INDEX(tblHolidays[],MATCH(DATE(CalYear-(DAY(C5)>15)+(ROW()>6),MONTH(C5),DAY(C5)),IF(PERLIHATKANPERINGATAN,tblHolidays[KOREKSI],tblHolidays[HARI]),0),2),\"\"),\"\"),\"\")","v":""},{"$f":"IFERROR(IF(PERLIHATKANHARILIBUR,IF(INDEX(tblHolidays[],MATCH(DATE(CalYear-(DAY(D5)>15)+(ROW()>6),MONTH(D5),DAY(D5)),IF(PERLIHATKANPERINGATAN,tblHolidays[KOREKSI],tblHolidays[HARI]),0),6),INDEX(tblHolidays[],MATCH(DATE(CalYear-(DAY(D5)>15)+(ROW()>6),MONTH(D5),DAY(D5)),IF(PERLIHATKANPERINGATAN,tblHolidays[KOREKSI],tblHolidays[HARI]),0),2),\"\"),\"\"),\"\")","v":""},{"$f":"IFERROR(IF(PERLIHATKANHARILIBUR,IF(INDEX(tblHolidays[],MATCH(DATE(CalYear-(DAY(E5)>15)+(ROW()>6),MONTH(E5),DAY(E5)),IF(PERLIHATKANPERINGATAN,tblHolidays[KOREKSI],tblHolidays[HARI]),0),6),INDEX(tblHolidays[],MATCH(DATE(CalYear-(DAY(E5)>15)+(ROW()>6),MONTH(E5),DAY(E5)),IF(PERLIHATKANPERINGATAN,tblHolidays[KOREKSI],tblHolidays[HARI]),0),2),\"\"),\"\"),\"\")","v":""},{"$f":"IFERROR(IF(PERLIHATKANHARILIBUR,IF(INDEX(tblHolidays[],MATCH(DATE(CalYear-(DAY(F5)>15)+(ROW()>6),MONTH(F5),DAY(F5)),IF(PERLIHATKANPERINGATAN,tblHolidays[KOREKSI],tblHolidays[HARI]),0),6),INDEX(tblHolidays[],MATCH(DATE(CalYear-(DAY(F5)>15)+(ROW()>6),MONTH(F5),DAY(F5)),IF(PERLIHATKANPERINGATAN,tblHolidays[KOREKSI],tblHolidays[HARI]),0),2),\"\"),\"\"),\"\")","v":""},{"$f":"IFERROR(IF(PERLIHATKANHARILIBUR,IF(INDEX(tblHolidays[],MATCH(DATE(CalYear-(DAY(G5)>15)+(ROW()>6),MONTH(G5),DAY(G5)),IF(PERLIHATKANPERINGATAN,tblHolidays[KOREKSI],tblHolidays[HARI]),0),6),INDEX(tblHolidays[],MATCH(DATE(CalYear-(DAY(G5)>15)+(ROW()>6),MONTH(G5),DAY(G5)),IF(PERLIHATKANPERINGATAN,tblHolidays[KOREKSI],tblHolidays[HARI]),0),2),\"\"),\"\"),\"\")","v":""},{"$f":"IFERROR(IF(PERLIHATKANHARILIBUR,IF(INDEX(tblHolidays[],MATCH(DATE(CalYear-(DAY(H5)>15)+(ROW()>6),MONTH(H5),DAY(H5)),IF(PERLIHATKANPERINGATAN,tblHolidays[KOREKSI],tblHolidays[HARI]),0),6),INDEX(tblHolidays[],MATCH(DATE(CalYear-(DAY(H5)>15)+(ROW()>6),MONTH(H5),DAY(H5)),IF(PERLIHATKANPERINGATAN,tblHolidays[KOREKSI],tblHolidays[HARI]),0),2),\"\"),\"\"),\"\")","v":""}]
[null,{"$f":"Hari+DATE(CalYear,8,1)-WEEKDAY(DATE(CalYear,8,1),(AWALMINGGU=\"SENIN\")+1)+8","v":"2018-08-05"},"2018-08-06","2018-08-07","2018-08-08","2018-08-09","2018-08-10","2018-08-11"]
[null,{"$f":"IFERROR(IF(PERLIHATKANHARILIBUR,IF(INDEX(tblHolidays[],MATCH(DATE(CalYear,MONTH(B7),DAY(B7)),IF(PERLIHATKANPERINGATAN,tblHolidays[KOREKSI],tblHolidays[HARI]),0),6),INDEX(tblHolidays[],MATCH(DATE(CalYear,MONTH(B7),DAY(B7)),IF(PERLIHATKANPERINGATAN,tblHolidays[KOREKSI],tblHolidays[HARI]),0),2),\"\"),\"\"),\"\")","v":""},{"$f":"IFERROR(IF(PERLIHATKANHARILIBUR,IF(INDEX(tblHolidays[],MATCH(DATE(CalYear,MONTH(C7),DAY(C7)),IF(PERLIHATKANPERINGATAN,tblHolidays[KOREKSI],tblHolidays[HARI]),0),6),INDEX(tblHolidays[],MATCH(DATE(CalYear,MONTH(C7),DAY(C7)),IF(PERLIHATKANPERINGATAN,tblHolidays[KOREKSI],tblHolidays[HARI]),0),2),\"\"),\"\"),\"\")","v":""},{"$f":"IFERROR(IF(PERLIHATKANHARILIBUR,IF(INDEX(tblHolidays[],MATCH(DATE(CalYear,MONTH(D7),DAY(D7)),IF(PERLIHATKANPERINGATAN,tblHolidays[KOREKSI],tblHolidays[HARI]),0),6),INDEX(tblHolidays[],MATCH(DATE(CalYear,MONTH(D7),DAY(D7)),IF(PERLIHATKANPERINGATAN,tblHolidays[KOREKSI],tblHolidays[HARI]),0),2),\"\"),\"\"),\"\")","v":""},{"$f":"IFERROR(IF(PERLIHATKANHARILIBUR,IF(INDEX(tblHolidays[],MATCH(DATE(CalYear,MONTH(E7),DAY(E7)),IF(PERLIHATKANPERINGATAN,tblHolidays[KOREKSI],tblHolidays[HARI]),0),6),INDEX(tblHolidays[],MATCH(DATE(CalYear,MONTH(E7),DAY(E7)),IF(PERLIHATKANPERINGATAN,tblHolidays[KOREKSI],tblHolidays[HARI]),0),2),\"\"),\"\"),\"\")","v":""},{"$f":"IFERROR(IF(PERLIHATKANHARILIBUR,IF(INDEX(tblHolidays[],MATCH(DATE(CalYear,MONTH(F7),DAY(F7)),IF(PERLIHATKANPERINGATAN,tblHolidays[KOREKSI],tblHolidays[HARI]),0),6),INDEX(tblHolidays[],MATCH(DATE(CalYear,MONTH(F7),DAY(F7)),IF(PERLIHATKANPERINGATAN,tblHolidays[KOREKSI],tblHolidays[HARI]),0),2),\"\"),\"\"),\"\")","v":""},{"$f":"IFERROR(IF(PERLIHATKANHARILIBUR,IF(INDEX(tblHolidays[],MATCH(DATE(CalYear,MONTH(G7),DAY(G7)),IF(PERLIHATKANPERINGATAN,tblHolidays[KOREKSI],tblHolidays[HARI]),0),6),INDEX(tblHolidays[],MATCH(DATE(CalYear,MONTH(G7),DAY(G7)),IF(PERLIHATKANPERINGATAN,tblHolidays[KOREKSI],tblHolidays[HARI]),0),2),\"\"),\"\"),\"\")","v":""},{"$f":"IFERROR(IF(PERLIHATKANHARILIBUR,IF(INDEX(tblHolidays[],MATCH(DATE(CalYear,MONTH(H7),DAY(H7)),IF(PERLIHATKANPERINGATAN,tblHolidays[KOREKSI],tblHolidays[HARI]),0),6),INDEX(tblHolidays[],MATCH(DATE(CalYear,MONTH(H7),DAY(H7)),IF(PERLIHATKANPERINGATAN,tblHolidays[KOREKSI],tblHolidays[HARI]),0),2),\"\"),\"\"),\"\")","v":""}]
[null,{"$f":"Hari+DATE(CalYear,8,1)-WEEKDAY(DATE(CalYear,8,1),(AWALMINGGU=\"SENIN\")+1)+15","v":"2018-08-12"},"2018-08-13","2018-08-14","2018-08-15","2018-08-16","2018-08-17","2018-08-18"]
[null,{"$f":"IFERROR(IF(PERLIHATKANHARILIBUR,IF(INDEX(tblHolidays[],MATCH(DATE(CalYear,MONTH(B9),DAY(B9)),IF(PERLIHATKANPERINGATAN,tblHolidays[KOREKSI],tblHolidays[HARI]),0),6),INDEX(tblHolidays[],MATCH(DATE(CalYear,MONTH(B9),DAY(B9)),IF(PERLIHATKANPERINGATAN,tblHolidays[KOREKSI],tblHolidays[HARI]),0),2),\"\"),\"\"),\"\")","v":""},{"$f":"IFERROR(IF(PERLIHATKANHARILIBUR,IF(INDEX(tblHolidays[],MATCH(DATE(CalYear,MONTH(C9),DAY(C9)),IF(PERLIHATKANPERINGATAN,tblHolidays[KOREKSI],tblHolidays[HARI]),0),6),INDEX(tblHolidays[],MATCH(DATE(CalYear,MONTH(C9),DAY(C9)),IF(PERLIHATKANPERINGATAN,tblHolidays[KOREKSI],tblHolidays[HARI]),0),2),\"\"),\"\"),\"\")","v":""},{"$f":"IFERROR(IF(PERLIHATKANHARILIBUR,IF(INDEX(tblHolidays[],MATCH(DATE(CalYear,MONTH(D9),DAY(D9)),IF(PERLIHATKANPERINGATAN,tblHolidays[KOREKSI],tblHolidays[HARI]),0),6),INDEX(tblHolidays[],MATCH(DATE(CalYear,MONTH(D9),DAY(D9)),IF(PERLIHATKANPERINGATAN,tblHolidays[KOREKSI],tblHolidays[HARI]),0),2),\"\"),\"\"),\"\")","v":""},{"$f":"IFERROR(IF(PERLIHATKANHARILIBUR,IF(INDEX(tblHolidays[],MATCH(DATE(CalYear,MONTH(E9),DAY(E9)),IF(PERLIHATKANPERINGATAN,tblHolidays[KOREKSI],tblHolidays[HARI]),0),6),INDEX(tblHolidays[],MATCH(DATE(CalYear,MONTH(E9),DAY(E9)),IF(PERLIHATKANPERINGATAN,tblHolidays[KOREKSI],tblHolidays[HARI]),0),2),\"\"),\"\"),\"\")","v":""},{"$f":"IFERROR(IF(PERLIHATKANHARILIBUR,IF(INDEX(tblHolidays[],MATCH(DATE(CalYear,MONTH(F9),DAY(F9)),IF(PERLIHATKANPERINGATAN,tblHolidays[KOREKSI],tblHolidays[HARI]),0),6),INDEX(tblHolidays[],MATCH(DATE(CalYear,MONTH(F9),DAY(F9)),IF(PERLIHATKANPERINGATAN,tblHolidays[KOREKSI],tblHolidays[HARI]),0),2),\"\"),\"\"),\"\")","v":""},{"$f":"IFERROR(IF(PERLIHATKANHARILIBUR,IF(INDEX(tblHolidays[],MATCH(DATE(CalYear,MONTH(G9),DAY(G9)),IF(PERLIHATKANPERINGATAN,tblHolidays[KOREKSI],tblHolidays[HARI]),0),6),INDEX(tblHolidays[],MATCH(DATE(CalYear,MONTH(G9),DAY(G9)),IF(PERLIHATKANPERINGATAN,tblHolidays[KOREKSI],tblHolidays[HARI]),0),2),\"\"),\"\"),\"\")","v":""},{"$f":"IFERROR(IF(PERLIHATKANHARILIBUR,IF(INDEX(tblHolidays[],MATCH(DATE(CalYear,MONTH(H9),DAY(H9)),IF(PERLIHATKANPERINGATAN,tblHolidays[KOREKSI],tblHolidays[HARI]),0),6),INDEX(tblHolidays[],MATCH(DATE(CalYear,MONTH(H9),DAY(H9)),IF(PERLIHATKANPERINGATAN,tblHolidays[KOREKSI],tblHolidays[HARI]),0),2),\"\"),\"\"),\"\")","v":""}]
[null,{"$f":"Hari+DATE(CalYear,8,1)-WEEKDAY(DATE(CalYear,8,1),(AWALMINGGU=\"SENIN\")+1)+22","v":"2018-08-19"},"2018-08-20","2018-08-21","2018-08-22","2018-08-23","2018-08-24","2018-08-25"]
[null,{"$f":"IFERROR(IF(PERLIHATKANHARILIBUR,IF(INDEX(tblHolidays[],MATCH(DATE(CalYear,MONTH(B11),DAY(B11)),IF(PERLIHATKANPERINGATAN,tblHolidays[KOREKSI],tblHolidays[HARI]),0),6),INDEX(tblHolidays[],MATCH(DATE(CalYear,MONTH(B11),DAY(B11)),IF(PERLIHATKANPERINGATAN,tblHolidays[KOREKSI],tblHolidays[HARI]),0),2),\"\"),\"\"),\"\")","v":""},{"$f":"IFERROR(IF(PERLIHATKANHARILIBUR,IF(INDEX(tblHolidays[],MATCH(DATE(CalYear,MONTH(C11),DAY(C11)),IF(PERLIHATKANPERINGATAN,tblHolidays[KOREKSI],tblHolidays[HARI]),0),6),INDEX(tblHolidays[],MATCH(DATE(CalYear,MONTH(C11),DAY(C11)),IF(PERLIHATKANPERINGATAN,tblHolidays[KOREKSI],tblHolidays[HARI]),0),2),\"\"),\"\"),\"\")","v":""},{"$f":"IFERROR(IF(PERLIHATKANHARILIBUR,IF(INDEX(tblHolidays[],MATCH(DATE(CalYear,MONTH(D11),DAY(D11)),IF(PERLIHATKANPERINGATAN,tblHolidays[KOREKSI],tblHolidays[HARI]),0),6),INDEX(tblHolidays[],MATCH(DATE(CalYear,MONTH(D11),DAY(D11)),IF(PERLIHATKANPERINGATAN,tblHolidays[KOREKSI],tblHolidays[HARI]),0),2),\"\"),\"\"),\"\")","v":""},{"$f":"IFERROR(IF(PERLIHATKANHARILIBUR,IF(INDEX(tblHolidays[],MATCH(DATE(CalYear,MONTH(E11),DAY(E11)),IF(PERLIHATKANPERINGATAN,tblHolidays[KOREKSI],tblHolidays[HARI]),0),6),INDEX(tblHolidays[],MATCH(DATE(CalYear,MONTH(E11),DAY(E11)),IF(PERLIHATKANPERINGATAN,tblHolidays[KOREKSI],tblHolidays[HARI]),0),2),\"\"),\"\"),\"\")","v":""},{"$f":"IFERROR(IF(PERLIHATKANHARILIBUR,IF(INDEX(tblHolidays[],MATCH(DATE(CalYear,MONTH(F11),DAY(F11)),IF(PERLIHATKANPERINGATAN,tblHolidays[KOREKSI],tblHolidays[HARI]),0),6),INDEX(tblHolidays[],MATCH(DATE(CalYear,MONTH(F11),DAY(F11)),IF(PERLIHATKANPERINGATAN,tblHolidays[KOREKSI],tblHolidays[HARI]),0),2),\"\"),\"\"),\"\")","v":""},{"$f":"IFERROR(IF(PERLIHATKANHARILIBUR,IF(INDEX(tblHolidays[],MATCH(DATE(CalYear,MONTH(G11),DAY(G11)),IF(PERLIHATKANPERINGATAN,tblHolidays[KOREKSI],tblHolidays[HARI]),0),6),INDEX(tblHolidays[],MATCH(DATE(CalYear,MONTH(G11),DAY(G11)),IF(PERLIHATKANPERINGATAN,tblHolidays[KOREKSI],tblHolidays[HARI]),0),2),\"\"),\"\"),\"\")","v":""},{"$f":"IFERROR(IF(PERLIHATKANHARILIBUR,IF(INDEX(tblHolidays[],MATCH(DATE(CalYear,MONTH(H11),DAY(H11)),IF(PERLIHATKANPERINGATAN,tblHolidays[KOREKSI],tblHolidays[HARI]),0),6),INDEX(tblHolidays[],MATCH(DATE(CalYear,MONTH(H11),DAY(H11)),IF(PERLIHATKANPERINGATAN,tblHolidays[KOREKSI],tblHolidays[HARI]),0),2),\"\"),\"\"),\"\")","v":""}]
[null,{"$f":"Hari+DATE(CalYear,8,1)-WEEKDAY(DATE(CalYear,8,1),(AWALMINGGU=\"SENIN\")+1)+29","v":"2018-08-26"},"2018-08-27","2018-08-28","2018-08-29","2018-08-30","2018-08-31","2018-09-01"]
[null,{"$f":"IFERROR(IF(PERLIHATKANHARILIBUR,IF(INDEX(tblHolidays[],MATCH(DATE(CalYear,MONTH(B13),DAY(B13)),IF(PERLIHATKANPERINGATAN,tblHolidays[KOREKSI],tblHolidays[HARI]),0),6),INDEX(tblHolidays[],MATCH(DATE(CalYear,MONTH(B13),DAY(B13)),IF(PERLIHATKANPERINGATAN,tblHolidays[KOREKSI],tblHolidays[HARI]),0),2),\"\"),\"\"),\"\")","v":""},{"$f":"IFERROR(IF(PERLIHATKANHARILIBUR,IF(INDEX(tblHolidays[],MATCH(DATE(CalYear,MONTH(C13),DAY(C13)),IF(PERLIHATKANPERINGATAN,tblHolidays[KOREKSI],tblHolidays[HARI]),0),6),INDEX(tblHolidays[],MATCH(DATE(CalYear,MONTH(C13),DAY(C13)),IF(PERLIHATKANPERINGATAN,tblHolidays[KOREKSI],tblHolidays[HARI]),0),2),\"\"),\"\"),\"\")","v":""},{"$f":"IFERROR(IF(PERLIHATKANHARILIBUR,IF(INDEX(tblHolidays[],MATCH(DATE(CalYear,MONTH(D13),DAY(D13)),IF(PERLIHATKANPERINGATAN,tblHolidays[KOREKSI],tblHolidays[HARI]),0),6),INDEX(tblHolidays[],MATCH(DATE(CalYear,MONTH(D13),DAY(D13)),IF(PERLIHATKANPERINGATAN,tblHolidays[KOREKSI],tblHolidays[HARI]),0),2),\"\"),\"\"),\"\")","v":""},{"$f":"IFERROR(IF(PERLIHATKANHARILIBUR,IF(INDEX(tblHolidays[],MATCH(DATE(CalYear,MONTH(E13),DAY(E13)),IF(PERLIHATKANPERINGATAN,tblHolidays[KOREKSI],tblHolidays[HARI]),0),6),INDEX(tblHolidays[],MATCH(DATE(CalYear,MONTH(E13),DAY(E13)),IF(PERLIHATKANPERINGATAN,tblHolidays[KOREKSI],tblHolidays[HARI]),0),2),\"\"),\"\"),\"\")","v":""},{"$f":"IFERROR(IF(PERLIHATKANHARILIBUR,IF(INDEX(tblHolidays[],MATCH(DATE(CalYear,MONTH(F13),DAY(F13)),IF(PERLIHATKANPERINGATAN,tblHolidays[KOREKSI],tblHolidays[HARI]),0),6),INDEX(tblHolidays[],MATCH(DATE(CalYear,MONTH(F13),DAY(F13)),IF(PERLIHATKANPERINGATAN,tblHolidays[KOREKSI],tblHolidays[HARI]),0),2),\"\"),\"\"),\"\")","v":""},{"$f":"IFERROR(IF(PERLIHATKANHARILIBUR,IF(INDEX(tblHolidays[],MATCH(DATE(CalYear,MONTH(G13),DAY(G13)),IF(PERLIHATKANPERINGATAN,tblHolidays[KOREKSI],tblHolidays[HARI]),0),6),INDEX(tblHolidays[],MATCH(DATE(CalYear,MONTH(G13),DAY(G13)),IF(PERLIHATKANPERINGATAN,tblHolidays[KOREKSI],tblHolidays[HARI]),0),2),\"\"),\"\"),\"\")","v":""},{"$f":"IFERROR(IF(PERLIHATKANHARILIBUR,IF(INDEX(tblHolidays[],MATCH(DATE(CalYear,MONTH(H13),DAY(H13)),IF(PERLIHATKANPERINGATAN,tblHolidays[KOREKSI],tblHolidays[HARI]),0),6),INDEX(tblHolidays[],MATCH(DATE(CalYear,MONTH(H13),DAY(H13)),IF(PERLIHATKANPERINGATAN,tblHolidays[KOREKSI],tblHolidays[HARI]),0),2),\"\"),\"\"),\"\")","v":""}]
[null,{"$f":"Hari+DATE(CalYear,8,1)-WEEKDAY(DATE(CalYear,8,1),(AWALMINGGU=\"SENIN\")+1)+36","v":"2018-09-02"},"2018-09-03","CATATAN"]
[null,{"$f":"IFERROR(IF(PERLIHATKANHARILIBUR,IF(INDEX(tblHolidays[],MATCH(DATE(CalYear,MONTH(B15),DAY(B15)),IF(PERLIHATKANPERINGATAN,tblHolidays[KOREKSI],tblHolidays[HARI]),0),6),INDEX(tblHolidays[],MATCH(DATE(CalYear,MONTH(B15),DAY(B15)),IF(PERLIHATKANPERINGATAN,tblHolidays[KOREKSI],tblHolidays[HARI]),0),2),\"\"),\"\"),\"\")","v":""},{"$f":"IFERROR(IF(PERLIHATKANHARILIBUR,IF(INDEX(tblHolidays[],MATCH(DATE(CalYear,MONTH(C15),DAY(C15)),IF(PERLIHATKANPERINGATAN,tblHolidays[KOREKSI],tblHolidays[HARI]),0),6),INDEX(tblHolidays[],MATCH(DATE(CalYear,MONTH(C15),DAY(C15)),IF(PERLIHATKANPERINGATAN,tblHolidays[KOREKSI],tblHolidays[HARI]),0),2),\"\"),\"\"),\"\")","v":"Hari Kemerdekaan RI"}]

{"sheet":"September","index":9,"n_rows":16,"n_cols":8,"rows_kept":16,"merged":[[1,1,1,3],[14,3,14,7],[15,3,15,7],[16,1,16,7]]}
[]
[null,{"$f":"B9","v":"2018-09-09"}]
[]
[null,{"$f":"AWALMINGGU","v":"MINGGU"},{"$f":"UPPER(TEXT(C5,\"dddd\"))","v":"SENIN"},"SELASA","RABU","KAMIS","JUMAT","SABTU"]
[null,{"$f":"Hari+DATE(CalYear,9,1)-WEEKDAY(DATE(CalYear,9,1),(AWALMINGGU=\"SENIN\")+1)+1","v":"2018-08-26"},"2018-08-27","2018-08-28","2018-08-29","2018-08-30","2018-08-31","2018-09-01"]
[null,{"$f":"IFERROR(IF(PERLIHATKANHARILIBUR,IF(INDEX(tblHolidays[],MATCH(DATE(CalYear-(DAY(B5)>15)+(ROW()>6),MONTH(B5),DAY(B5)),IF(PERLIHATKANPERINGATAN,tblHolidays[KOREKSI],tblHolidays[HARI]),0),6),INDEX(tblHolidays[],MATCH(DATE(CalYear-(DAY(B5)>15)+(ROW()>6),MONTH(B5),DAY(B5)),IF(PERLIHATKANPERINGATAN,tblHolidays[KOREKSI],tblHolidays[HARI]),0),2),\"\"),\"\"),\"\")","v":""},{"$f":"IFERROR(IF(PERLIHATKANHARILIBUR,IF(INDEX(tblHolidays[],MATCH(DATE(CalYear-(DAY(C5)>15)+(ROW()>6),MONTH(C5),DAY(C5)),IF(PERLIHATKANPERINGATAN,tblHolidays[KOREKSI],tblHolidays[HARI]),0),6),INDEX(tblHolidays[],MATCH(DATE(CalYear-(DAY(C5)>15)+(ROW()>6),MONTH(C5),DAY(C5)),IF(PERLIHATKANPERINGATAN,tblHolidays[KOREKSI],tblHolidays[HARI]),0),2),\"\"),\"\"),\"\")","v":""},{"$f":"IFERROR(IF(PERLIHATKANHARILIBUR,IF(INDEX(tblHolidays[],MATCH(DATE(CalYear-(DAY(D5)>15)+(ROW()>6),MONTH(D5),DAY(D5)),IF(PERLIHATKANPERINGATAN,tblHolidays[KOREKSI],tblHolidays[HARI]),0),6),INDEX(tblHolidays[],MATCH(DATE(CalYear-(DAY(D5)>15)+(ROW()>6),MONTH(D5),DAY(D5)),IF(PERLIHATKANPERINGATAN,tblHolidays[KOREKSI],tblHolidays[HARI]),0),2),\"\"),\"\"),\"\")","v":""},{"$f":"IFERROR(IF(PERLIHATKANHARILIBUR,IF(INDEX(tblHolidays[],MATCH(DATE(CalYear-(DAY(E5)>15)+(ROW()>6),MONTH(E5),DAY(E5)),IF(PERLIHATKANPERINGATAN,tblHolidays[KOREKSI],tblHolidays[HARI]),0),6),INDEX(tblHolidays[],MATCH(DATE(CalYear-(DAY(E5)>15)+(ROW()>6),MONTH(E5),DAY(E5)),IF(PERLIHATKANPERINGATAN,tblHolidays[KOREKSI],tblHolidays[HARI]),0),2),\"\"),\"\"),\"\")","v":""},{"$f":"IFERROR(IF(PERLIHATKANHARILIBUR,IF(INDEX(tblHolidays[],MATCH(DATE(CalYear-(DAY(F5)>15)+(ROW()>6),MONTH(F5),DAY(F5)),IF(PERLIHATKANPERINGATAN,tblHolidays[KOREKSI],tblHolidays[HARI]),0),6),INDEX(tblHolidays[],MATCH(DATE(CalYear-(DAY(F5)>15)+(ROW()>6),MONTH(F5),DAY(F5)),IF(PERLIHATKANPERINGATAN,tblHolidays[KOREKSI],tblHolidays[HARI]),0),2),\"\"),\"\"),\"\")","v":""},{"$f":"IFERROR(IF(PERLIHATKANHARILIBUR,IF(INDEX(tblHolidays[],MATCH(DATE(CalYear-(DAY(G5)>15)+(ROW()>6),MONTH(G5),DAY(G5)),IF(PERLIHATKANPERINGATAN,tblHolidays[KOREKSI],tblHolidays[HARI]),0),6),INDEX(tblHolidays[],MATCH(DATE(CalYear-(DAY(G5)>15)+(ROW()>6),MONTH(G5),DAY(G5)),IF(PERLIHATKANPERINGATAN,tblHolidays[KOREKSI],tblHolidays[HARI]),0),2),\"\"),\"\"),\"\")","v":""},{"$f":"IFERROR(IF(PERLIHATKANHARILIBUR,IF(INDEX(tblHolidays[],MATCH(DATE(CalYear-(DAY(H5)>15)+(ROW()>6),MONTH(H5),DAY(H5)),IF(PERLIHATKANPERINGATAN,tblHolidays[KOREKSI],tblHolidays[HARI]),0),6),INDEX(tblHolidays[],MATCH(DATE(CalYear-(DAY(H5)>15)+(ROW()>6),MONTH(H5),DAY(H5)),IF(PERLIHATKANPERINGATAN,tblHolidays[KOREKSI],tblHolidays[HARI]),0),2),\"\"),\"\"),\"\")","v":""}]
[null,{"$f":"Hari+DATE(CalYear,9,1)-WEEKDAY(DATE(CalYear,9,1),(AWALMINGGU=\"SENIN\")+1)+8","v":"2018-09-02"},"2018-09-03","2018-09-04","2018-09-05","2018-09-06","2018-09-07","2018-09-08"]
[null,{"$f":"IFERROR(IF(PERLIHATKANHARILIBUR,IF(INDEX(tblHolidays[],MATCH(DATE(CalYear,MONTH(B7),DAY(B7)),IF(PERLIHATKANPERINGATAN,tblHolidays[KOREKSI],tblHolidays[HARI]),0),6),INDEX(tblHolidays[],MATCH(DATE(CalYear,MONTH(B7),DAY(B7)),IF(PERLIHATKANPERINGATAN,tblHolidays[KOREKSI],tblHolidays[HARI]),0),2),\"\"),\"\"),\"\")","v":""},{"$f":"IFERROR(IF(PERLIHATKANHARILIBUR,IF(INDEX(tblHolidays[],MATCH(DATE(CalYear,MONTH(C7),DAY(C7)),IF(PERLIHATKANPERINGATAN,tblHolidays[KOREKSI],tblHolidays[HARI]),0),6),INDEX(tblHolidays[],MATCH(DATE(CalYear,MONTH(C7),DAY(C7)),IF(PERLIHATKANPERINGATAN,tblHolidays[KOREKSI],tblHolidays[HARI]),0),2),\"\"),\"\"),\"\")","v":"Hari Kemerdekaan RI"},{"$f":"IFERROR(IF(PERLIHATKANHARILIBUR,IF(INDEX(tblHolidays[],MATCH(DATE(CalYear,MONTH(D7),DAY(D7)),IF(PERLIHATKANPERINGATAN,tblHolidays[KOREKSI],tblHolidays[HARI]),0),6),INDEX(tblHolidays[],MATCH(DATE(CalYear,MONTH(D7),DAY(D7)),IF(PERLIHATKANPERINGATAN,tblHolidays[KOREKSI],tblHolidays[HARI]),0),2),\"\"),\"\"),\"\")","v":""},{"$f":"IFERROR(IF(PERLIHATKANHARILIBUR,IF(INDEX(tblHolidays[],MATCH(DATE(CalYear,MONTH(E7),DAY(E7)),IF(PERLIHATKANPERINGATAN,tblHolidays[KOREKSI],tblHolidays[HARI]),0),6),INDEX(tblHolidays[],MATCH(DATE(CalYear,MONTH(E7),DAY(E7)),IF(PERLIHATKANPERINGATAN,tblHolidays[KOREKSI],tblHolidays[HARI]),0),2),\"\"),\"\"),\"\")","v":""},{"$f":"IFERROR(IF(PERLIHATKANHARILIBUR,IF(INDEX(tblHolidays[],MATCH(DATE(CalYear,MONTH(F7),DAY(F7)),IF(PERLIHATKANPERINGATAN,tblHolidays[KOREKSI],tblHolidays[HARI]),0),6),INDEX(tblHolidays[],MATCH(DATE(CalYear,MONTH(F7),DAY(F7)),IF(PERLIHATKANPERINGATAN,tblHolidays[KOREKSI],tblHolidays[HARI]),0),2),\"\"),\"\"),\"\")","v":""},{"$f":"IFERROR(IF(PERLIHATKANHARILIBUR,IF(INDEX(tblHolidays[],MATCH(DATE(CalYear,MONTH(G7),DAY(G7)),IF(PERLIHATKANPERINGATAN,tblHolidays[KOREKSI],tblHolidays[HARI]),0),6),INDEX(tblHolidays[],MATCH(DATE(CalYear,MONTH(G7),DAY(G7)),IF(PERLIHATKANPERINGATAN,tblHolidays[KOREKSI],tblHolidays[HARI]),0),2),\"\"),\"\"),\"\")","v":""},{"$f":"IFERROR(IF(PERLIHATKANHARILIBUR,IF(INDEX(tblHolidays[],MATCH(DATE(CalYear,MONTH(H7),DAY(H7)),IF(PERLIHATKANPERINGATAN,tblHolidays[KOREKSI],tblHolidays[HARI]),0),6),INDEX(tblHolidays[],MATCH(DATE(CalYear,MONTH(H7),DAY(H7)),IF(PERLIHATKANPERINGATAN,tblHolidays[KOREKSI],tblHolidays[HARI]),0),2),\"\"),\"\"),\"\")","v":""}]
[null,{"$f":"Hari+DATE(CalYear,9,1)-WEEKDAY(DATE(CalYear,9,1),(AWALMINGGU=\"SENIN\")+1)+15","v":"2018-09-09"},"2018-09-10","2018-09-11","2018-09-12","2018-09-13","2018-09-14","2018-09-15"]
[null,{"$f":"IFERROR(IF(PERLIHATKANHARILIBUR,IF(INDEX(tblHolidays[],MATCH(DATE(CalYear,MONTH(B9),DAY(B9)),IF(PERLIHATKANPERINGATAN,tblHolidays[KOREKSI],tblHolidays[HARI]),0),6),INDEX(tblHolidays[],MATCH(DATE(CalYear,MONTH(B9),DAY(B9)),IF(PERLIHATKANPERINGATAN,tblHolidays[KOREKSI],tblHolidays[HARI]),0),2),\"\"),\"\"),\"\")","v":""},{"$f":"IFERROR(IF(PERLIHATKANHARILIBUR,IF(INDEX(tblHolidays[],MATCH(DATE(CalYear,MONTH(C9),DAY(C9)),IF(PERLIHATKANPERINGATAN,tblHolidays[KOREKSI],tblHolidays[HARI]),0),6),INDEX(tblHolidays[],MATCH(DATE(CalYear,MONTH(C9),DAY(C9)),IF(PERLIHATKANPERINGATAN,tblHolidays[KOREKSI],tblHolidays[HARI]),0),2),\"\"),\"\"),\"\")","v":""},{"$f":"IFERROR(IF(PERLIHATKANHARILIBUR,IF(INDEX(tblHolidays[],MATCH(DATE(CalYear,MONTH(D9),DAY(D9)),IF(PERLIHATKANPERINGATAN,tblHolidays[KOREKSI],tblHolidays[HARI]),0),6),INDEX(tblHolidays[],MATCH(DATE(CalYear,MONTH(D9),DAY(D9)),IF(PERLIHATKANPERINGATAN,tblHolidays[KOREKSI],tblHolidays[HARI]),0),2),\"\"),\"\"),\"\")","v":""},{"$f":"IFERROR(IF(PERLIHATKANHARILIBUR,IF(INDEX(tblHolidays[],MATCH(DATE(CalYear,MONTH(E9),DAY(E9)),IF(PERLIHATKANPERINGATAN,tblHolidays[KOREKSI],tblHolidays[HARI]),0),6),INDEX(tblHolidays[],MATCH(DATE(CalYear,MONTH(E9),DAY(E9)),IF(PERLIHATKANPERINGATAN,tblHolidays[KOREKSI],tblHolidays[HARI]),0),2),\"\"),\"\"),\"\")","v":""},{"$f":"IFERROR(IF(PERLIHATKANHARILIBUR,IF(INDEX(tblHolidays[],MATCH(DATE(CalYear,MONTH(F9),DAY(F9)),IF(PERLIHATKANPERINGATAN,tblHolidays[KOREKSI],tblHolidays[HARI]),0),6),INDEX(tblHolidays[],MATCH(DATE(CalYear,MONTH(F9),DAY(F9)),IF(PERLIHATKANPERINGATAN,tblHolidays[KOREKSI],tblHolidays[HARI]),0),2),\"\"),\"\"),\"\")","v":""},{"$f":"IFERROR(IF(PERLIHATKANHARILIBUR,IF(INDEX(tblHolidays[],MATCH(DATE(CalYear,MONTH(G9),DAY(G9)),IF(PERLIHATKANPERINGATAN,tblHolidays[KOREKSI],tblHolidays[HARI]),0),6),INDEX(tblHolidays[],MATCH(DATE(CalYear,MONTH(G9),DAY(G9)),IF(PERLIHATKANPERINGATAN,tblHolidays[KOREKSI],tblHolidays[HARI]),0),2),\"\"),\"\"),\"\")","v":""},{"$f":"IFERROR(IF(PERLIHATKANHARILIBUR,IF(INDEX(tblHolidays[],MATCH(DATE(CalYear,MONTH(H9),DAY(H9)),IF(PERLIHATKANPERINGATAN,tblHolidays[KOREKSI],tblHolidays[HARI]),0),6),INDEX(tblHolidays[],MATCH(DATE(CalYear,MONTH(H9),DAY(H9)),IF(PERLIHATKANPERINGATAN,tblHolidays[KOREKSI],tblHolidays[HARI]),0),2),\"\"),\"\"),\"\")","v":""}]
[null,{"$f":"Hari+DATE(CalYear,9,1)-WEEKDAY(DATE(CalYear,9,1),(AWALMINGGU=\"SENIN\")+1)+22","v":"2018-09-16"},"2018-09-17","2018-09-18","2018-09-19","2018-09-20","2018-09-21","2018-09-22"]
[null,{"$f":"IFERROR(IF(PERLIHATKANHARILIBUR,IF(INDEX(tblHolidays[],MATCH(DATE(CalYear,MONTH(B11),DAY(B11)),IF(PERLIHATKANPERINGATAN,tblHolidays[KOREKSI],tblHolidays[HARI]),0),6),INDEX(tblHolidays[],MATCH(DATE(CalYear,MONTH(B11),DAY(B11)),IF(PERLIHATKANPERINGATAN,tblHolidays[KOREKSI],tblHolidays[HARI]),0),2),\"\"),\"\"),\"\")","v":""},{"$f":"IFERROR(IF(PERLIHATKANHARILIBUR,IF(INDEX(tblHolidays[],MATCH(DATE(CalYear,MONTH(C11),DAY(C11)),IF(PERLIHATKANPERINGATAN,tblHolidays[KOREKSI],tblHolidays[HARI]),0),6),INDEX(tblHolidays[],MATCH(DATE(CalYear,MONTH(C11),DAY(C11)),IF(PERLIHATKANPERINGATAN,tblHolidays[KOREKSI],tblHolidays[HARI]),0),2),\"\"),\"\"),\"\")","v":""},{"$f":"IFERROR(IF(PERLIHATKANHARILIBUR,IF(INDEX(tblHolidays[],MATCH(DATE(CalYear,MONTH(D11),DAY(D11)),IF(PERLIHATKANPERINGATAN,tblHolidays[KOREKSI],tblHolidays[HARI]),0),6),INDEX(tblHolidays[],MATCH(DATE(CalYear,MONTH(D11),DAY(D11)),IF(PERLIHATKANPERINGATAN,tblHolidays[KOREKSI],tblHolidays[HARI]),0),2),\"\"),\"\"),\"\")","v":""},{"$f":"IFERROR(IF(PERLIHATKANHARILIBUR,IF(INDEX(tblHolidays[],MATCH(DATE(CalYear,MONTH(E11),DAY(E11)),IF(PERLIHATKANPERINGATAN,tblHolidays[KOREKSI],tblHolidays[HARI]),0),6),INDEX(tblHolidays[],MATCH(DATE(CalYear,MONTH(E11),DAY(E11)),IF(PERLIHATKANPERINGATAN,tblHolidays[KOREKSI],tblHolidays[HARI]),0),2),\"\"),\"\"),\"\")","v":""},{"$f":"IFERROR(IF(PERLIHATKANHARILIBUR,IF(INDEX(tblHolidays[],MATCH(DATE(CalYear,MONTH(F11),DAY(F11)),IF(PERLIHATKANPERINGATAN,tblHolidays[KOREKSI],tblHolidays[HARI]),0),6),INDEX(tblHolidays[],MATCH(DATE(CalYear,MONTH(F11),DAY(F11)),IF(PERLIHATKANPERINGATAN,tblHolidays[KOREKSI],tblHolidays[HARI]),0),2),\"\"),\"\"),\"\")","v":""},{"$f":"IFERROR(IF(PERLIHATKANHARILIBUR,IF(INDEX(tblHolidays[],MATCH(DATE(CalYear,MONTH(G11),DAY(G11)),IF(PERLIHATKANPERINGATAN,tblHolidays[KOREKSI],tblHolidays[HARI]),0),6),INDEX(tblHolidays[],MATCH(DATE(CalYear,MONTH(G11),DAY(G11)),IF(PERLIHATKANPERINGATAN,tblHolidays[KOREKSI],tblHolidays[HARI]),0),2),\"\"),\"\"),\"\")","v":""},{"$f":"IFERROR(IF(PERLIHATKANHARILIBUR,IF(INDEX(tblHolidays[],MATCH(DATE(CalYear,MONTH(H11),DAY(H11)),IF(PERLIHATKANPERINGATAN,tblHolidays[KOREKSI],tblHolidays[HARI]),0),6),INDEX(tblHolidays[],MATCH(DATE(CalYear,MONTH(H11),DAY(H11)),IF(PERLIHATKANPERINGATAN,tblHolidays[KOREKSI],tblHolidays[HARI]),0),2),\"\"),\"\"),\"\")","v":""}]
[null,{"$f":"Hari+DATE(CalYear,9,1)-WEEKDAY(DATE(CalYear,9,1),(AWALMINGGU=\"SENIN\")+1)+29","v":"2018-09-23"},"2018-09-24","2018-09-25","2018-09-26","2018-09-27","2018-09-28","2018-09-29"]
[null,{"$f":"IFERROR(IF(PERLIHATKANHARILIBUR,IF(INDEX(tblHolidays[],MATCH(DATE(CalYear,MONTH(B13),DAY(B13)),IF(PERLIHATKANPERINGATAN,tblHolidays[KOREKSI],tblHolidays[HARI]),0),6),INDEX(tblHolidays[],MATCH(DATE(CalYear,MONTH(B13),DAY(B13)),IF(PERLIHATKANPERINGATAN,tblHolidays[KOREKSI],tblHolidays[HARI]),0),2),\"\"),\"\"),\"\")","v":""},{"$f":"IFERROR(IF(PERLIHATKANHARILIBUR,IF(INDEX(tblHolidays[],MATCH(DATE(CalYear,MONTH(C13),DAY(C13)),IF(PERLIHATKANPERINGATAN,tblHolidays[KOREKSI],tblHolidays[HARI]),0),6),INDEX(tblHolidays[],MATCH(DATE(CalYear,MONTH(C13),DAY(C13)),IF(PERLIHATKANPERINGATAN,tblHolidays[KOREKSI],tblHolidays[HARI]),0),2),\"\"),\"\"),\"\")","v":""},{"$f":"IFERROR(IF(PERLIHATKANHARILIBUR,IF(INDEX(tblHolidays[],MATCH(DATE(CalYear,MONTH(D13),DAY(D13)),IF(PERLIHATKANPERINGATAN,tblHolidays[KOREKSI],tblHolidays[HARI]),0),6),INDEX(tblHolidays[],MATCH(DATE(CalYear,MONTH(D13),DAY(D13)),IF(PERLIHATKANPERINGATAN,tblHolidays[KOREKSI],tblHolidays[HARI]),0),2),\"\"),\"\"),\"\")","v":""},{"$f":"IFERROR(IF(PERLIHATKANHARILIBUR,IF(INDEX(tblHolidays[],MATCH(DATE(CalYear,MONTH(E13),DAY(E13)),IF(PERLIHATKANPERINGATAN,tblHolidays[KOREKSI],tblHolidays[HARI]),0),6),INDEX(tblHolidays[],MATCH(DATE(CalYear,MONTH(E13),DAY(E13)),IF(PERLIHATKANPERINGATAN,tblHolidays[KOREKSI],tblHolidays[HARI]),0),2),\"\"),\"\"),\"\")","v":""},{"$f":"IFERROR(IF(PERLIHATKANHARILIBUR,IF(INDEX(tblHolidays[],MATCH(DATE(CalYear,MONTH(F13),DAY(F13)),IF(PERLIHATKANPERINGATAN,tblHolidays[KOREKSI],tblHolidays[HARI]),0),6),INDEX(tblHolidays[],MATCH(DATE(CalYear,MONTH(F13),DAY(F13)),IF(PERLIHATKANPERINGATAN,tblHolidays[KOREKSI],tblHolidays[HARI]),0),2),\"\"),\"\"),\"\")","v":""},{"$f":"IFERROR(IF(PERLIHATKANHARILIBUR,IF(INDEX(tblHolidays[],MATCH(DATE(CalYear,MONTH(G13),DAY(G13)),IF(PERLIHATKANPERINGATAN,tblHolidays[KOREKSI],tblHolidays[HARI]),0),6),INDEX(tblHolidays[],MATCH(DATE(CalYear,MONTH(G13),DAY(G13)),IF(PERLIHATKANPERINGATAN,tblHolidays[KOREKSI],tblHolidays[HARI]),0),2),\"\"),\"\"),\"\")","v":""},{"$f":"IFERROR(IF(PERLIHATKANHARILIBUR,IF(INDEX(tblHolidays[],MATCH(DATE(CalYear,MONTH(H13),DAY(H13)),IF(PERLIHATKANPERINGATAN,tblHolidays[KOREKSI],tblHolidays[HARI]),0),6),INDEX(tblHolidays[],MATCH(DATE(CalYear,MONTH(H13),DAY(H13)),IF(PERLIHATKANPERINGATAN,tblHolidays[KOREKSI],tblHolidays[HARI]),0),2),\"\"),\"\"),\"\")","v":""}]
[null,{"$f":"Hari+DATE(CalYear,9,1)-WEEKDAY(DATE(CalYear,9,1),(AWALMINGGU=\"SENIN\")+1)+36","v":"2018-09-30"},"2018-10-01","CATATAN"]
[null,{"$f":"IFERROR(IF(PERLIHATKANHARILIBUR,IF(INDEX(tblHolidays[],MATCH(DATE(CalYear,MONTH(B15),DAY(B15)),IF(PERLIHATKANPERINGATAN,tblHolidays[KOREKSI],tblHolidays[HARI]),0),6),INDEX(tblHolidays[],MATCH(DATE(CalYear,MONTH(B15),DAY(B15)),IF(PERLIHATKANPERINGATAN,tblHolidays[KOREKSI],tblHolidays[HARI]),0),2),\"\"),\"\"),\"\")","v":""},{"$f":"IFERROR(IF(PERLIHATKANHARILIBUR,IF(INDEX(tblHolidays[],MATCH(DATE(CalYear,MONTH(C15),DAY(C15)),IF(PERLIHATKANPERINGATAN,tblHolidays[KOREKSI],tblHolidays[HARI]),0),6),INDEX(tblHolidays[],MATCH(DATE(CalYear,MONTH(C15),DAY(C15)),IF(PERLIHATKANPERINGATAN,tblHolidays[KOREKSI],tblHolidays[HARI]),0),2),\"\"),\"\"),\"\")","v":""}]

{"sheet":"Oktober","index":10,"n_rows":16,"n_cols":8,"rows_kept":16,"merged":[[1,1,1,3],[14,3,14,7],[15,3,15,7],[16,1,16,7]]}
[]
[null,{"$f":"B9","v":"2018-10-14"}]
[]
[null,{"$f":"AWALMINGGU","v":"MINGGU"},{"$f":"UPPER(TEXT(C5,\"dddd\"))","v":"SENIN"},"SELASA","RABU","KAMIS","JUMAT","SABTU"]
[null,{"$f":"Hari+DATE(CalYear,10,1)-WEEKDAY(DATE(CalYear,10,1),(AWALMINGGU=\"SENIN\")+1)+1","v":"2018-09-30"},"2018-10-01","2018-10-02","2018-10-03","2018-10-04","2018-10-05","2018-10-06"]
[null,{"$f":"IFERROR(IF(PERLIHATKANHARILIBUR,IF(INDEX(tblHolidays[],MATCH(DATE(CalYear-(DAY(B5)>15)+(ROW()>6),MONTH(B5),DAY(B5)),IF(PERLIHATKANPERINGATAN,tblHolidays[KOREKSI],tblHolidays[HARI]),0),6),INDEX(tblHolidays[],MATCH(DATE(CalYear-(DAY(B5)>15)+(ROW()>6),MONTH(B5),DAY(B5)),IF(PERLIHATKANPERINGATAN,tblHolidays[KOREKSI],tblHolidays[HARI]),0),2),\"\"),\"\"),\"\")","v":""},{"$f":"IFERROR(IF(PERLIHATKANHARILIBUR,IF(INDEX(tblHolidays[],MATCH(DATE(CalYear-(DAY(C5)>15)+(ROW()>6),MONTH(C5),DAY(C5)),IF(PERLIHATKANPERINGATAN,tblHolidays[KOREKSI],tblHolidays[HARI]),0),6),INDEX(tblHolidays[],MATCH(DATE(CalYear-(DAY(C5)>15)+(ROW()>6),MONTH(C5),DAY(C5)),IF(PERLIHATKANPERINGATAN,tblHolidays[KOREKSI],tblHolidays[HARI]),0),2),\"\"),\"\"),\"\")","v":""},{"$f":"IFERROR(IF(PERLIHATKANHARILIBUR,IF(INDEX(tblHolidays[],MATCH(DATE(CalYear-(DAY(D5)>15)+(ROW()>6),MONTH(D5),DAY(D5)),IF(PERLIHATKANPERINGATAN,tblHolidays[KOREKSI],tblHolidays[HARI]),0),6),INDEX(tblHolidays[],MATCH(DATE(CalYear-(DAY(D5)>15)+(ROW()>6),MONTH(D5),DAY(D5)),IF(PERLIHATKANPERINGATAN,tblHolidays[KOREKSI],tblHolidays[HARI]),0),2),\"\"),\"\"),\"\")","v":""},{"$f":"IFERROR(IF(PERLIHATKANHARILIBUR,IF(INDEX(tblHolidays[],MATCH(DATE(CalYear-(DAY(E5)>15)+(ROW()>6),MONTH(E5),DAY(E5)),IF(PERLIHATKANPERINGATAN,tblHolidays[KOREKSI],tblHolidays[HARI]),0),6),INDEX(tblHolidays[],MATCH(DATE(CalYear-(DAY(E5)>15)+(ROW()>6),MONTH(E5),DAY(E5)),IF(PERLIHATKANPERINGATAN,tblHolidays[KOREKSI],tblHolidays[HARI]),0),2),\"\"),\"\"),\"\")","v":""},{"$f":"IFERROR(IF(PERLIHATKANHARILIBUR,IF(INDEX(tblHolidays[],MATCH(DATE(CalYear-(DAY(F5)>15)+(ROW()>6),MONTH(F5),DAY(F5)),IF(PERLIHATKANPERINGATAN,tblHolidays[KOREKSI],tblHolidays[HARI]),0),6),INDEX(tblHolidays[],MATCH(DATE(CalYear-(DAY(F5)>15)+(ROW()>6),MONTH(F5),DAY(F5)),IF(PERLIHATKANPERINGATAN,tblHolidays[KOREKSI],tblHolidays[HARI]),0),2),\"\"),\"\"),\"\")","v":""},{"$f":"IFERROR(IF(PERLIHATKANHARILIBUR,IF(INDEX(tblHolidays[],MATCH(DATE(CalYear-(DAY(G5)>15)+(ROW()>6),MONTH(G5),DAY(G5)),IF(PERLIHATKANPERINGATAN,tblHolidays[KOREKSI],tblHolidays[HARI]),0),6),INDEX(tblHolidays[],MATCH(DATE(CalYear-(DAY(G5)>15)+(ROW()>6),MONTH(G5),DAY(G5)),IF(PERLIHATKANPERINGATAN,tblHolidays[KOREKSI],tblHolidays[HARI]),0),2),\"\"),\"\"),\"\")","v":""},{"$f":"IFERROR(IF(PERLIHATKANHARILIBUR,IF(INDEX(tblHolidays[],MATCH(DATE(CalYear-(DAY(H5)>15)+(ROW()>6),MONTH(H5),DAY(H5)),IF(PERLIHATKANPERINGATAN,tblHolidays[KOREKSI],tblHolidays[HARI]),0),6),INDEX(tblHolidays[],MATCH(DATE(CalYear-(DAY(H5)>15)+(ROW()>6),MONTH(H5),DAY(H5)),IF(PERLIHATKANPERINGATAN,tblHolidays[KOREKSI],tblHolidays[HARI]),0),2),\"\"),\"\"),\"\")","v":""}]
[null,{"$f":"Hari+DATE(CalYear,10,1)-WEEKDAY(DATE(CalYear,10,1),(AWALMINGGU=\"SENIN\")+1)+8","v":"2018-10-07"},"2018-10-08","2018-10-09","2018-10-10","2018-10-11","2018-10-12","2018-10-13"]
[null,{"$f":"IFERROR(IF(PERLIHATKANHARILIBUR,IF(INDEX(tblHolidays[],MATCH(DATE(CalYear,MONTH(B7),DAY(B7)),IF(PERLIHATKANPERINGATAN,tblHolidays[KOREKSI],tblHolidays[HARI]),0),6),INDEX(tblHolidays[],MATCH(DATE(CalYear,MONTH(B7),DAY(B7)),IF(PERLIHATKANPERINGATAN,tblHolidays[KOREKSI],tblHolidays[HARI]),0),2),\"\"),\"\"),\"\")","v":""},{"$f":"IFERROR(IF(PERLIHATKANHARILIBUR,IF(INDEX(tblHolidays[],MATCH(DATE(CalYear,MONTH(C7),DAY(C7)),IF(PERLIHATKANPERINGATAN,tblHolidays[KOREKSI],tblHolidays[HARI]),0),6),INDEX(tblHolidays[],MATCH(DATE(CalYear,MONTH(C7),DAY(C7)),IF(PERLIHATKANPERINGATAN,tblHolidays[KOREKSI],tblHolidays[HARI]),0),2),\"\"),\"\"),\"\")","v":"Hari Raya Idul Adha 1439 H"},{"$f":"IFERROR(IF(PERLIHATKANHARILIBUR,IF(INDEX(tblHolidays[],MATCH(DATE(CalYear,MONTH(D7),DAY(D7)),IF(PERLIHATKANPERINGATAN,tblHolidays[KOREKSI],tblHolidays[HARI]),0),6),INDEX(tblHolidays[],MATCH(DATE(CalYear,MONTH(D7),DAY(D7)),IF(PERLIHATKANPERINGATAN,tblHolidays[KOREKSI],tblHolidays[HARI]),0),2),\"\"),\"\"),\"\")","v":""},{"$f":"IFERROR(IF(PERLIHATKANHARILIBUR,IF(INDEX(tblHolidays[],MATCH(DATE(CalYear,MONTH(E7),DAY(E7)),IF(PERLIHATKANPERINGATAN,tblHolidays[KOREKSI],tblHolidays[HARI]),0),6),INDEX(tblHolidays[],MATCH(DATE(CalYear,MONTH(E7),DAY(E7)),IF(PERLIHATKANPERINGATAN,tblHolidays[KOREKSI],tblHolidays[HARI]),0),2),\"\"),\"\"),\"\")","v":""},{"$f":"IFERROR(IF(PERLIHATKANHARILIBUR,IF(INDEX(tblHolidays[],MATCH(DATE(CalYear,MONTH(F7),DAY(F7)),IF(PERLIHATKANPERINGATAN,tblHolidays[KOREKSI],tblHolidays[HARI]),0),6),INDEX(tblHolidays[],MATCH(DATE(CalYear,MONTH(F7),DAY(F7)),IF(PERLIHATKANPERINGATAN,tblHolidays[KOREKSI],tblHolidays[HARI]),0),2),\"\"),\"\"),\"\")","v":""},{"$f":"IFERROR(IF(PERLIHATKANHARILIBUR,IF(INDEX(tblHolidays[],MATCH(DATE(CalYear,MONTH(G7),DAY(G7)),IF(PERLIHATKANPERINGATAN,tblHolidays[KOREKSI],tblHolidays[HARI]),0),6),INDEX(tblHolidays[],MATCH(DATE(CalYear,MONTH(G7),DAY(G7)),IF(PERLIHATKANPERINGATAN,tblHolidays[KOREKSI],tblHolidays[HARI]),0),2),\"\"),\"\"),\"\")","v":""},{"$f":"IFERROR(IF(PERLIHATKANHARILIBUR,IF(INDEX(tblHolidays[],MATCH(DATE(CalYear,MONTH(H7),DAY(H7)),IF(PERLIHATKANPERINGATAN,tblHolidays[KOREKSI],tblHolidays[HARI]),0),6),INDEX(tblHolidays[],MATCH(DATE(CalYear,MONTH(H7),DAY(H7)),IF(PERLIHATKANPERINGATAN,tblHolidays[KOREKSI],tblHolidays[HARI]),0),2),\"\"),\"\"),\"\")","v":""}]
[null,{"$f":"Hari+DATE(CalYear,10,1)-WEEKDAY(DATE(CalYear,10,1),(AWALMINGGU=\"SENIN\")+1)+15","v":"2018-10-14"},"2018-10-15","2018-10-16","2018-10-17","2018-10-18","2018-10-19","2018-10-20"]
[null,{"$f":"IFERROR(IF(PERLIHATKANHARILIBUR,IF(INDEX(tblHolidays[],MATCH(DATE(CalYear,MONTH(B9),DAY(B9)),IF(PERLIHATKANPERINGATAN,tblHolidays[KOREKSI],tblHolidays[HARI]),0),6),INDEX(tblHolidays[],MATCH(DATE(CalYear,MONTH(B9),DAY(B9)),IF(PERLIHATKANPERINGATAN,tblHolidays[KOREKSI],tblHolidays[HARI]),0),2),\"\"),\"\"),\"\")","v":""},{"$f":"IFERROR(IF(PERLIHATKANHARILIBUR,IF(INDEX(tblHolidays[],MATCH(DATE(CalYear,MONTH(C9),DAY(C9)),IF(PERLIHATKANPERINGATAN,tblHolidays[KOREKSI],tblHolidays[HARI]),0),6),INDEX(tblHolidays[],MATCH(DATE(CalYear,MONTH(C9),DAY(C9)),IF(PERLIHATKANPERINGATAN,tblHolidays[KOREKSI],tblHolidays[HARI]),0),2),\"\"),\"\"),\"\")","v":""},{"$f":"IFERROR(IF(PERLIHATKANHARILIBUR,IF(INDEX(tblHolidays[],MATCH(DATE(CalYear,MONTH(D9),DAY(D9)),IF(PERLIHATKANPERINGATAN,tblHolidays[KOREKSI],tblHolidays[HARI]),0),6),INDEX(tblHolidays[],MATCH(DATE(CalYear,MONTH(D9),DAY(D9)),IF(PERLIHATKANPERINGATAN,tblHolidays[KOREKSI],tblHolidays[HARI]),0),2),\"\"),\"\"),\"\")","v":""},{"$f":"IFERROR(IF(PERLIHATKANHARILIBUR,IF(INDEX(tblHolidays[],MATCH(DATE(CalYear,MONTH(E9),DAY(E9)),IF(PERLIHATKANPERINGATAN,tblHolidays[KOREKSI],tblHolidays[HARI]),0),6),INDEX(tblHolidays[],MATCH(DATE(CalYear,MONTH(E9),DAY(E9)),IF(PERLIHATKANPERINGATAN,tblHolidays[KOREKSI],tblHolidays[HARI]),0),2),\"\"),\"\"),\"\")","v":""},{"$f":"IFERROR(IF(PERLIHATKANHARILIBUR,IF(INDEX(tblHolidays[],MATCH(DATE(CalYear,MONTH(F9),DAY(F9)),IF(PERLIHATKANPERINGATAN,tblHolidays[KOREKSI],tblHolidays[HARI]),0),6),INDEX(tblHolidays[],MATCH(DATE(CalYear,MONTH(F9),DAY(F9)),IF(PERLIHATKANPERINGATAN,tblHolidays[KOREKSI],tblHolidays[HARI]),0),2),\"\"),\"\"),\"\")","v":""},{"$f":"IFERROR(IF(PERLIHATKANHARILIBUR,IF(INDEX(tblHolidays[],MATCH(DATE(CalYear,MONTH(G9),DAY(G9)),IF(PERLIHATKANPERINGATAN,tblHolidays[KOREKSI],tblHolidays[HARI]),0),6),INDEX(tblHolidays[],MATCH(DATE(CalYear,MONTH(G9),DAY(G9)),IF(PERLIHATKANPERINGATAN,tblHolidays[KOREKSI],tblHolidays[HARI]),0),2),\"\"),\"\"),\"\")","v":""},{"$f":"IFERROR(IF(PERLIHATKANHARILIBUR,IF(INDEX(tblHolidays[],MATCH(DATE(CalYear,MONTH(H9),DAY(H9)),IF(PERLIHATKANPERINGATAN,tblHolidays[KOREKSI],tblHolidays[HARI]),0),6),INDEX(tblHolidays[],MATCH(DATE(CalYear,MONTH(H9),DAY(H9)),IF(PERLIHATKANPERINGATAN,tblHolidays[KOREKSI],tblHolidays[HARI]),0),2),\"\"),\"\"),\"\")","v":""}]
[null,{"$f":"Hari+DATE(CalYear,10,1)-WEEKDAY(DATE(CalYear,10,1),(AWALMINGGU=\"SENIN\")+1)+22","v":"2018-10-21"},"2018-10-22","2018-10-23","2018-10-24","2018-10-25","2018-10-26","2018-10-27"]
[null,{"$f":"IFERROR(IF(PERLIHATKANHARILIBUR,IF(INDEX(tblHolidays[],MATCH(DATE(CalYear,MONTH(B11),DAY(B11)),IF(PERLIHATKANPERINGATAN,tblHolidays[KOREKSI],tblHolidays[HARI]),0),6),INDEX(tblHolidays[],MATCH(DATE(CalYear,MONTH(B11),DAY(B11)),IF(PERLIHATKANPERINGATAN,tblHolidays[KOREKSI],tblHolidays[HARI]),0),2),\"\"),\"\"),\"\")","v":""},{"$f":"IFERROR(IF(PERLIHATKANHARILIBUR,IF(INDEX(tblHolidays[],MATCH(DATE(CalYear,MONTH(C11),DAY(C11)),IF(PERLIHATKANPERINGATAN,tblHolidays[KOREKSI],tblHolidays[HARI]),0),6),INDEX(tblHolidays[],MATCH(DATE(CalYear,MONTH(C11),DAY(C11)),IF(PERLIHATKANPERINGATAN,tblHolidays[KOREKSI],tblHolidays[HARI]),0),2),\"\"),\"\"),\"\")","v":""},{"$f":"IFERROR(IF(PERLIHATKANHARILIBUR,IF(INDEX(tblHolidays[],MATCH(DATE(CalYear,MONTH(D11),DAY(D11)),IF(PERLIHATKANPERINGATAN,tblHolidays[KOREKSI],tblHolidays[HARI]),0),6),INDEX(tblHolidays[],MATCH(DATE(CalYear,MONTH(D11),DAY(D11)),IF(PERLIHATKANPERINGATAN,tblHolidays[KOREKSI],tblHolidays[HARI]),0),2),\"\"),\"\"),\"\")","v":""},{"$f":"IFERROR(IF(PERLIHATKANHARILIBUR,IF(INDEX(tblHolidays[],MATCH(DATE(CalYear,MONTH(E11),DAY(E11)),IF(PERLIHATKANPERINGATAN,tblHolidays[KOREKSI],tblHolidays[HARI]),0),6),INDEX(tblHolidays[],MATCH(DATE(CalYear,MONTH(E11),DAY(E11)),IF(PERLIHATKANPERINGATAN,tblHolidays[KOREKSI],tblHolidays[HARI]),0),2),\"\"),\"\"),\"\")","v":""},{"$f":"IFERROR(IF(PERLIHATKANHARILIBUR,IF(INDEX(tblHolidays[],MATCH(DATE(CalYear,MONTH(F11),DAY(F11)),IF(PERLIHATKANPERINGATAN,tblHolidays[KOREKSI],tblHolidays[HARI]),0),6),INDEX(tblHolidays[],MATCH(DATE(CalYear,MONTH(F11),DAY(F11)),IF(PERLIHATKANPERINGATAN,tblHolidays[KOREKSI],tblHolidays[HARI]),0),2),\"\"),\"\"),\"\")","v":""},{"$f":"IFERROR(IF(PERLIHATKANHARILIBUR,IF(INDEX(tblHolidays[],MATCH(DATE(CalYear,MONTH(G11),DAY(G11)),IF(PERLIHATKANPERINGATAN,tblHolidays[KOREKSI],tblHolidays[HARI]),0),6),INDEX(tblHolidays[],MATCH(DATE(CalYear,MONTH(G11),DAY(G11)),IF(PERLIHATKANPERINGATAN,tblHolidays[KOREKSI],tblHolidays[HARI]),0),2),\"\"),\"\"),\"\")","v":""},{"$f":"IFERROR(IF(PERLIHATKANHARILIBUR,IF(INDEX(tblHolidays[],MATCH(DATE(CalYear,MONTH(H11),DAY(H11)),IF(PERLIHATKANPERINGATAN,tblHolidays[KOREKSI],tblHolidays[HARI]),0),6),INDEX(tblHolidays[],MATCH(DATE(CalYear,MONTH(H11),DAY(H11)),IF(PERLIHATKANPERINGATAN,tblHolidays[KOREKSI],tblHolidays[HARI]),0),2),\"\"),\"\"),\"\")","v":""}]
[null,{"$f":"Hari+DATE(CalYear,10,1)-WEEKDAY(DATE(CalYear,10,1),(AWALMINGGU=\"SENIN\")+1)+29","v":"2018-10-28"},"2018-10-29","2018-10-30","2018-10-31","2018-11-01","2018-11-02","2018-11-03"]
[null,{"$f":"IFERROR(IF(PERLIHATKANHARILIBUR,IF(INDEX(tblHolidays[],MATCH(DATE(CalYear,MONTH(B13),DAY(B13)),IF(PERLIHATKANPERINGATAN,tblHolidays[KOREKSI],tblHolidays[HARI]),0),6),INDEX(tblHolidays[],MATCH(DATE(CalYear,MONTH(B13),DAY(B13)),IF(PERLIHATKANPERINGATAN,tblHolidays[KOREKSI],tblHolidays[HARI]),0),2),\"\"),\"\"),\"\")","v":""},{"$f":"IFERROR(IF(PERLIHATKANHARILIBUR,IF(INDEX(tblHolidays[],MATCH(DATE(CalYear,MONTH(C13),DAY(C13)),IF(PERLIHATKANPERINGATAN,tblHolidays[KOREKSI],tblHolidays[HARI]),0),6),INDEX(tblHolidays[],MATCH(DATE(CalYear,MONTH(C13),DAY(C13)),IF(PERLIHATKANPERINGATAN,tblHolidays[KOREKSI],tblHolidays[HARI]),0),2),\"\"),\"\"),\"\")","v":""},{"$f":"IFERROR(IF(PERLIHATKANHARILIBUR,IF(INDEX(tblHolidays[],MATCH(DATE(CalYear,MONTH(D13),DAY(D13)),IF(PERLIHATKANPERINGATAN,tblHolidays[KOREKSI],tblHolidays[HARI]),0),6),INDEX(tblHolidays[],MATCH(DATE(CalYear,MONTH(D13),DAY(D13)),IF(PERLIHATKANPERINGATAN,tblHolidays[KOREKSI],tblHolidays[HARI]),0),2),\"\"),\"\"),\"\")","v":""},{"$f":"IFERROR(IF(PERLIHATKANHARILIBUR,IF(INDEX(tblHolidays[],MATCH(DATE(CalYear,MONTH(E13),DAY(E13)),IF(PERLIHATKANPERINGATAN,tblHolidays[KOREKSI],tblHolidays[HARI]),0),6),INDEX(tblHolidays[],MATCH(DATE(CalYear,MONTH(E13),DAY(E13)),IF(PERLIHATKANPERINGATAN,tblHolidays[KOREKSI],tblHolidays[HARI]),0),2),\"\"),\"\"),\"\")","v":""},{"$f":"IFERROR(IF(PERLIHATKANHARILIBUR,IF(INDEX(tblHolidays[],MATCH(DATE(CalYear,MONTH(F13),DAY(F13)),IF(PERLIHATKANPERINGATAN,tblHolidays[KOREKSI],tblHolidays[HARI]),0),6),INDEX(tblHolidays[],MATCH(DATE(CalYear,MONTH(F13),DAY(F13)),IF(PERLIHATKANPERINGATAN,tblHolidays[KOREKSI],tblHolidays[HARI]),0),2),\"\"),\"\"),\"\")","v":""},{"$f":"IFERROR(IF(PERLIHATKANHARILIBUR,IF(INDEX(tblHolidays[],MATCH(DATE(CalYear,MONTH(G13),DAY(G13)),IF(PERLIHATKANPERINGATAN,tblHolidays[KOREKSI],tblHolidays[HARI]),0),6),INDEX(tblHolidays[],MATCH(DATE(CalYear,MONTH(G13),DAY(G13)),IF(PERLIHATKANPERINGATAN,tblHolidays[KOREKSI],tblHolidays[HARI]),0),2),\"\"),\"\"),\"\")","v":""},{"$f":"IFERROR(IF(PERLIHATKANHARILIBUR,IF(INDEX(tblHolidays[],MATCH(DATE(CalYear,MONTH(H13),DAY(H13)),IF(PERLIHATKANPERINGATAN,tblHolidays[KOREKSI],tblHolidays[HARI]),0),6),INDEX(tblHolidays[],MATCH(DATE(CalYear,MONTH(H13),DAY(H13)),IF(PERLIHATKANPERINGATAN,tblHolidays[KOREKSI],tblHolidays[HARI]),0),2),\"\"),\"\"),\"\")","v":""}]
[null,{"$f":"Hari+DATE(CalYear,10,1)-WEEKDAY(DATE(CalYear,10,1),(AWALMINGGU=\"SENIN\")+1)+36","v":"2018-11-04"},"2018-11-05","CATATAN"]
[null,{"$f":"IFERROR(IF(PERLIHATKANHARILIBUR,IF(INDEX(tblHolidays[],MATCH(DATE(CalYear,MONTH(B15),DAY(B15)),IF(PERLIHATKANPERINGATAN,tblHolidays[KOREKSI],tblHolidays[HARI]),0),6),INDEX(tblHolidays[],MATCH(DATE(CalYear,MONTH(B15),DAY(B15)),IF(PERLIHATKANPERINGATAN,tblHolidays[KOREKSI],tblHolidays[HARI]),0),2),\"\"),\"\"),\"\")","v":""},{"$f":"IFERROR(IF(PERLIHATKANHARILIBUR,IF(INDEX(tblHolidays[],MATCH(DATE(CalYear,MONTH(C15),DAY(C15)),IF(PERLIHATKANPERINGATAN,tblHolidays[KOREKSI],tblHolidays[HARI]),0),6),INDEX(tblHolidays[],MATCH(DATE(CalYear,MONTH(C15),DAY(C15)),IF(PERLIHATKANPERINGATAN,tblHolidays[KOREKSI],tblHolidays[HARI]),0),2),\"\"),\"\"),\"\")","v":""}]

{"sheet":"November","index":11,"n_rows":16,"n_cols":8,"rows_kept":16,"merged":[[1,1,1,3],[14,3,14,7],[15,3,15,7],[16,1,16,7]]}
[]
[null,{"$f":"B9","v":"2018-11-11"}]
[]
[null,{"$f":"AWALMINGGU","v":"MINGGU"},{"$f":"UPPER(TEXT(C5,\"dddd\"))","v":"SENIN"},"SELASA","RABU","KAMIS","JUMAT","SABTU"]
[null,{"$f":"Hari+DATE(CalYear,11,1)-WEEKDAY(DATE(CalYear,11,1),(AWALMINGGU=\"SENIN\")+1)+1","v":"2018-10-28"},"2018-10-29","2018-10-30","2018-10-31","2018-11-01","2018-11-02","2018-11-03"]
[null,{"$f":"IFERROR(IF(PERLIHATKANHARILIBUR,IF(INDEX(tblHolidays[],MATCH(DATE(CalYear-(DAY(B5)>15)+(ROW()>6),MONTH(B5),DAY(B5)),IF(PERLIHATKANPERINGATAN,tblHolidays[KOREKSI],tblHolidays[HARI]),0),6),INDEX(tblHolidays[],MATCH(DATE(CalYear-(DAY(B5)>15)+(ROW()>6),MONTH(B5),DAY(B5)),IF(PERLIHATKANPERINGATAN,tblHolidays[KOREKSI],tblHolidays[HARI]),0),2),\"\"),\"\"),\"\")","v":""},{"$f":"IFERROR(IF(PERLIHATKANHARILIBUR,IF(INDEX(tblHolidays[],MATCH(DATE(CalYear-(DAY(C5)>15)+(ROW()>6),MONTH(C5),DAY(C5)),IF(PERLIHATKANPERINGATAN,tblHolidays[KOREKSI],tblHolidays[HARI]),0),6),INDEX(tblHolidays[],MATCH(DATE(CalYear-(DAY(C5)>15)+(ROW()>6),MONTH(C5),DAY(C5)),IF(PERLIHATKANPERINGATAN,tblHolidays[KOREKSI],tblHolidays[HARI]),0),2),\"\"),\"\"),\"\")","v":""},{"$f":"IFERROR(IF(PERLIHATKANHARILIBUR,IF(INDEX(tblHolidays[],MATCH(DATE(CalYear-(DAY(D5)>15)+(ROW()>6),MONTH(D5),DAY(D5)),IF(PERLIHATKANPERINGATAN,tblHolidays[KOREKSI],tblHolidays[HARI]),0),6),INDEX(tblHolidays[],MATCH(DATE(CalYear-(DAY(D5)>15)+(ROW()>6),MONTH(D5),DAY(D5)),IF(PERLIHATKANPERINGATAN,tblHolidays[KOREKSI],tblHolidays[HARI]),0),2),\"\"),\"\"),\"\")","v":""},{"$f":"IFERROR(IF(PERLIHATKANHARILIBUR,IF(INDEX(tblHolidays[],MATCH(DATE(CalYear-(DAY(E5)>15)+(ROW()>6),MONTH(E5),DAY(E5)),IF(PERLIHATKANPERINGATAN,tblHolidays[KOREKSI],tblHolidays[HARI]),0),6),INDEX(tblHolidays[],MATCH(DATE(CalYear-(DAY(E5)>15)+(ROW()>6),MONTH(E5),DAY(E5)),IF(PERLIHATKANPERINGATAN,tblHolidays[KOREKSI],tblHolidays[HARI]),0),2),\"\"),\"\"),\"\")","v":""},{"$f":"IFERROR(IF(PERLIHATKANHARILIBUR,IF(INDEX(tblHolidays[],MATCH(DATE(CalYear-(DAY(F5)>15)+(ROW()>6),MONTH(F5),DAY(F5)),IF(PERLIHATKANPERINGATAN,tblHolidays[KOREKSI],tblHolidays[HARI]),0),6),INDEX(tblHolidays[],MATCH(DATE(CalYear-(DAY(F5)>15)+(ROW()>6),MONTH(F5),DAY(F5)),IF(PERLIHATKANPERINGATAN,tblHolidays[KOREKSI],tblHolidays[HARI]),0),2),\"\"),\"\"),\"\")","v":""},{"$f":"IFERROR(IF(PERLIHATKANHARILIBUR,IF(INDEX(tblHolidays[],MATCH(DATE(CalYear-(DAY(G5)>15)+(ROW()>6),MONTH(G5),DAY(G5)),IF(PERLIHATKANPERINGATAN,tblHolidays[KOREKSI],tblHolidays[HARI]),0),6),INDEX(tblHolidays[],MATCH(DATE(CalYear-(DAY(G5)>15)+(ROW()>6),MONTH(G5),DAY(G5)),IF(PERLIHATKANPERINGATAN,tblHolidays[KOREKSI],tblHolidays[HARI]),0),2),\"\"),\"\"),\"\")","v":""},{"$f":"IFERROR(IF(PERLIHATKANHARILIBUR,IF(INDEX(tblHolidays[],MATCH(DATE(CalYear-(DAY(H5)>15)+(ROW()>6),MONTH(H5),DAY(H5)),IF(PERLIHATKANPERINGATAN,tblHolidays[KOREKSI],tblHolidays[HARI]),0),6),INDEX(tblHolidays[],MATCH(DATE(CalYear-(DAY(H5)>15)+(ROW()>6),MONTH(H5),DAY(H5)),IF(PERLIHATKANPERINGATAN,tblHolidays[KOREKSI],tblHolidays[HARI]),0),2),\"\"),\"\"),\"\")","v":""}]
[null,{"$f":"Hari+DATE(CalYear,11,1)-WEEKDAY(DATE(CalYear,11,1),(AWALMINGGU=\"SENIN\")+1)+8","v":"2018-11-04"},"2018-11-05","2018-11-06","2018-11-07","2018-11-08","2018-11-09","2018-11-10"]
[null,{"$f":"IFERROR(IF(PERLIHATKANHARILIBUR,IF(INDEX(tblHolidays[],MATCH(DATE(CalYear,MONTH(B7),DAY(B7)),IF(PERLIHATKANPERINGATAN,tblHolidays[KOREKSI],tblHolidays[HARI]),0),6),INDEX(tblHolidays[],MATCH(DATE(CalYear,MONTH(B7),DAY(B7)),IF(PERLIHATKANPERINGATAN,tblHolidays[KOREKSI],tblHolidays[HARI]),0),2),\"\"),\"\"),\"\")","v":""},{"$f":"IFERROR(IF(PERLIHATKANHARILIBUR,IF(INDEX(tblHolidays[],MATCH(DATE(CalYear,MONTH(C7),DAY(C7)),IF(PERLIHATKANPERINGATAN,tblHolidays[KOREKSI],tblHolidays[HARI]),0),6),INDEX(tblHolidays[],MATCH(DATE(CalYear,MONTH(C7),DAY(C7)),IF(PERLIHATKANPERINGATAN,tblHolidays[KOREKSI],tblHolidays[HARI]),0),2),\"\"),\"\"),\"\")","v":""},{"$f":"IFERROR(IF(PERLIHATKANHARILIBUR,IF(INDEX(tblHolidays[],MATCH(DATE(CalYear,MONTH(D7),DAY(D7)),IF(PERLIHATKANPERINGATAN,tblHolidays[KOREKSI],tblHolidays[HARI]),0),6),INDEX(tblHolidays[],MATCH(DATE(CalYear,MONTH(D7),DAY(D7)),IF(PERLIHATKANPERINGATAN,tblHolidays[KOREKSI],tblHolidays[HARI]),0),2),\"\"),\"\"),\"\")","v":""},{"$f":"IFERROR(IF(PERLIHATKANHARILIBUR,IF(INDEX(tblHolidays[],MATCH(DATE(CalYear,MONTH(E7),DAY(E7)),IF(PERLIHATKANPERINGATAN,tblHolidays[KOREKSI],tblHolidays[HARI]),0),6),INDEX(tblHolidays[],MATCH(DATE(CalYear,MONTH(E7),DAY(E7)),IF(PERLIHATKANPERINGATAN,tblHolidays[KOREKSI],tblHolidays[HARI]),0),2),\"\"),\"\"),\"\")","v":""},{"$f":"IFERROR(IF(PERLIHATKANHARILIBUR,IF(INDEX(tblHolidays[],MATCH(DATE(CalYear,MONTH(F7),DAY(F7)),IF(PERLIHATKANPERINGATAN,tblHolidays[KOREKSI],tblHolidays[HARI]),0),6),INDEX(tblHolidays[],MATCH(DATE(CalYear,MONTH(F7),DAY(F7)),IF(PERLIHATKANPERINGATAN,tblHolidays[KOREKSI],tblHolidays[HARI]),0),2),\"\"),\"\"),\"\")","v":""},{"$f":"IFERROR(IF(PERLIHATKANHARILIBUR,IF(INDEX(tblHolidays[],MATCH(DATE(CalYear,MONTH(G7),DAY(G7)),IF(PERLIHATKANPERINGATAN,tblHolidays[KOREKSI],tblHolidays[HARI]),0),6),INDEX(tblHolidays[],MATCH(DATE(CalYear,MONTH(G7),DAY(G7)),IF(PERLIHATKANPERINGATAN,tblHolidays[KOREKSI],tblHolidays[HARI]),0),2),\"\"),\"\"),\"\")","v":""},{"$f":"IFERROR(IF(PERLIHATKANHARILIBUR,IF(INDEX(tblHolidays[],MATCH(DATE(CalYear,MONTH(H7),DAY(H7)),IF(PERLIHATKANPERINGATAN,tblHolidays[KOREKSI],tblHolidays[HARI]),0),6),INDEX(tblHolidays[],MATCH(DATE(CalYear,MONTH(H7),DAY(H7)),IF(PERLIHATKANPERINGATAN,tblHolidays[KOREKSI],tblHolidays[HARI]),0),2),\"\"),\"\"),\"\")","v":""}]
[null,{"$f":"Hari+DATE(CalYear,11,1)-WEEKDAY(DATE(CalYear,11,1),(AWALMINGGU=\"SENIN\")+1)+15","v":"2018-11-11"},"2018-11-12","2018-11-13","2018-11-14","2018-11-15","2018-11-16","2018-11-17"]
[null,{"$f":"IFERROR(IF(PERLIHATKANHARILIBUR,IF(INDEX(tblHolidays[],MATCH(DATE(CalYear,MONTH(B9),DAY(B9)),IF(PERLIHATKANPERINGATAN,tblHolidays[KOREKSI],tblHolidays[HARI]),0),6),INDEX(tblHolidays[],MATCH(DATE(CalYear,MONTH(B9),DAY(B9)),IF(PERLIHATKANPERINGATAN,tblHolidays[KOREKSI],tblHolidays[HARI]),0),2),\"\"),\"\"),\"\")","v":""},{"$f":"IFERROR(IF(PERLIHATKANHARILIBUR,IF(INDEX(tblHolidays[],MATCH(DATE(CalYear,MONTH(C9),DAY(C9)),IF(PERLIHATKANPERINGATAN,tblHolidays[KOREKSI],tblHolidays[HARI]),0),6),INDEX(tblHolidays[],MATCH(DATE(CalYear,MONTH(C9),DAY(C9)),IF(PERLIHATKANPERINGATAN,tblHolidays[KOREKSI],tblHolidays[HARI]),0),2),\"\"),\"\"),\"\")","v":"Tahun Baru Islam 1440 H"},{"$f":"IFERROR(IF(PERLIHATKANHARILIBUR,IF(INDEX(tblHolidays[],MATCH(DATE(CalYear,MONTH(D9),DAY(D9)),IF(PERLIHATKANPERINGATAN,tblHolidays[KOREKSI],tblHolidays[HARI]),0),6),INDEX(tblHolidays[],MATCH(DATE(CalYear,MONTH(D9),DAY(D9)),IF(PERLIHATKANPERINGATAN,tblHolidays[KOREKSI],tblHolidays[HARI]),0),2),\"\"),\"\"),\"\")","v":""},{"$f":"IFERROR(IF(PERLIHATKANHARILIBUR,IF(INDEX(tblHolidays[],MATCH(DATE(CalYear,MONTH(E9),DAY(E9)),IF(PERLIHATKANPERINGATAN,tblHolidays[KOREKSI],tblHolidays[HARI]),0),6),INDEX(tblHolidays[],MATCH(DATE(CalYear,MONTH(E9),DAY(E9)),IF(PERLIHATKANPERINGATAN,tblHolidays[KOREKSI],tblHolidays[HARI]),0),2),\"\"),\"\"),\"\")","v":""},{"$f":"IFERROR(IF(PERLIHATKANHARILIBUR,IF(INDEX(tblHolidays[],MATCH(DATE(CalYear,MONTH(F9),DAY(F9)),IF(PERLIHATKANPERINGATAN,tblHolidays[KOREKSI],tblHolidays[HARI]),0),6),INDEX(tblHolidays[],MATCH(DATE(CalYear,MONTH(F9),DAY(F9)),IF(PERLIHATKANPERINGATAN,tblHolidays[KOREKSI],tblHolidays[HARI]),0),2),\"\"),\"\"),\"\")","v":""},{"$f":"IFERROR(IF(PERLIHATKANHARILIBUR,IF(INDEX(tblHolidays[],MATCH(DATE(CalYear,MONTH(G9),DAY(G9)),IF(PERLIHATKANPERINGATAN,tblHolidays[KOREKSI],tblHolidays[HARI]),0),6),INDEX(tblHolidays[],MATCH(DATE(CalYear,MONTH(G9),DAY(G9)),IF(PERLIHATKANPERINGATAN,tblHolidays[KOREKSI],tblHolidays[HARI]),0),2),\"\"),\"\"),\"\")","v":""},{"$f":"IFERROR(IF(PERLIHATKANHARILIBUR,IF(INDEX(tblHolidays[],MATCH(DATE(CalYear,MONTH(H9),DAY(H9)),IF(PERLIHATKANPERINGATAN,tblHolidays[KOREKSI],tblHolidays[HARI]),0),6),INDEX(tblHolidays[],MATCH(DATE(CalYear,MONTH(H9),DAY(H9)),IF(PERLIHATKANPERINGATAN,tblHolidays[KOREKSI],tblHolidays[HARI]),0),2),\"\"),\"\"),\"\")","v":""}]
[null,{"$f":"Hari+DATE(CalYear,11,1)-WEEKDAY(DATE(CalYear,11,1),(AWALMINGGU=\"SENIN\")+1)+22","v":"2018-11-18"},"2018-11-19","2018-11-20","2018-11-21","2018-11-22","2018-11-23","2018-11-24"]
[null,{"$f":"IFERROR(IF(PERLIHATKANHARILIBUR,IF(INDEX(tblHolidays[],MATCH(DATE(CalYear,MONTH(B11),DAY(B11)),IF(PERLIHATKANPERINGATAN,tblHolidays[KOREKSI],tblHolidays[HARI]),0),6),INDEX(tblHolidays[],MATCH(DATE(CalYear,MONTH(B11),DAY(B11)),IF(PERLIHATKANPERINGATAN,tblHolidays[KOREKSI],tblHolidays[HARI]),0),2),\"\"),\"\"),\"\")","v":""},{"$f":"IFERROR(IF(PERLIHATKANHARILIBUR,IF(INDEX(tblHolidays[],MATCH(DATE(CalYear,MONTH(C11),DAY(C11)),IF(PERLIHATKANPERINGATAN,tblHolidays[KOREKSI],tblHolidays[HARI]),0),6),INDEX(tblHolidays[],MATCH(DATE(CalYear,MONTH(C11),DAY(C11)),IF(PERLIHATKANPERINGATAN,tblHolidays[KOREKSI],tblHolidays[HARI]),0),2),\"\"),\"\"),\"\")","v":""},{"$f":"IFERROR(IF(PERLIHATKANHARILIBUR,IF(INDEX(tblHolidays[],MATCH(DATE(CalYear,MONTH(D11),DAY(D11)),IF(PERLIHATKANPERINGATAN,tblHolidays[KOREKSI],tblHolidays[HARI]),0),6),INDEX(tblHolidays[],MATCH(DATE(CalYear,MONTH(D11),DAY(D11)),IF(PERLIHATKANPERINGATAN,tblHolidays[KOREKSI],tblHolidays[HARI]),0),2),\"\"),\"\"),\"\")","v":""},{"$f":"IFERROR(IF(PERLIHATKANHARILIBUR,IF(INDEX(tblHolidays[],MATCH(DATE(CalYear,MONTH(E11),DAY(E11)),IF(PERLIHATKANPERINGATAN,tblHolidays[KOREKSI],tblHolidays[HARI]),0),6),INDEX(tblHolidays[],MATCH(DATE(CalYear,MONTH(E11),DAY(E11)),IF(PERLIHATKANPERINGATAN,tblHolidays[KOREKSI],tblHolidays[HARI]),0),2),\"\"),\"\"),\"\")","v":""},{"$f":"IFERROR(IF(PERLIHATKANHARILIBUR,IF(INDEX(tblHolidays[],MATCH(DATE(CalYear,MONTH(F11),DAY(F11)),IF(PERLIHATKANPERINGATAN,tblHolidays[KOREKSI],tblHolidays[HARI]),0),6),INDEX(tblHolidays[],MATCH(DATE(CalYear,MONTH(F11),DAY(F11)),IF(PERLIHATKANPERINGATAN,tblHolidays[KOREKSI],tblHolidays[HARI]),0),2),\"\"),\"\"),\"\")","v":"Maulid Nabi Muhammad SAW 1440 H"},{"$f":"IFERROR(IF(PERLIHATKANHARILIBUR,IF(INDEX(tblHolidays[],MATCH(DATE(CalYear,MONTH(G11),DAY(G11)),IF(PERLIHATKANPERINGATAN,tblHolidays[KOREKSI],tblHolidays[HARI]),0),6),INDEX(tblHolidays[],MATCH(DATE(CalYear,MONTH(G11),DAY(G11)),IF(PERLIHATKANPERINGATAN,tblHolidays[KOREKSI],tblHolidays[HARI]),0),2),\"\"),\"\"),\"\")","v":""},{"$f":"IFERROR(IF(PERLIHATKANHARILIBUR,IF(INDEX(tblHolidays[],MATCH(DATE(CalYear,MONTH(H11),DAY(H11)),IF(PERLIHATKANPERINGATAN,tblHolidays[KOREKSI],tblHolidays[HARI]),0),6),INDEX(tblHolidays[],MATCH(DATE(CalYear,MONTH(H11),DAY(H11)),IF(PERLIHATKANPERINGATAN,tblHolidays[KOREKSI],tblHolidays[HARI]),0),2),\"\"),\"\"),\"\")","v":""}]
[null,{"$f":"Hari+DATE(CalYear,11,1)-WEEKDAY(DATE(CalYear,11,1),(AWALMINGGU=\"SENIN\")+1)+29","v":"2018-11-25"},"2018-11-26","2018-11-27","2018-11-28","2018-11-29","2018-11-30","2018-12-01"]
[null,{"$f":"IFERROR(IF(PERLIHATKANHARILIBUR,IF(INDEX(tblHolidays[],MATCH(DATE(CalYear,MONTH(B13),DAY(B13)),IF(PERLIHATKANPERINGATAN,tblHolidays[KOREKSI],tblHolidays[HARI]),0),6),INDEX(tblHolidays[],MATCH(DATE(CalYear,MONTH(B13),DAY(B13)),IF(PERLIHATKANPERINGATAN,tblHolidays[KOREKSI],tblHolidays[HARI]),0),2),\"\"),\"\"),\"\")","v":""},{"$f":"IFERROR(IF(PERLIHATKANHARILIBUR,IF(INDEX(tblHolidays[],MATCH(DATE(CalYear,MONTH(C13),DAY(C13)),IF(PERLIHATKANPERINGATAN,tblHolidays[KOREKSI],tblHolidays[HARI]),0),6),INDEX(tblHolidays[],MATCH(DATE(CalYear,MONTH(C13),DAY(C13)),IF(PERLIHATKANPERINGATAN,tblHolidays[KOREKSI],tblHolidays[HARI]),0),2),\"\"),\"\"),\"\")","v":""},{"$f":"IFERROR(IF(PERLIHATKANHARILIBUR,IF(INDEX(tblHolidays[],MATCH(DATE(CalYear,MONTH(D13),DAY(D13)),IF(PERLIHATKANPERINGATAN,tblHolidays[KOREKSI],tblHolidays[HARI]),0),6),INDEX(tblHolidays[],MATCH(DATE(CalYear,MONTH(D13),DAY(D13)),IF(PERLIHATKANPERINGATAN,tblHolidays[KOREKSI],tblHolidays[HARI]),0),2),\"\"),\"\"),\"\")","v":""},{"$f":"IFERROR(IF(PERLIHATKANHARILIBUR,IF(INDEX(tblHolidays[],MATCH(DATE(CalYear,MONTH(E13),DAY(E13)),IF(PERLIHATKANPERINGATAN,tblHolidays[KOREKSI],tblHolidays[HARI]),0),6),INDEX(tblHolidays[],MATCH(DATE(CalYear,MONTH(E13),DAY(E13)),IF(PERLIHATKANPERINGATAN,tblHolidays[KOREKSI],tblHolidays[HARI]),0),2),\"\"),\"\"),\"\")","v":""},{"$f":"IFERROR(IF(PERLIHATKANHARILIBUR,IF(INDEX(tblHolidays[],MATCH(DATE(CalYear,MONTH(F13),DAY(F13)),IF(PERLIHATKANPERINGATAN,tblHolidays[KOREKSI],tblHolidays[HARI]),0),6),INDEX(tblHolidays[],MATCH(DATE(CalYear,MONTH(F13),DAY(F13)),IF(PERLIHATKANPERINGATAN,tblHolidays[KOREKSI],tblHolidays[HARI]),0),2),\"\"),\"\"),\"\")","v":""},{"$f":"IFERROR(IF(PERLIHATKANHARILIBUR,IF(INDEX(tblHolidays[],MATCH(DATE(CalYear,MONTH(G13),DAY(G13)),IF(PERLIHATKANPERINGATAN,tblHolidays[KOREKSI],tblHolidays[HARI]),0),6),INDEX(tblHolidays[],MATCH(DATE(CalYear,MONTH(G13),DAY(G13)),IF(PERLIHATKANPERINGATAN,tblHolidays[KOREKSI],tblHolidays[HARI]),0),2),\"\"),\"\"),\"\")","v":""},{"$f":"IFERROR(IF(PERLIHATKANHARILIBUR,IF(INDEX(tblHolidays[],MATCH(DATE(CalYear,MONTH(H13),DAY(H13)),IF(PERLIHATKANPERINGATAN,tblHolidays[KOREKSI],tblHolidays[HARI]),0),6),INDEX(tblHolidays[],MATCH(DATE(CalYear,MONTH(H13),DAY(H13)),IF(PERLIHATKANPERINGATAN,tblHolidays[KOREKSI],tblHolidays[HARI]),0),2),\"\"),\"\"),\"\")","v":""}]
[null,{"$f":"Hari+DATE(CalYear,11,1)-WEEKDAY(DATE(CalYear,11,1),(AWALMINGGU=\"SENIN\")+1)+36","v":"2018-12-02"},"2018-12-03","CATATAN"]
[null,{"$f":"IFERROR(IF(PERLIHATKANHARILIBUR,IF(INDEX(tblHolidays[],MATCH(DATE(CalYear,MONTH(B15),DAY(B15)),IF(PERLIHATKANPERINGATAN,tblHolidays[KOREKSI],tblHolidays[HARI]),0),6),INDEX(tblHolidays[],MATCH(DATE(CalYear,MONTH(B15),DAY(B15)),IF(PERLIHATKANPERINGATAN,tblHolidays[KOREKSI],tblHolidays[HARI]),0),2),\"\"),\"\"),\"\")","v":""},{"$f":"IFERROR(IF(PERLIHATKANHARILIBUR,IF(INDEX(tblHolidays[],MATCH(DATE(CalYear,MONTH(C15),DAY(C15)),IF(PERLIHATKANPERINGATAN,tblHolidays[KOREKSI],tblHolidays[HARI]),0),6),INDEX(tblHolidays[],MATCH(DATE(CalYear,MONTH(C15),DAY(C15)),IF(PERLIHATKANPERINGATAN,tblHolidays[KOREKSI],tblHolidays[HARI]),0),2),\"\"),\"\"),\"\")","v":""}]

{"sheet":"Desember","index":12,"n_rows":16,"n_cols":8,"rows_kept":16,"merged":[[1,1,1,3],[14,3,14,7],[15,3,15,7],[16,1,16,7]]}
[]
[null,{"$f":"B9","v":"2018-12-09"}]
[]
[null,{"$f":"AWALMINGGU","v":"MINGGU"},{"$f":"UPPER(TEXT(C5,\"dddd\"))","v":"SENIN"},"SELASA","RABU","KAMIS","JUMAT","SABTU"]
[null,{"$f":"Hari+DATE(CalYear,12,1)-WEEKDAY(DATE(CalYear,12,1),(AWALMINGGU=\"SENIN\")+1)+1","v":"2018-11-25"},"2018-11-26","2018-11-27","2018-11-28","2018-11-29","2018-11-30","2018-12-01"]
[null,{"$f":"IFERROR(IF(PERLIHATKANHARILIBUR,IF(INDEX(tblHolidays[],MATCH(DATE(CalYear-(DAY(B5)>15)+(ROW()>6),MONTH(B5),DAY(B5)),IF(PERLIHATKANPERINGATAN,tblHolidays[KOREKSI],tblHolidays[HARI]),0),6),INDEX(tblHolidays[],MATCH(DATE(CalYear-(DAY(B5)>15)+(ROW()>6),MONTH(B5),DAY(B5)),IF(PERLIHATKANPERINGATAN,tblHolidays[KOREKSI],tblHolidays[HARI]),0),2),\"\"),\"\"),\"\")","v":""},{"$f":"IFERROR(IF(PERLIHATKANHARILIBUR,IF(INDEX(tblHolidays[],MATCH(DATE(CalYear-(DAY(C5)>15)+(ROW()>6),MONTH(C5),DAY(C5)),IF(PERLIHATKANPERINGATAN,tblHolidays[KOREKSI],tblHolidays[HARI]),0),6),INDEX(tblHolidays[],MATCH(DATE(CalYear-(DAY(C5)>15)+(ROW()>6),MONTH(C5),DAY(C5)),IF(PERLIHATKANPERINGATAN,tblHolidays[KOREKSI],tblHolidays[HARI]),0),2),\"\"),\"\"),\"\")","v":""},{"$f":"IFERROR(IF(PERLIHATKANHARILIBUR,IF(INDEX(tblHolidays[],MATCH(DATE(CalYear-(DAY(D5)>15)+(ROW()>6),MONTH(D5),DAY(D5)),IF(PERLIHATKANPERINGATAN,tblHolidays[KOREKSI],tblHolidays[HARI]),0),6),INDEX(tblHolidays[],MATCH(DATE(CalYear-(DAY(D5)>15)+(ROW()>6),MONTH(D5),DAY(D5)),IF(PERLIHATKANPERINGATAN,tblHolidays[KOREKSI],tblHolidays[HARI]),0),2),\"\"),\"\"),\"\")","v":""},{"$f":"IFERROR(IF(PERLIHATKANHARILIBUR,IF(INDEX(tblHolidays[],MATCH(DATE(CalYear-(DAY(E5)>15)+(ROW()>6),MONTH(E5),DAY(E5)),IF(PERLIHATKANPERINGATAN,tblHolidays[KOREKSI],tblHolidays[HARI]),0),6),INDEX(tblHolidays[],MATCH(DATE(CalYear-(DAY(E5)>15)+(ROW()>6),MONTH(E5),DAY(E5)),IF(PERLIHATKANPERINGATAN,tblHolidays[KOREKSI],tblHolidays[HARI]),0),2),\"\"),\"\"),\"\")","v":""},{"$f":"IFERROR(IF(PERLIHATKANHARILIBUR,IF(INDEX(tblHolidays[],MATCH(DATE(CalYear-(DAY(F5)>15)+(ROW()>6),MONTH(F5),DAY(F5)),IF(PERLIHATKANPERINGATAN,tblHolidays[KOREKSI],tblHolidays[HARI]),0),6),INDEX(tblHolidays[],MATCH(DATE(CalYear-(DAY(F5)>15)+(ROW()>6),MONTH(F5),DAY(F5)),IF(PERLIHATKANPERINGATAN,tblHolidays[KOREKSI],tblHolidays[HARI]),0),2),\"\"),\"\"),\"\")","v":""},{"$f":"IFERROR(IF(PERLIHATKANHARILIBUR,IF(INDEX(tblHolidays[],MATCH(DATE(CalYear-(DAY(G5)>15)+(ROW()>6),MONTH(G5),DAY(G5)),IF(PERLIHATKANPERINGATAN,tblHolidays[KOREKSI],tblHolidays[HARI]),0),6),INDEX(tblHolidays[],MATCH(DATE(CalYear-(DAY(G5)>15)+(ROW()>6),MONTH(G5),DAY(G5)),IF(PERLIHATKANPERINGATAN,tblHolidays[KOREKSI],tblHolidays[HARI]),0),2),\"\"),\"\"),\"\")","v":""},{"$f":"IFERROR(IF(PERLIHATKANHARILIBUR,IF(INDEX(tblHolidays[],MATCH(DATE(CalYear-(DAY(H5)>15)+(ROW()>6),MONTH(H5),DAY(H5)),IF(PERLIHATKANPERINGATAN,tblHolidays[KOREKSI],tblHolidays[HARI]),0),6),INDEX(tblHolidays[],MATCH(DATE(CalYear-(DAY(H5)>15)+(ROW()>6),MONTH(H5),DAY(H5)),IF(PERLIHATKANPERINGATAN,tblHolidays[KOREKSI],tblHolidays[HARI]),0),2),\"\"),\"\"),\"\")","v":""}]
[null,{"$f":"Hari+DATE(CalYear,12,1)-WEEKDAY(DATE(CalYear,12,1),(AWALMINGGU=\"SENIN\")+1)+8","v":"2018-12-02"},"2018-12-03","2018-12-04","2018-12-05","2018-12-06","2018-12-07","2018-12-08"]
[null,{"$f":"IFERROR(IF(PERLIHATKANHARILIBUR,IF(INDEX(tblHolidays[],MATCH(DATE(CalYear,MONTH(B7),DAY(B7)),IF(PERLIHATKANPERINGATAN,tblHolidays[KOREKSI],tblHolidays[HARI]),0),6),INDEX(tblHolidays[],MATCH(DATE(CalYear,MONTH(B7),DAY(B7)),IF(PERLIHATKANPERINGATAN,tblHolidays[KOREKSI],tblHolidays[HARI]),0),2),\"\"),\"\"),\"\")","v":""},{"$f":"IFERROR(IF(PERLIHATKANHARILIBUR,IF(INDEX(tblHolidays[],MATCH(DATE(CalYear,MONTH(C7),DAY(C7)),IF(PERLIHATKANPERINGATAN,tblHolidays[KOREKSI],tblHolidays[HARI]),0),6),INDEX(tblHolidays[],MATCH(DATE(CalYear,MONTH(C7),DAY(C7)),IF(PERLIHATKANPERINGATAN,tblHolidays[KOREKSI],tblHolidays[HARI]),0),2),\"\"),\"\"),\"\")","v":""},{"$f":"IFERROR(IF(PERLIHATKANHARILIBUR,IF(INDEX(tblHolidays[],MATCH(DATE(CalYear,MONTH(D7),DAY(D7)),IF(PERLIHATKANPERINGATAN,tblHolidays[KOREKSI],tblHolidays[HARI]),0),6),INDEX(tblHolidays[],MATCH(DATE(CalYear,MONTH(D7),DAY(D7)),IF(PERLIHATKANPERINGATAN,tblHolidays[KOREKSI],tblHolidays[HARI]),0),2),\"\"),\"\"),\"\")","v":""},{"$f":"IFERROR(IF(PERLIHATKANHARILIBUR,IF(INDEX(tblHolidays[],MATCH(DATE(CalYear,MONTH(E7),DAY(E7)),IF(PERLIHATKANPERINGATAN,tblHolidays[KOREKSI],tblHolidays[HARI]),0),6),INDEX(tblHolidays[],MATCH(DATE(CalYear,MONTH(E7),DAY(E7)),IF(PERLIHATKANPERINGATAN,tblHolidays[KOREKSI],tblHolidays[HARI]),0),2),\"\"),\"\"),\"\")","v":""},{"$f":"IFERROR(IF(PERLIHATKANHARILIBUR,IF(INDEX(tblHolidays[],MATCH(DATE(CalYear,MONTH(F7),DAY(F7)),IF(PERLIHATKANPERINGATAN,tblHolidays[KOREKSI],tblHolidays[HARI]),0),6),INDEX(tblHolidays[],MATCH(DATE(CalYear,MONTH(F7),DAY(F7)),IF(PERLIHATKANPERINGATAN,tblHolidays[KOREKSI],tblHolidays[HARI]),0),2),\"\"),\"\"),\"\")","v":""},{"$f":"IFERROR(IF(PERLIHATKANHARILIBUR,IF(INDEX(tblHolidays[],MATCH(DATE(CalYear,MONTH(G7),DAY(G7)),IF(PERLIHATKANPERINGATAN,tblHolidays[KOREKSI],tblHolidays[HARI]),0),6),INDEX(tblHolidays[],MATCH(DATE(CalYear,MONTH(G7),DAY(G7)),IF(PERLIHATKANPERINGATAN,tblHolidays[KOREKSI],tblHolidays[HARI]),0),2),\"\"),\"\"),\"\")","v":""},{"$f":"IFERROR(IF(PERLIHATKANHARILIBUR,IF(INDEX(tblHolidays[],MATCH(DATE(CalYear,MONTH(H7),DAY(H7)),IF(PERLIHATKANPERINGATAN,tblHolidays[KOREKSI],tblHolidays[HARI]),0),6),INDEX(tblHolidays[],MATCH(DATE(CalYear,MONTH(H7),DAY(H7)),IF(PERLIHATKANPERINGATAN,tblHolidays[KOREKSI],tblHolidays[HARI]),0),2),\"\"),\"\"),\"\")","v":""}]
[null,{"$f":"Hari+DATE(CalYear,12,1)-WEEKDAY(DATE(CalYear,12,1),(AWALMINGGU=\"SENIN\")+1)+15","v":"2018-12-09"},"2018-12-10","2018-12-11","2018-12-12","2018-12-13","2018-12-14","2018-12-15"]
[null,{"$f":"IFERROR(IF(PERLIHATKANHARILIBUR,IF(INDEX(tblHolidays[],MATCH(DATE(CalYear,MONTH(B9),DAY(B9)),IF(PERLIHATKANPERINGATAN,tblHolidays[KOREKSI],tblHolidays[HARI]),0),6),INDEX(tblHolidays[],MATCH(DATE(CalYear,MONTH(B9),DAY(B9)),IF(PERLIHATKANPERINGATAN,tblHolidays[KOREKSI],tblHolidays[HARI]),0),2),\"\"),\"\"),\"\")","v":""},{"$f":"IFERROR(IF(PERLIHATKANHARILIBUR,IF(INDEX(tblHolidays[],MATCH(DATE(CalYear,MONTH(C9),DAY(C9)),IF(PERLIHATKANPERINGATAN,tblHolidays[KOREKSI],tblHolidays[HARI]),0),6),INDEX(tblHolidays[],MATCH(DATE(CalYear,MONTH(C9),DAY(C9)),IF(PERLIHATKANPERINGATAN,tblHolidays[KOREKSI],tblHolidays[HARI]),0),2),\"\"),\"\"),\"\")","v":""},{"$f":"IFERROR(IF(PERLIHATKANHARILIBUR,IF(INDEX(tblHolidays[],MATCH(DATE(CalYear,MONTH(D9),DAY(D9)),IF(PERLIHATKANPERINGATAN,tblHolidays[KOREKSI],tblHolidays[HARI]),0),6),INDEX(tblHolidays[],MATCH(DATE(CalYear,MONTH(D9),DAY(D9)),IF(PERLIHATKANPERINGATAN,tblHolidays[KOREKSI],tblHolidays[HARI]),0),2),\"\"),\"\"),\"\")","v":""},{"$f":"IFERROR(IF(PERLIHATKANHARILIBUR,IF(INDEX(tblHolidays[],MATCH(DATE(CalYear,MONTH(E9),DAY(E9)),IF(PERLIHATKANPERINGATAN,tblHolidays[KOREKSI],tblHolidays[HARI]),0),6),INDEX(tblHolidays[],MATCH(DATE(CalYear,MONTH(E9),DAY(E9)),IF(PERLIHATKANPERINGATAN,tblHolidays[KOREKSI],tblHolidays[HARI]),0),2),\"\"),\"\"),\"\")","v":""},{"$f":"IFERROR(IF(PERLIHATKANHARILIBUR,IF(INDEX(tblHolidays[],MATCH(DATE(CalYear,MONTH(F9),DAY(F9)),IF(PERLIHATKANPERINGATAN,tblHolidays[KOREKSI],tblHolidays[HARI]),0),6),INDEX(tblHolidays[],MATCH(DATE(CalYear,MONTH(F9),DAY(F9)),IF(PERLIHATKANPERINGATAN,tblHolidays[KOREKSI],tblHolidays[HARI]),0),2),\"\"),\"\"),\"\")","v":""},{"$f":"IFERROR(IF(PERLIHATKANHARILIBUR,IF(INDEX(tblHolidays[],MATCH(DATE(CalYear,MONTH(G9),DAY(G9)),IF(PERLIHATKANPERINGATAN,tblHolidays[KOREKSI],tblHolidays[HARI]),0),6),INDEX(tblHolidays[],MATCH(DATE(CalYear,MONTH(G9),DAY(G9)),IF(PERLIHATKANPERINGATAN,tblHolidays[KOREKSI],tblHolidays[HARI]),0),2),\"\"),\"\"),\"\")","v":""},{"$f":"IFERROR(IF(PERLIHATKANHARILIBUR,IF(INDEX(tblHolidays[],MATCH(DATE(CalYear,MONTH(H9),DAY(H9)),IF(PERLIHATKANPERINGATAN,tblHolidays[KOREKSI],tblHolidays[HARI]),0),6),INDEX(tblHolidays[],MATCH(DATE(CalYear,MONTH(H9),DAY(H9)),IF(PERLIHATKANPERINGATAN,tblHolidays[KOREKSI],tblHolidays[HARI]),0),2),\"\"),\"\"),\"\")","v":""}]
[null,{"$f":"Hari+DATE(CalYear,12,1)-WEEKDAY(DATE(CalYear,12,1),(AWALMINGGU=\"SENIN\")+1)+22","v":"2018-12-16"},"2018-12-17","2018-12-18","2018-12-19","2018-12-20","2018-12-21","2018-12-22"]
[null,{"$f":"IFERROR(IF(PERLIHATKANHARILIBUR,IF(INDEX(tblHolidays[],MATCH(DATE(CalYear,MONTH(B11),DAY(B11)),IF(PERLIHATKANPERINGATAN,tblHolidays[KOREKSI],tblHolidays[HARI]),0),6),INDEX(tblHolidays[],MATCH(DATE(CalYear,MONTH(B11),DAY(B11)),IF(PERLIHATKANPERINGATAN,tblHolidays[KOREKSI],tblHolidays[HARI]),0),2),\"\"),\"\"),\"\")","v":""},{"$f":"IFERROR(IF(PERLIHATKANHARILIBUR,IF(INDEX(tblHolidays[],MATCH(DATE(CalYear,MONTH(C11),DAY(C11)),IF(PERLIHATKANPERINGATAN,tblHolidays[KOREKSI],tblHolidays[HARI]),0),6),INDEX(tblHolidays[],MATCH(DATE(CalYear,MONTH(C11),DAY(C11)),IF(PERLIHATKANPERINGATAN,tblHolidays[KOREKSI],tblHolidays[HARI]),0),2),\"\"),\"\"),\"\")","v":""},{"$f":"IFERROR(IF(PERLIHATKANHARILIBUR,IF(INDEX(tblHolidays[],MATCH(DATE(CalYear,MONTH(D11),DAY(D11)),IF(PERLIHATKANPERINGATAN,tblHolidays[KOREKSI],tblHolidays[HARI]),0),6),INDEX(tblHolidays[],MATCH(DATE(CalYear,MONTH(D11),DAY(D11)),IF(PERLIHATKANPERINGATAN,tblHolidays[KOREKSI],tblHolidays[HARI]),0),2),\"\"),\"\"),\"\")","v":""},{"$f":"IFERROR(IF(PERLIHATKANHARILIBUR,IF(INDEX(tblHolidays[],MATCH(DATE(CalYear,MONTH(E11),DAY(E11)),IF(PERLIHATKANPERINGATAN,tblHolidays[KOREKSI],tblHolidays[HARI]),0),6),INDEX(tblHolidays[],MATCH(DATE(CalYear,MONTH(E11),DAY(E11)),IF(PERLIHATKANPERINGATAN,tblHolidays[KOREKSI],tblHolidays[HARI]),0),2),\"\"),\"\"),\"\")","v":""},{"$f":"IFERROR(IF(PERLIHATKANHARILIBUR,IF(INDEX(tblHolidays[],MATCH(DATE(CalYear,MONTH(F11),DAY(F11)),IF(PERLIHATKANPERINGATAN,tblHolidays[KOREKSI],tblHolidays[HARI]),0),6),INDEX(tblHolidays[],MATCH(DATE(CalYear,MONTH(F11),DAY(F11)),IF(PERLIHATKANPERINGATAN,tblHolidays[KOREKSI],tblHolidays[HARI]),0),2),\"\"),\"\"),\"\")","v":""},{"$f":"IFERROR(IF(PERLIHATKANHARILIBUR,IF(INDEX(tblHolidays[],MATCH(DATE(CalYear,MONTH(G11),DAY(G11)),IF(PERLIHATKANPERINGATAN,tblHolidays[KOREKSI],tblHolidays[HARI]),0),6),INDEX(tblHolidays[],MATCH(DATE(CalYear,MONTH(G11),DAY(G11)),IF(PERLIHATKANPERINGATAN,tblHolidays[KOREKSI],tblHolidays[HARI]),0),2),\"\"),\"\"),\"\")","v":""},{"$f":"IFERROR(IF(PERLIHATKANHARILIBUR,IF(INDEX(tblHolidays[],MATCH(DATE(CalYear,MONTH(H11),DAY(H11)),IF(PERLIHATKANPERINGATAN,tblHolidays[KOREKSI],tblHolidays[HARI]),0),6),INDEX(tblHolidays[],MATCH(DATE(CalYear,MONTH(H11),DAY(H11)),IF(PERLIHATKANPERINGATAN,tblHolidays[KOREKSI],tblHolidays[HARI]),0),2),\"\"),\"\"),\"\")","v":""}]
[null,{"$f":"Hari+DATE(CalYear,12,1)-WEEKDAY(DATE(CalYear,12,1),(AWALMINGGU=\"SENIN\")+1)+29","v":"2018-12-23"},"2018-12-24","2018-12-25","2018-12-26","2018-12-27","2018-12-28","2018-12-29"]
[null,{"$f":"IFERROR(IF(PERLIHATKANHARILIBUR,IF(INDEX(tblHolidays[],MATCH(DATE(CalYear,MONTH(B13),DAY(B13)),IF(PERLIHATKANPERINGATAN,tblHolidays[KOREKSI],tblHolidays[HARI]),0),6),INDEX(tblHolidays[],MATCH(DATE(CalYear,MONTH(B13),DAY(B13)),IF(PERLIHATKANPERINGATAN,tblHolidays[KOREKSI],tblHolidays[HARI]),0),2),\"\"),\"\"),\"\")","v":""},{"$f":"IFERROR(IF(PERLIHATKANHARILIBUR,IF(INDEX(tblHolidays[],MATCH(DATE(CalYear,MONTH(C13),DAY(C13)),IF(PERLIHATKANPERINGATAN,tblHolidays[KOREKSI],tblHolidays[HARI]),0),6),INDEX(tblHolidays[],MATCH(DATE(CalYear,MONTH(C13),DAY(C13)),IF(PERLIHATKANPERINGATAN,tblHolidays[KOREKSI],tblHolidays[HARI]),0),2),\"\"),\"\"),\"\")","v":""},{"$f":"IFERROR(IF(PERLIHATKANHARILIBUR,IF(INDEX(tblHolidays[],MATCH(DATE(CalYear,MONTH(D13),DAY(D13)),IF(PERLIHATKANPERINGATAN,tblHolidays[KOREKSI],tblHolidays[HARI]),0),6),INDEX(tblHolidays[],MATCH(DATE(CalYear,MONTH(D13),DAY(D13)),IF(PERLIHATKANPERINGATAN,tblHolidays[KOREKSI],tblHolidays[HARI]),0),2),\"\"),\"\"),\"\")","v":"Hari Raya Natal"},{"$f":"IFERROR(IF(PERLIHATKANHARILIBUR,IF(INDEX(tblHolidays[],MATCH(DATE(CalYear,MONTH(E13),DAY(E13)),IF(PERLIHATKANPERINGATAN,tblHolidays[KOREKSI],tblHolidays[HARI]),0),6),INDEX(tblHolidays[],MATCH(DATE(CalYear,MONTH(E13),DAY(E13)),IF(PERLIHATKANPERINGATAN,tblHolidays[KOREKSI],tblHolidays[HARI]),0),2),\"\"),\"\"),\"\")","v":""},{"$f":"IFERROR(IF(PERLIHATKANHARILIBUR,IF(INDEX(tblHolidays[],MATCH(DATE(CalYear,MONTH(F13),DAY(F13)),IF(PERLIHATKANPERINGATAN,tblHolidays[KOREKSI],tblHolidays[HARI]),0),6),INDEX(tblHolidays[],MATCH(DATE(CalYear,MONTH(F13),DAY(F13)),IF(PERLIHATKANPERINGATAN,tblHolidays[KOREKSI],tblHolidays[HARI]),0),2),\"\"),\"\"),\"\")","v":""},{"$f":"IFERROR(IF(PERLIHATKANHARILIBUR,IF(INDEX(tblHolidays[],MATCH(DATE(CalYear,MONTH(G13),DAY(G13)),IF(PERLIHATKANPERINGATAN,tblHolidays[KOREKSI],tblHolidays[HARI]),0),6),INDEX(tblHolidays[],MATCH(DATE(CalYear,MONTH(G13),DAY(G13)),IF(PERLIHATKANPERINGATAN,tblHolidays[KOREKSI],tblHolidays[HARI]),0),2),\"\"),\"\"),\"\")","v":""},{"$f":"IFERROR(IF(PERLIHATKANHARILIBUR,IF(INDEX(tblHolidays[],MATCH(DATE(CalYear,MONTH(H13),DAY(H13)),IF(PERLIHATKANPERINGATAN,tblHolidays[KOREKSI],tblHolidays[HARI]),0),6),INDEX(tblHolidays[],MATCH(DATE(CalYear,MONTH(H13),DAY(H13)),IF(PERLIHATKANPERINGATAN,tblHolidays[KOREKSI],tblHolidays[HARI]),0),2),\"\"),\"\"),\"\")","v":""}]
[null,{"$f":"Hari+DATE(CalYear,12,1)-WEEKDAY(DATE(CalYear,12,1),(AWALMINGGU=\"SENIN\")+1)+36","v":"2018-12-30"},"2018-12-31","CATATAN"]
[null,{"$f":"IFERROR(IF(PERLIHATKANHARILIBUR,IF(INDEX(tblHolidays[],MATCH(DATE(CalYear,MONTH(B15),DAY(B15)),IF(PERLIHATKANPERINGATAN,tblHolidays[KOREKSI],tblHolidays[HARI]),0),6),INDEX(tblHolidays[],MATCH(DATE(CalYear,MONTH(B15),DAY(B15)),IF(PERLIHATKANPERINGATAN,tblHolidays[KOREKSI],tblHolidays[HARI]),0),2),\"\"),\"\"),\"\")","v":""},{"$f":"IFERROR(IF(PERLIHATKANHARILIBUR,IF(INDEX(tblHolidays[],MATCH(DATE(CalYear,MONTH(C15),DAY(C15)),IF(PERLIHATKANPERINGATAN,tblHolidays[KOREKSI],tblHolidays[HARI]),0),6),INDEX(tblHolidays[],MATCH(DATE(CalYear,MONTH(C15),DAY(C15)),IF(PERLIHATKANPERINGATAN,tblHolidays[KOREKSI],tblHolidays[HARI]),0),2),\"\"),\"\"),\"\")","v":""}]

{"sheet":"Hari Libur","index":13,"n_rows":14,"n_cols":8,"rows_kept":14}
[]
[null,"Hari Libur di Indonesia",{"$nulls":5}," "]
[]
[null,"HARI","HARI LIBUR","JATUH PADA","HARI KERJA","KOREKSI","PERLIHATKAN"]
[null,{"$f":"DATE(CalYear,1,1)","v":"2018-01-01"},"Tahun Baru","1 Januari",{"$f":"IFERROR(WEEKDAY(tblHolidays[[#This Row],[HARI]],IF(AWALMINGGU=\"SENIN\",2,1)),0)","v":2},{"$f":"IF(ISTEXT(tblHolidays[[#This Row],[HARI]]),\"Tidak Ada Cuti Bersama\",IF(tblHolidays[[#This Row],[HARI KERJA]]=1,tblHolidays[[#This Row],[HARI]]+1,IF(tblHolidays[[#This Row],[HARI KERJA]]=7,tblHolidays[[#This Row],[HARI]]-1,tblHolidays[[#This Row],[HARI]])))","v":"2018-01-01"},true]
[null,{"$f":"IF(MOD(CalYear,4)=1,DATE(CalYear,1,20)+(WEEKDAY(DATE(CalYear,1,20))=1),\"Tidak Ada Cuti Bersama\")","v":"Tidak Ada Cuti Bersama"},"Pemilihan Presiden","Setiap lima tahun",{"$f":"IFERROR(WEEKDAY(tblHolidays[[#This Row],[HARI]],IF(AWALMINGGU=\"SENIN\",2,1)),0)","v":0},{"$f":"IF(ISTEXT(tblHolidays[[#This Row],[HARI]]),\"Tidak Ada Cuti Bersama\",IF(tblHolidays[[#This Row],[HARI KERJA]]=1,tblHolidays[[#This Row],[HARI]]+1,IF(tblHolidays[[#This Row],[HARI KERJA]]=7,tblHolidays[[#This Row],[HARI]]-1,tblHolidays[[#This Row],[HARI]])))","v":"Tidak Ada Cuti Bersama"},true]
[null,{"$f":"DATE(CalYear,2,1+((3-(2>=WEEKDAY(DATE(CalYear,2,1))))*7)+(2-WEEKDAY(DATE(CalYear,2,1))))","v":"2018-02-19"},"Wafat Yesus Kristus","30 Maret",{"$f":"IFERROR(WEEKDAY(tblHolidays[[#This Row],[HARI]],IF(AWALMINGGU=\"SENIN\",2,1)),0)","v":2},{"$f":"IF(ISTEXT(tblHolidays[[#This Row],[HARI]]),\"Tidak Ada Cuti Bersama\",IF(tblHolidays[[#This Row],[HARI KERJA]]=1,tblHolidays[[#This Row],[HARI]]+1,IF(tblHolidays[[#This Row],[HARI KERJA]]=7,tblHolidays[[#This Row],[HARI]]-1,tblHolidays[[#This Row],[HARI]])))","v":"2018-02-19"},true]
[null,{"$f":"DATE(CalYear,5,1+((MayMondays-(2>=WEEKDAY(DATE(CalYear,5,1))))*7)+(2-WEEKDAY(DATE(CalYear,5,1))))","v":"2018-05-28"},"Hari Kelahiran Pancasila","1 Juni",{"$f":"IFERROR(WEEKDAY(tblHolidays[[#This Row],[HARI]],IF(AWALMINGGU=\"SENIN\",2,1)),0)","v":2},{"$f":"IF(ISTEXT(tblHolidays[[#This Row],[HARI]]),\"Tidak Ada Cuti Bersama\",IF(tblHolidays[[#This Row],[HARI KERJA]]=1,tblHolidays[[#This Row],[HARI]]+1,IF(tblHolidays[[#This Row],[HARI KERJA]]=7,tblHolidays[[#This Row],[HARI]]-1,tblHolidays[[#This Row],[HARI]])))","v":"2018-05-28"},true]
[null,{"$f":"DATE(CalYear,7,4)","v":"2018-07-04"},"Hari Raya Idul Fitri 1439 H","15-16 Juni",{"$f":"IFERROR(WEEKDAY(tblHolidays[[#This Row],[HARI]],IF(AWALMINGGU=\"SENIN\",2,1)),0)","v":4},{"$f":"IF(ISTEXT(tblHolidays[[#This Row],[HARI]]),\"Tidak Ada Cuti Bersama\",IF(tblHolidays[[#This Row],[HARI KERJA]]=1,tblHolidays[[#This Row],[HARI]]+1,IF(tblHolidays[[#This Row],[HARI KERJA]]=7,tblHolidays[[#This Row],[HARI]]-1,tblHolidays[[#This Row],[HARI]])))","v":"2018-07-04"},true]
[null,{"$f":"DATE(CalYear,9,1+((1-(2>=WEEKDAY(DATE(CalYear,9,1))))*7)+(2-WEEKDAY(DATE(CalYear,9,1))))","v":"2018-09-03"},"Hari Kemerdekaan RI","17 Agustus",{"$f":"IFERROR(WEEKDAY(tblHolidays[[#This Row],[HARI]],IF(AWALMINGGU=\"SENIN\",2,1)),0)","v":2},{"$f":"IF(ISTEXT(tblHolidays[[#This Row],[HARI]]),\"Tidak Ada Cuti Bersama\",IF(tblHolidays[[#This Row],[HARI KERJA]]=1,tblHolidays[[#This Row],[HARI]]+1,IF(tblHolidays[[#This Row],[HARI KERJA]]=7,tblHolidays[[#This Row],[HARI]]-1,tblHolidays[[#This Row],[HARI]])))","v":"2018-09-03"},true]
[null,{"$f":"DATE(CalYear,10,1+((2-(2>=WEEKDAY(DATE(CalYear,10,1))))*7)+(2-WEEKDAY(DATE(CalYear,10,1))))","v":"2018-10-08"},"Hari Raya Idul Adha 1439 H","22 Agustus",{"$f":"IFERROR(WEEKDAY(tblHolidays[[#This Row],[HARI]],IF(AWALMINGGU=\"SENIN\",2,1)),0)","v":2},{"$f":"IF(ISTEXT(tblHolidays[[#This Row],[HARI]]),\"Tidak Ada Cuti Bersama\",IF(tblHolidays[[#This Row],[HARI KERJA]]=1,tblHolidays[[#This Row],[HARI]]+1,IF(tblHolidays[[#This Row],[HARI KERJA]]=7,tblHolidays[[#This Row],[HARI]]-1,tblHolidays[[#This Row],[HARI]])))","v":"2018-10-08"},true]
[null,{"$f":"DATE(CalYear,11,11)","v":"2018-11-11"},"Tahun Baru Islam 1440 H","11 September",{"$f":"IFERROR(WEEKDAY(tblHolidays[[#This Row],[HARI]],IF(AWALMINGGU=\"SENIN\",2,1)),0)","v":1},{"$f":"IF(ISTEXT(tblHolidays[[#This Row],[HARI]]),\"Tidak Ada Cuti Bersama\",IF(tblHolidays[[#This Row],[HARI KERJA]]=1,tblHolidays[[#This Row],[HARI]]+1,IF(tblHolidays[[#This Row],[HARI KERJA]]=7,tblHolidays[[#This Row],[HARI]]-1,tblHolidays[[#This Row],[HARI]])))","v":"2018-11-12"},true]
[null,{"$f":"DATE(CalYear,11,1+((4-(5>=WEEKDAY(DATE(CalYear,11,1))))*7)+(5-WEEKDAY(DATE(CalYear,11,1))))","v":"2018-11-22"},"Maulid Nabi Muhammad SAW 1440 H","20 November",{"$f":"IFERROR(WEEKDAY(tblHolidays[[#This Row],[HARI]],IF(AWALMINGGU=\"SENIN\",2,1)),0)","v":5},{"$f":"IF(ISTEXT(tblHolidays[[#This Row],[HARI]]),\"Tidak Ada Cuti Bersama\",IF(tblHolidays[[#This Row],[HARI KERJA]]=1,tblHolidays[[#This Row],[HARI]]+1,IF(tblHolidays[[#This Row],[HARI KERJA]]=7,tblHolidays[[#This Row],[HARI]]-1,tblHolidays[[#This Row],[HARI]])))","v":"2018-11-22"},true]
[null,{"$f":"DATE(CalYear,12,25)","v":"2018-12-25"},"Hari Raya Natal","25 Desember",{"$f":"IFERROR(WEEKDAY(tblHolidays[[#This Row],[HARI]],IF(AWALMINGGU=\"SENIN\",2,1)),0)","v":3},{"$f":"IF(ISTEXT(tblHolidays[[#This Row],[HARI]]),\"Tidak Ada Cuti Bersama\",IF(tblHolidays[[#This Row],[HARI KERJA]]=1,tblHolidays[[#This Row],[HARI]]+1,IF(tblHolidays[[#This Row],[HARI KERJA]]=7,tblHolidays[[#This Row],[HARI]]-1,tblHolidays[[#This Row],[HARI]])))","v":"2018-12-25"},true]